{"text_format":"1","workbook":"xlsx","n_sheets":62,"sheets":["modList14_1","modProv","Инструкция","Лог обновления","Титульный","Территории","Перечень тарифов","Форма 1.0.1 | Форма 1.10","Форма 1.10","Форма 1.0.1 | Форма 1.11.1","Форма 1.11.1","Форма 1.0.1 | Т-транс","Форма 1.11.2 | Т-транс","Форма 1.0.1 | Т-гор.вода","Форма 1.11.2 | Т-гор.вода","Форма 1.0.1 | Т-подкл(инд)","Форма 1.11.3 | Т-подкл(инд)","Форма 1.0.1 | Т-подкл","Форма 1.11.3 | Т-подкл","Форма 1.0.2","Сведения об изменении","Комментарии","Проверка","et_union_hor","TEHSHEET","modListTempFilter","modCheckCyan","REESTR_LINK","REESTR_DS","modHTTP","modfrmRezimChoose","modSheetMain","REESTR_VT","REESTR_VED","modfrmReestrObj","AllSheetsInThisWorkbook","et_union_vert","modInstruction","modRegion","modReestr","modfrmReestr","modUpdTemplMain","REESTR_ORG","modClassifierValidate","modHyp","modServiceModule","modList00","modList01","modList02","modList03","modList13","REESTR_MO_FILTER","REESTR_MO","modInfo","modList05","modList06","modList07","modfrmDateChoose","modComm","modThisWorkbook","modfrmReestrMR","modfrmCheckUpdates"],"not_rendered":{"charts":0,"images":20,"macros":1,"external_links":1,"defined_names":567,"comments":0,"pivot_tables":0},"unopened":[],"bounds":{"document_bytes":16777216,"sheet_cells":100000,"rows_first":2000,"rows_last":500,"rows_between":2000,"halvings":0,"cell_chars":16384,"cell_head_chars":4096},"cells_cut":0,"cells_raw":0,"read":"whole","date_system":"1900"}

{"sheet":"modList14_1","index":0,"n_rows":0,"n_cols":0,"rows_kept":0,"cut":false,"hidden":true,"merged":[]}

{"sheet":"modProv","index":1,"n_rows":0,"n_cols":0,"rows_kept":0,"cut":false,"hidden":true,"merged":[]}

{"sheet":"Инструкция","index":2,"n_rows":102,"n_cols":27,"rows_kept":102,"cut":false,"hidden":false,"merged":[[59,7,59,23],[81,7,81,23],[45,4,56,23],[69,4,69,19],[59,4,59,6],[58,7,58,23],[58,4,58,6],[70,4,70,19],[60,7,60,23],[101,5,101,23],[99,5,99,18],[81,4,81,6],[97,4,97,23],[80,4,80,20],[83,7,83,23],[1,1,1,6],[2,1,2,2],[6,4,18,23],[22,15,22,22],[57,4,57,20],[4,1,4,24],[40,4,44,23],[20,5,20,12],[20,15,20,23],[21,15,21,23],[34,4,38,23],[21,5,21,12],[39,4,39,23]]}
[null,null,null,null,null,null,null,null,null,null,null,null,null,null,null,null,null,null,null,null,null,null,null,null,null,null," (требуется обновление)"]
[null,{"$f":"\"Код отчёта: \" & GetCode()","v":"Код отчёта: FAS.JKH.OPEN.INFO.REQUEST.GVS"}]
[null,{"$f":"\"Версия \" & GetVersion()","v":"Версия 1.0.2"}]
[]
[null,"Предложение регулируемой организации об установлении тарифов в сфере горячего водоснабжения, информация о способах приобретения, стоимости и объемах товаров, необходимых для производства регулируемых товаров и (или) оказания регулируемых услуг"]
[]
[null,null,null,null,"• На рабочем месте должен быть установлен MS Office 2007 SP3, 2010, 2013, 2016 с полной версией MS Excel\n\n• Макросы во время работы должны быть включены (!)\n\n• Для корректной работы отчёта требуется выбрать низкий уровень безопасности\n(В меню MS Excel 2007/2010/2013/2016: Параметры Excel | Центр управления безопасностью | Параметры центра управления безопасностью | Параметры макросов | Включить все макросы | ОК)\n\n• Если Вы работаете в табличном процессоре MS Excel 2007 и выше, то можете использовать для работы формат XLSB (Двоичная книга Excel). При работе в формате XLSB заметно быстрее происходит сохранение файла, а также уменьшается размер по сравнению с форматами XLS и XLSM\n\n• Не рекомендуется снимать защиту с листов и каким-либо образом модифицировать защищаемые формулы и расчётные поля, в противном случае, отчёт будет отклонён системой\n\n• При сохранении не следует выбирать формат XLSX (Книга Excel), так как в указанном формате макросы, необходимые для работы отчёта, безвозвратно удаляются"]
[]
[]
[]
[]
[]
[]
[]
[]
[]
[]
[]
[]
[]
[null,null,null,null,"A"," - необязательные для заполнения",null,null,null,null,null,null,null,null,"A"," - с формулами и константами"]
[null,null,null,null,"A"," - обязательные для заполнения",null,null,null,null,null,null,null,null,"A"," - с выбором значений по двойному клику"]
[]
[]
[]
[]
[]
[]
[]
[]
[]
[]
[]
[]
[null,null,null,null,"Если в предложенном Вам списке необходимая организация, МР/МО отсутствуют, обновите реестры с помощью кнопок\n\nВ результате синхронизации с базой данных список организаций (МР/МО) будет заменён актуальным (механизм синхронизации требует подключения к сети Интернет и основан на использовании протокола HTTPS (TCP порт 443))\n\nЕсли после обновления Вам не удалось найти необходимую организацию в списке, обратитесь к ответственному за поддержание реестра Вашего региона."]
[]
[]
[]
[]
[]
[]
[]
[]
[]
[]
[null,null,null,null,"• При сохранении шаблона осуществляется проверка корректности данных, в том числе на наличие значений в ячейках, обязательных для заполнения\n\n• Если какая-то ячейка не удовлетворяет условию проверки, на лист «Проверка» добавляется гиперссылка на данную ячейку и указывается причина ошибки\n\n• В колонке «Статус» для каждого сообщения возможны 2 значения: ошибка и предупреждение\n\n• При наличии сообщений со статусом «Ошибка» шаблон будет отклонён системой и не будет загружен в хранилище данных, сообщения со статусом «Предупреждение» носят информационный характер, и такой шаблон будет принят системой"]
[]
[]
[]
[]
[]
[]
[]
[]
[]
[]
[]
[null,null,null,null,"Обратиться за помощью в службу технической поддержки"]
[]
[]
[]
[]
[]
[]
[]
[]
[]
[]
[]
[null,null,null,null,"Инструкция по загрузке сопроводительных материалов"]
[null,null,null,null,"Инструкция по работе с отчетной формой"]
[]
[]
[]
[]
[]
[]
[]
[]
[]
[null,null,null,null,"Обратиться за помощью в службу технической поддержки"]
[]
[]
[]
[]
[]
[]
[]
[]
[]
[]
[]
[]
[]
[]
[]
[]
[null,null,null,null,"При наличии подключения к Интернет, можно автоматически проверять наличие доступных обновлений. Выберите способ оповещения о наличии обновлений для отчёта:"]
[]
[null,null,null,null,null,"проверять доступные обновления (рекомендуется)",null,null,null,null,null,null,null,null,null,null,null,null,null,null,null,null,null,null,null,null,"y"]
[]
[null,null,null,null,null,"никогда не проверять наличие обновлений (не рекомендуется)"]

{"sheet":"Лог обновления","index":3,"n_rows":11,"n_cols":3,"rows_kept":11,"cut":false,"hidden":true,"merged":[]}
["Дата/Время","Сообщение","Статус"]
["2021-06-02T21:40:20","Проверка доступных обновлений...","Информация"]
["2021-06-02T21:40:21","Нет доступных обновлений для отчёта с кодом FAS.JKH.OPEN.INFO.REQUEST.GVS!","Информация"]
["2021-06-02T22:31:05","Проверка доступных обновлений...","Информация"]
["2021-06-02T22:31:06","Нет доступных обновлений для отчёта с кодом FAS.JKH.OPEN.INFO.REQUEST.GVS!","Информация"]
["2021-06-02T22:31:16","Проверка доступных обновлений...","Информация"]
["2021-06-02T22:31:18","Нет доступных обновлений для отчёта с кодом FAS.JKH.OPEN.INFO.REQUEST.GVS!","Информация"]
["2021-06-02T22:32:51","Проверка доступных обновлений...","Информация"]
["2021-06-02T22:32:52","Нет доступных обновлений для отчёта с кодом FAS.JKH.OPEN.INFO.REQUEST.GVS!","Информация"]
["2021-11-01T20:59:21","Проверка доступных обновлений...","Информация"]
["2021-11-01T20:59:22","Нет доступных обновлений для отчёта с кодом FAS.JKH.OPEN.INFO.REQUEST.GVS!","Информация"]

{"sheet":"Титульный","index":4,"n_rows":44,"n_cols":6,"rows_kept":44,"cut":false,"hidden":true,"merged":[[4,4,4,5],[51,4,51,8]]}
[null,null,null,null,null,28016967]
[null,null,null,null,{"$f":"\"Код шаблона: \" & GetCode()","v":"Код шаблона: FAS.JKH.OPEN.INFO.REQUEST.GVS"}]
[null,null,null,null,{"$f":"\"Версия \" & GetVersion()","v":"Версия 1.0.2"}]
[]
[null,null,null,null,"Предложение регулируемой организации об установлении тарифов в сфере горячего водоснабжения, информация о способах приобретения, стоимости и объемах товаров, необходимых для производства регулируемых товаров и (или) оказания регулируемых услуг"]
[]
[null,null,null,null,"Субъект РФ","Ленинградская область"]
[]
[null,null,null,null,"Отсутствует Интернет в границах территории МО, где организация осуществляет регулируемые виды деятельности","нет"]
[]
[null,null,null,null,"Начало периода регулирования","01.01.2022"]
[null,null,null,null,"Окончание периода регулирования","31.12.2022"]
[]
[null,null,null,null,"Тип отчета","первичное раскрытие информации"]
[null,null,null,null,"Дата внесения изменений в информацию, подлежащую раскрытию","02.06.2021"]
[null,null,null,null,"Дата периода регулирования, с которой предлагаются изменения в тарифы"]
[null,null,null,null,null,"Первичное предложение по тарифам"]
[]
[null,null,null,null,"Дата подачи заявления об утверждении тарифов","29.04.2021"]
[null,null,null,null,"Номер подачи заявления об утверждении тарифов","240-04/21"]
[]
[null,null,null,null,null,"Изменение тарифов"]
[]
[null,null,null,null,"Дата подачи заявления об изменении тарифов"]
[null,null,null,null,"Номер заявления об изменении тарифов"]
[]
[]
[null,null,null,null,"Является ли данное юридическое лицо подразделением (филиалом) другой организации","нет"]
[null,null,null,null,"Наименование организации","ООО \"Лемэк\""]
[null,null,null,null,"Наименование филиала"]
[null,null,null,null,"ИНН","7801213324"]
[null,null,null,null,"КПП","472501001"]
[]
[null,null,null,null,"Режим налогообложения","общий"]
[]
[]
[]
[null,null,null,null,"Почтовый адрес регулируемой организации","188507, Ленинградская область, Ломоносовский р-он, п. Новоселье, Здание котельной на газу, лит. А"]
[null,null,null,null,"Фамилия, имя, отчество руководителя","Геер Станислав Николаевич"]
[null,null,null,null,null,"Ответственный за заполнение формы"]
[null,null,null,null,"Фамилия, имя, отчество","Геер Станислав Николаевич"]
[null,null,null,null,"Должность","Генеральный директор"]
[null,null,null,null,"Контактный телефон","309 - 03 - 33"]
[null,null,null,null,"E-mail","lemek@newterritories.ru "]

{"sheet":"Территории","index":5,"n_rows":15,"n_cols":18,"rows_kept":15,"cut":false,"hidden":true,"merged":[[12,7,13,7],[11,2,13,2],[11,3,13,3],[11,4,13,4],[12,5,13,5],[12,6,13,6],[8,5,8,6],[8,8,8,9],[9,5,9,6],[9,8,9,9],[3,3,3,7],[5,3,5,4],[5,5,5,6],[7,3,7,4],[7,8,7,11],[7,5,7,7]]}
[null,null,null,null,null,null,null,null,null,null,"МО","ОКТМО","МР"]
[]
[]
[null,null,null,"Перечень муниципальных районов и муниципальных образований (территорий действия тарифа)"]
[]
[null,null,null,null,null,"да"]
[]
[null,null,null,"Территория действия тарифа",null,"Муниципальный район",null,null,"Муниципальное образование"]
[null,null,null,"№ п/п","Наименование","№ п/п",null,"Наименование","№ п/п",null,"Наименование","ОКТМО"]
[null,null,null,"1","2","3",null,"4","5",null,"6","7"]
[null,null,null,0,null,null,null,null,null,null,null,null,"размерженный МР",null,null,"флаг используемости территории на листе Перечень тарифов","копия территорий","МР (ОКТМО)"]
[null,"auto",null,1,"Ломоносовский муниципальный район, Аннинское (41630152);",null,0,null,null,"0",null,null,{"$f":"mergeValue(H12)","v":0},null,null,{"$f":"IF(ISERROR(MATCH(Q12,MODesc,0)),\"n\",\"y\")","v":"n"},"Ломоносовский муниципальный район, Аннинское (41630152);",{"$f":"K12&\"(\"&L12&\")\"","v":"()"}]
[null,"auto",null,null,null,null,1,"Ломоносовский муниципальный район",null,"0",null,null,{"$f":"mergeValue(H13)","v":"Ломоносовский муниципальный район"},null,null,null,null,{"$f":"K13&\"(\"&L13&\")\"","v":"()"}]
[null,"auto",null,null,null,null,null,null,null,1,"Аннинское","41630152",{"$f":"mergeValue(H14)","v":"Ломоносовский муниципальный район"},null,null,null,null,{"$f":"K14&\" (\"&L14&\")\"","v":"Аннинское (41630152)"}]
[null,"man",null,null,null,null,null,null,null,null,null,null,null,null,null,null,"Добавить территорию действия тарифа"]

{"sheet":"Перечень тарифов","index":6,"n_rows":21,"n_cols":19,"rows_kept":21,"cut":false,"hidden":true,"merged":[[20,13,21,13],[20,14,21,14],[20,8,22,8],[20,9,22,9],[20,10,22,10],[20,11,21,11],[20,12,21,12],[20,3,23,3],[20,4,23,4],[20,5,23,5],[20,6,23,6],[20,7,22,7],[18,7,18,8],[17,11,17,12],[17,15,17,16],[18,11,18,12],[18,15,18,16],[16,18,17,18],[16,14,16,17],[16,10,16,13],[16,6,17,6],[6,6,6,9],[7,6,7,9],[16,9,17,9],[9,6,9,9],[16,7,17,8],[4,3,4,9],[16,3,17,3],[16,4,17,4],[12,4,12,5],[8,6,8,9],[5,3,5,9],[7,4,7,5],[8,4,8,5],[9,4,9,5],[6,4,6,5],[16,5,17,5],[11,4,11,5],[10,4,10,5]]}
[]
[]
[]
[]
[null,null,null,"Перечень тарифов и технологически не связанных между собой централизованных систем горячего водоснабжения, в отношении которых предлагаются различные тарифы в сфере горячего водоснабжения"]
[]
[]
[]
[]
[]
[null,null,null,null,"Компонент на холодную воду в тарифе на горячую воду установлен с разбивкой по поставщикам",null,"нет"]
[]
[]
[]
[]
[]
[null,null,null,"№ п/п","Вид тарифа","Вид деятельности","Наличие двухставочного тарифа","№ п/п",null,"Наименование тарифа","Дифференциация по\n МО (территориям)",null,null,null,"Дифференциация по \nцентрализованным системам горячего водоснабжения",null,null,null,"Примечание"]
[null,null,null,null,null,null,null,null,null,null,"да/нет","№ п/п",null,"Описание","да/нет","№ п/п",null,"Описание"]
[null,null,null,"1","2","3","4","5",null,"6","7","8",null,"9","10","11",null,"12","13"]
[null,null,null,0]
[5,null,null,1,"Тариф на горячую воду в закрытой системе горячего водоснабжения (горячее водоснабжение)","Горячее водоснабжение","нет",null,1,"Тариф на горячую воду в закрытой системе горячего водоснабжения","нет",null,"1",null,"нет",null,"1"]

{"sheet":"Форма 1.0.1 | Форма 1.10","index":7,"n_rows":15,"n_cols":10,"rows_kept":15,"cut":false,"hidden":true,"merged":[[14,6,14,7],[1,5,1,7],[3,5,3,7],[3,8,4,8],[7,0,12,0],[10,1,12,1],[11,2,12,2]]}
["11"]
[null,null,null,null,null,"Форма 1.0.1 Основные параметры раскрываемой информации 1"]
[]
[null,null,null,null,null,"Параметры формы",null,null,"Описание параметров формы"]
[null,null,null,null,null,"№ п/п","Наименование параметра","Информация"]
[null,null,null,null,null,"1",2,3,4,4]
[null,null,null,null,null,1,"Дата заполнения/внесения изменений",{"$f":"IF(dateCh=\"\",\"\",dateCh)","v":"02.06.2021"},"Указывается календарная дата первичного заполнения или внесения изменений в форму в виде «ДД.ММ.ГГГГ»."]
[1,null,null,null,null,{"$f":"\"2.\" &mergeValue(A8)","v":"2.1"},"Наименование централизованной системы коммунальной инфраструктуры",{"$f":"IF('Перечень тарифов'!R21=\"\",\"наименование отсутствует\",\"\" & 'Перечень тарифов'!R21 & \"\")","v":"наименование отсутствует"},"Указывается наименование централизованной системы холодного водоснабжения/горячего водоснабжения/водоотведения/теплоснабжения, к которой относится размещаемая информация.\nВ случае наличия нескольких централизованных систем коммунальной инфраструктуры, информация по каждой из них указывается в отдельной строке."]
[null,null,null,null,null,{"$f":"\"3.\" &mergeValue(A9)","v":"3.1"},"Наименование регулируемого вида деятельности",{"$f":"IF('Перечень тарифов'!F21=\"\",\"наименование отсутствует\",\"\" & 'Перечень тарифов'!F21 & \"\")","v":"Горячее водоснабжение"},"Указывается наименование вида регулируемой деятельности."]
[null,null,null,null,null,{"$f":"\"4.\"&mergeValue(A10)","v":"4.1"},"Территория оказания услуги по регулируемому виду деятельности","x"]
[null,1,null,null,null,{"$f":"\"4.\"&mergeValue(A11) &\".\"&mergeValue(B11)","v":"4.1.1"},"Субъект Российской Федерации",{"$f":"IF(region_name=\"\",\"\",region_name)","v":"Ленинградская область"},"Указывается наименование субъекта Российской Федерации"]
[null,null,1,null,null,{"$f":"\"4.\"&mergeValue(A12) &\".\"&mergeValue(B12)&\".\"&mergeValue(C12)","v":"4.1.1.1"},"муниципальный район",{"$f":"IF(Территории!H13=\"\",\"\",\"\" & Территории!H13 & \"\")","v":"Ломоносовский муниципальный район"},"Указывается наименование муниципального района, на территории которого организация оказывает услуги по регулируемому виду деятельности."]
[null,null,null,1,null,{"$f":"\"4.\"&mergeValue(A13) &\".\"&mergeValue(B13)&\".\"&mergeValue(C13)&\".\"&mergeValue(D13)","v":"4.1.1.1.1"},"муниципальное образование",{"$f":"IF(Территории!R14=\"\",\"\",\"\" & Территории!R14 & \"\")","v":"Аннинское (41630152)"},"Указывается наименование и код муниципального района, муниципального образования в соответствии с Общероссийским классификатором территорий муниципальных образований (далее - ОКТМО), входящего в муниципальный район, на территории которого организация оказывает услуги по регулируемому виду деятельности.\nВ случае оказания услуг по регулируемому виду деятельности на территории нескольких муниципальных районов (муниципальных образований) данные по каждому их них указываются в отдельной строке."]
[]
[null,null,null,null,null,null,"  1 Информация размещается при раскрытии информации по каждой из форм."]

{"sheet":"Форма 1.10","index":8,"n_rows":14,"n_cols":8,"rows_kept":14,"cut":false,"hidden":true,"merged":[[4,3,4,6],[6,3,6,6],[6,7,7,7],[9,7,13,7]]}
[]
[]
[]
[]
[null,null,null,"Форма 1.10 Информация о способах приобретения, стоимости и объемах товаров, необходимых для производства регулируемых товаров и (или) оказания регулируемых услуг регулируемой организацией"]
[]
[null,null,null,"Параметры формы",null,null,null,"Описание параметров формы"]
[null,null,null,"№ п/п","Наименование параметра","Информация","Ссылка на документ"]
[null,null,null,"1","2","3","4","5"]
[null,null,null,"1","Сведения о правовых актах, регламентирующих правила закупки (положение о закупках) в регулируемой организации","Положение о закупках товаров, работ, услуг","https://eias.fstrf.ru/disclo/get_file?p_guid=e2c5b721-28f5-46bd-8d88-9bbb484fb379","В колонке «Информация» указывается описательная информация, характеризующая размещаемые данные.\nВ колонке «Ссылка на документ» указывается либо ссылка на документ, предварительно загруженный в хранилище файлов ФГИС ЕИАС, либо ссылка на официальный сайт в сети «Интернет», на котором размещена информация.\nВ случае наличия дополнительных сведений о способах приобретения, стоимости и объемах товаров, необходимых для производства регулируемых товаров и (или) оказания регулируемых услуг регулируемой организацией, информация по ним указывается в отдельных строках."]
[null,null,null,"2","Сведения о месте размещения положения о закупках регулируемой организации","Положение о закупках товаров, работ, услуг","https://eias.fstrf.ru/disclo/get_file?p_guid=e2c5b721-28f5-46bd-8d88-9bbb484fb379"]
[null,null,null,"3","Сведения о планировании закупочных процедур","Положение о закупках товаров, работ, услуг","https://eias.fstrf.ru/disclo/get_file?p_guid=e2c5b721-28f5-46bd-8d88-9bbb484fb379"]
[null,null,null,"4","Сведения о результатах проведения закупочных процедур","Положение о закупках товаров, работ, услуг","https://eias.fstrf.ru/disclo/get_file?p_guid=e2c5b721-28f5-46bd-8d88-9bbb484fb379"]
[null,null,null,null,"Добавить сведения"]

{"sheet":"Форма 1.0.1 | Форма 1.11.1","index":9,"n_rows":15,"n_cols":10,"rows_kept":15,"cut":false,"hidden":true,"merged":[[14,6,14,7],[1,5,1,7],[3,5,3,7],[3,8,4,8],[7,0,12,0],[10,1,12,1],[11,2,12,2]]}
["11"]
[null,null,null,null,null,"Форма 1.0.1 Основные параметры раскрываемой информации 1"]
[]
[null,null,null,null,null,"Параметры формы",null,null,"Описание параметров формы"]
[null,null,null,null,null,"№ п/п","Наименование параметра","Информация"]
[null,null,null,null,null,"1",2,3,4,4]
[null,null,null,null,null,1,"Дата заполнения/внесения изменений",{"$f":"IF(dateCh=\"\",\"\",dateCh)","v":"02.06.2021"},"Указывается календарная дата первичного заполнения или внесения изменений в форму в виде «ДД.ММ.ГГГГ»."]
[1,null,null,null,null,{"$f":"\"2.\" &mergeValue(A8)","v":"2.1"},"Наименование централизованной системы коммунальной инфраструктуры",{"$f":"IF('Перечень тарифов'!R21=\"\",\"наименование отсутствует\",\"\" & 'Перечень тарифов'!R21 & \"\")","v":"наименование отсутствует"},"Указывается наименование централизованной системы холодного водоснабжения/горячего водоснабжения/водоотведения/теплоснабжения, к которой относится размещаемая информация.\nВ случае наличия нескольких централизованных систем коммунальной инфраструктуры, информация по каждой из них указывается в отдельной строке."]
[null,null,null,null,null,{"$f":"\"3.\" &mergeValue(A9)","v":"3.1"},"Наименование регулируемого вида деятельности",{"$f":"IF('Перечень тарифов'!F21=\"\",\"наименование отсутствует\",\"\" & 'Перечень тарифов'!F21 & \"\")","v":"Горячее водоснабжение"},"Указывается наименование вида регулируемой деятельности."]
[null,null,null,null,null,{"$f":"\"4.\"&mergeValue(A10)","v":"4.1"},"Территория оказания услуги по регулируемому виду деятельности","x"]
[null,1,null,null,null,{"$f":"\"4.\"&mergeValue(A11) &\".\"&mergeValue(B11)","v":"4.1.1"},"Субъект Российской Федерации",{"$f":"IF(region_name=\"\",\"\",region_name)","v":"Ленинградская область"},"Указывается наименование субъекта Российской Федерации"]
[null,null,1,null,null,{"$f":"\"4.\"&mergeValue(A12) &\".\"&mergeValue(B12)&\".\"&mergeValue(C12)","v":"4.1.1.1"},"муниципальный район",{"$f":"IF(Территории!H13=\"\",\"\",\"\" & Территории!H13 & \"\")","v":"Ломоносовский муниципальный район"},"Указывается наименование муниципального района, на территории которого организация оказывает услуги по регулируемому виду деятельности."]
[null,null,null,1,null,{"$f":"\"4.\"&mergeValue(A13) &\".\"&mergeValue(B13)&\".\"&mergeValue(C13)&\".\"&mergeValue(D13)","v":"4.1.1.1.1"},"муниципальное образование",{"$f":"IF(Территории!R14=\"\",\"\",\"\" & Территории!R14 & \"\")","v":"Аннинское (41630152)"},"Указывается наименование и код муниципального района, муниципального образования в соответствии с Общероссийским классификатором территорий муниципальных образований (далее - ОКТМО), входящего в муниципальный район, на территории которого организация оказывает услуги по регулируемому виду деятельности.\nВ случае оказания услуг по регулируемому виду деятельности на территории нескольких муниципальных районов (муниципальных образований) данные по каждому их них указываются в отдельной строке."]
[]
[null,null,null,null,null,null,"  1 Информация размещается при раскрытии информации по каждой из форм."]

{"sheet":"Форма 1.11.1","index":10,"n_rows":34,"n_cols":15,"rows_kept":34,"cut":false,"hidden":false,"merged":[[33,4,33,11],[29,4,29,10],[30,2,31,2],[30,3,31,3],[30,4,31,4],[30,5,31,5],[30,11,31,11],[27,11,28,11],[21,11,22,11],[23,4,23,10],[24,2,25,2],[24,3,25,3],[24,4,25,4],[24,5,25,5],[24,11,25,11],[26,4,26,10],[27,2,28,2],[27,3,28,3],[27,4,28,4],[27,5,28,5],[19,6,19,7],[20,4,20,10],[21,2,22,2],[21,3,22,3],[21,4,22,4],[21,5,22,5],[16,2,17,2],[16,3,17,3],[16,4,17,4],[16,5,17,5],[16,11,17,11],[18,4,18,10],[10,10,11,10],[11,6,11,7],[12,6,12,7],[13,4,13,10],[14,6,14,7],[15,4,15,10],[4,3,4,10],[6,5,6,10],[7,5,7,10],[9,3,9,10],[9,11,11,11],[10,3,11,3],[10,4,11,4],[10,5,11,5],[10,6,10,8],[10,9,11,9]]}
[]
[]
[]
[]
[null,null,null,"Форма 1.11.1 Информация о предложении об установлении тарифов в сфере горячего водоснабжения на очередной период регулирования1"]
[]
[null,null,null,null,{"$f":"\"Дата подачи заявления об \"&IF(datePr_ch=\"\",\"утверждении\",\"изменении\") & \" тарифов\"","v":"Дата подачи заявления об утверждении тарифов"},{"$f":"IF(datePr_ch=\"\",IF(datePr=\"\",\"\",datePr),datePr_ch)","v":"29.04.2021"}]
[null,null,null,null,{"$f":"\"Номер подачи заявления об \"&IF(numberPr_ch=\"\",\"утверждении\",\"изменении\") & \" тарифов\"","v":"Номер подачи заявления об утверждении тарифов"},{"$f":"IF(numberPr_ch=\"\",IF(numberPr=\"\",\"\",numberPr),numberPr_ch)","v":"240-04/21"}]
[]
[null,null,null,"Параметры формы",null,null,null,null,null,null,null,"Описание параметров формы"]
[null,null,null,"№ п/п","Вид тарифа","Наименование тарифа","Период действия тарифов",null,null,"Информация","Ссылка на документ"]
[null,null,null,null,null,null,"с",null,"по"]
[null,null,null,"1","2","3","4",null,"5","6","7","8"]
[null,null,null,1,"Копия инвестиционной программы, утвержденной в установленном законодательством Российской Федерации порядке, а до ее утверждения копия проекта инвестиционной программы"]
[null,null,null,"1.1","x","x","x",null,"x","ИНВЕСТИЦИОННАЯПРОГРАММА\nООО\"Лемэк\"\nПОРЕКОНСТРУКЦИИНАРУЖНЫХСЕТЕЙИКОТЕЛЬНОЙ,РАБОТАЮЩЕЙНАПРИРОДНОМГАЗЕ,ВПОСЕЛКЕНОВОСЕЛЬЕМУНИЦИПАЛЬНОГООБРАЗОВАНИЯАННИНСКОЕСЕЛЬСКОЕПОСЕЛЕНИЕЛОМОНОСОВСКОГОМУНИЦИПАЛЬНОГОРАЙОНАЛЕНИНГРАДСКОЙОБЛАСТИНАДОЛГОСРОЧНЫЙПЕРСПЕКТИВНЫЙПЕРИОД2015-2022ГГ.\n","https://portal.eias.ru/Portal/DownloadPage.aspx?type=12&guid=547da0b9-db86-4e36-9886-04266f6ef4e1","Заполняется в случае наличия инвестиционной программы (проекта инвестиционной программы) в отчетном периоде.\nВ колонке «Информация» указывается наименование инвестиционной программы.\nВ колонке «Ссылка на документ» указывается ссылка на документ, предварительно загруженный в хранилище файлов ФГИС ЕИАС."]
[null,3,null,2,"Предлагаемый метод регулирования",null,null,null,null,"x"]
[null,null,null,"2.1",{"$f":"IF('Перечень тарифов'!E21=\"\",\"наименование отсутствует\",\"\" & 'Перечень тарифов'!E21 & \"\")","v":"Тариф на горячую воду в закрытой системе горячего водоснабжения (горячее водоснабжение)"},{"$f":"IF('Перечень тарифов'!J21=\"\",\"наименование отсутствует\",\"\" & 'Перечень тарифов'!J21 & \"\")","v":"Тариф на горячую воду в закрытой системе горячего водоснабжения"},null,"01.01.2022","31.12.2022","метод индексации установленных тарифов","x","Значение в колонке «Вид тарифа» выбирается из перечня видов тарифов в сфере горячего водоснабжения, предусмотренных законодательством в сфере водоснабжения и водоотведения.\nЗначение в колонке «Информация» выбирается из перечня: Метод экономически обоснованных расходов (затрат); Метод индексации установленных тарифов; Метод обеспечения доходности инвестированного капитала; Метод сравнения аналогов.\nДаты начала и окончания периода действия тарифов указывается в виде «ДД.ММ.ГГГГ».\nВ случае дифференциации предлагаемых методов регулирования по видам тарифов и (или) по периодам действия тарифов информация по каждому из них указывается в отдельной строке."]
[null,null,null,null,null,null,null,"Добавить период"]
[null,3,null,"3","Долгосрочные параметры регулирования (в случае если их установление предусмотрено выбранным методом регулирования)"]
[null,null,null,"3.1","x","x","x",null,"x","x","https://portal.eias.ru/Portal/DownloadPage.aspx?type=12&guid=b3fbb1a9-d9be-45bb-8175-cf6345f95b45","Долгосрочные параметры регулирования указываются в случае выбора любого метода регулирования за исключением метода экономически обоснованных затрат в виде ссылки на документ, предварительно загруженный в хранилище файлов ФГИС ЕИАС."]
[null,3,null,"4","Необходимая валовая выручка на соответствующий период, в том числе с разбивкой по годам"]
[null,null,null,"4.1",{"$f":"IF('Перечень тарифов'!E21=\"\",\"наименование отсутствует\",\"\" & 'Перечень тарифов'!E21 & \"\")","v":"Тариф на горячую воду в закрытой системе горячего водоснабжения (горячее водоснабжение)"},{"$f":"IF('Перечень тарифов'!J21=\"\",\"наименование отсутствует\",\"\" & 'Перечень тарифов'!J21 & \"\")","v":"Тариф на горячую воду в закрытой системе горячего водоснабжения"},null,"01.01.2022","31.12.2022",8294.6984549690224,"x","Значение в колонке «Вид тарифа» выбирается из перечня видов тарифов в сфере горячего водоснабжения предусмотренных законодательством в сфере водоснабжения и водоотведения.\nДаты начала и окончания периода действия тарифов указывается в виде «ДД.ММ.ГГГГ».\nВеличина необходимой валовой выручки указывается в колонке «Информация» в тыс. руб.\nВ случае дифференциации необходимой валовой выручки по видам тарифов и (или) по периодам действия тарифов информация указывается в отдельных строках."]
[null,null,null,null,null,null,null,"Добавить период"]
[null,null,null,"5","Годовой объем отпущенной в сеть воды"]
[null,null,null,"5.1",{"$f":"IF('Перечень тарифов'!E21=\"\",\"наименование отсутствует\",\"\" & 'Перечень тарифов'!E21 & \"\")","v":"Тариф на горячую воду в закрытой системе горячего водоснабжения (горячее водоснабжение)"},{"$f":"IF('Перечень тарифов'!J21=\"\",\"наименование отсутствует\",\"\" & 'Перечень тарифов'!J21 & \"\")","v":"Тариф на горячую воду в закрытой системе горячего водоснабжения"},null,"01.01.2022","31.12.2022",13814.329999999998,"x","Значение в колонке «Вид тарифа» выбирается из перечня видов тарифов в сфере горячего водоснабжения, предусмотренных законодательством в сфере водоснабжения и водоотведения.\nДаты начала и окончания периода действия тарифов указывается в виде «ДД.ММ.ГГГГ».\nВеличина годового объема отпущенной в сеть воды указывается в колонке «Информация» в тыс. куб. м.\nВ случае дифференциации объема отпущенной в сеть воды по видам тарифов и (или) по периодам действия тарифов информация указывается в отдельных строках."]
[null,null,null,null,null,null,null,"Добавить период"]
[null,null,null,"6","Размер недополученных доходов регулируемой организацией, исчисленный в соответствии с Основами ценообразования в сфере водоснабжения и водоотведения, утвержденными постановлением Правительства Российской Федерации от 13.05.2013 № 406 (Собрание законодательства Российской Федерации, 2013, № 20, ст. 2500; 2017, № 48, ст. 7218)"]
[null,null,null,"6.1",{"$f":"IF('Перечень тарифов'!E21=\"\",\"наименование отсутствует\",\"\" & 'Перечень тарифов'!E21 & \"\")","v":"Тариф на горячую воду в закрытой системе горячего водоснабжения (горячее водоснабжение)"},{"$f":"IF('Перечень тарифов'!J21=\"\",\"наименование отсутствует\",\"\" & 'Перечень тарифов'!J21 & \"\")","v":"Тариф на горячую воду в закрытой системе горячего водоснабжения"},null,"01.01.2022","31.12.2022",14731.3233103898,"x","Значение в колонке «Вид тарифа» выбирается из перечня видов тарифов в сфере горячего водоснабжения, предусмотренных законодательством в сфере водоснабжения и водоотведения.\nДаты начала и окончания периода действия тарифов указывается в виде «ДД.ММ.ГГГГ».\nВеличина недополученных доходов регулируемой организации указывается в колонке «Информация» в тыс. руб. \nВ случае отсутствия недополученных доходов регулируемой организацией, исчисленных в соответствии с законодательством в сфере водоснабжения и водоотведения, указывается значение 0.\nВ случае дифференциации недополученных доходов регулируемой организацией по видам тарифов и/или по периодам действия тарифов информация указывается в отдельных строках.",null,null,"c 01:03 до 18:55"]
[null,null,null,null,null,null,null,"Добавить период"]
[null,3,null,"7","Размер экономически обоснованных расходов, не учтенных при регулировании тарифов в предыдущий период регулирования (при их наличии), определенном в соответствии с законодательством в сфере водоснабжения и водоотведения"]
[null,null,null,"7.1",{"$f":"IF('Перечень тарифов'!E21=\"\",\"наименование отсутствует\",\"\" & 'Перечень тарифов'!E21 & \"\")","v":"Тариф на горячую воду в закрытой системе горячего водоснабжения (горячее водоснабжение)"},{"$f":"IF('Перечень тарифов'!J21=\"\",\"наименование отсутствует\",\"\" & 'Перечень тарифов'!J21 & \"\")","v":"Тариф на горячую воду в закрытой системе горячего водоснабжения"},null,"01.01.2022","31.12.2022",0,"x","Значение в колонке «Вид тарифа» выбирается из перечня видов тарифов в сфере горячего водоснабжения, предусмотренных законодательством в сфере водоснабжения и водоотведения.\nДаты начала и окончания периода действия тарифов указывается в виде «ДД.ММ.ГГГГ».\nВеличина экономически обоснованных расходов, не учтенных при регулировании тарифов в предыдущий период регулирования, указывается в колонке «Информация» в тыс. руб. \nВ случае отсутствия экономически обоснованных расходов, не учтенных при регулировании тарифов в предыдущий период регулирования, определенных в соответствии с законодательством в сфере водоснабжения и водоотведения, указывается значение 0.\nВ случае дифференциации экономически обоснованных расходов по видам тарифов и/или по периодам действия тарифов информация указывается в отдельных строках."]
[null,null,null,null,null,null,null,"Добавить период"]
[]
[null,null,null,1,"При размещении информации по данной форме дополнительно указывается дата подачи заявления об утверждении(изменении) тарифов и его номер."]

{"sheet":"Форма 1.0.1 | Т-транс","index":11,"n_rows":19,"n_cols":10,"rows_kept":19,"cut":false,"hidden":true,"merged":[[18,6,18,7],[1,5,1,7],[3,5,3,7],[3,8,4,8],[7,0,15,0],[11,2,13,2],[12,8,13,8],[10,1,14,1]]}
["2"]
[null,null,null,null,null,"Форма 1.0.1 Основные параметры раскрываемой информации 1"]
[]
[null,null,null,null,null,"Параметры формы",null,null,"Описание параметров формы"]
[null,null,null,null,null,"№ п/п","Наименование параметра","Информация"]
[null,null,null,null,null,"1",2,3,4,4]
[null,null,null,null,null,1,"Дата заполнения/внесения изменений",{"$f":"IF(dateCh=\"\",\"\",dateCh)","v":"02.06.2021"},"Указывается календарная дата первичного заполнения или внесения изменений в форму в виде «ДД.ММ.ГГГГ»."]
[1,null,null,null,null,{"$f":"\"2.\" &mergeValue(A8)","v":"2.1"},"Наименование централизованной системы коммунальной инфраструктуры",null,"Указывается наименование централизованной системы холодного водоснабжения/горячего водоснабжения/водоотведения/теплоснабжения, к которой относится размещаемая информация.\nВ случае наличия нескольких централизованных систем коммунальной инфраструктуры, информация по каждой из них указывается в отдельной строке."]
[null,null,null,null,null,{"$f":"\"3.\" &mergeValue(A9)","v":"3.1"},"Наименование регулируемого вида деятельности",null,"Указывается наименование вида регулируемой деятельности."]
[null,null,null,null,null,{"$f":"\"4.\"&mergeValue(A10)","v":"4.1"},"Территория оказания услуги по регулируемому виду деятельности","x"]
[null,1,null,null,null,{"$f":"\"4.\"&mergeValue(A11) &\".\"&mergeValue(B11)","v":"4.1.1"},"Субъект Российской Федерации",{"$f":"IF(region_name=\"\",\"\",region_name)","v":"Ленинградская область"},"Указывается наименование субъекта Российской Федерации"]
[null,null,1,null,null,{"$f":"\"4.\"&mergeValue(A12) &\".\"&mergeValue(B12)&\".\"&mergeValue(C12)","v":"4.1.1.1"},"муниципальный район",null,"Указывается наименование муниципального района, на территории которого организация оказывает услуги по регулируемому виду деятельности."]
[null,null,null,1,null,{"$f":"\"4.\"&mergeValue(A13) &\".\"&mergeValue(B13)&\".\"&mergeValue(C13)&\".\"&mergeValue(D13)","v":"4.1.1.1.1"},"муниципальное образование",null,"Указывается наименование и код муниципального района, муниципального образования в соответствии с Общероссийским классификатором территорий муниципальных образований (далее - ОКТМО), входящего в муниципальный район, на территории которого организация оказывает услуги по регулируемому виду деятельности.\nВ случае оказания услуг по регулируемому виду деятельности на территории нескольких муниципальных районов (муниципальных образований) данные по каждому их них указываются в отдельной строке."]
[null,null,null,null,null,null,"Добавить МО"]
[null,null,null,null,null,null,"Добавить МР"]
[null,null,null,null,null,null,"Добавить территорию"]
[null,null,null,null,null,null,"Добавить ЦС"]
[]
[null,null,null,null,null,null,"  1 Информация размещается при раскрытии информации по каждой из форм."]

{"sheet":"Форма 1.11.2 | Т-транс","index":12,"n_rows":32,"n_cols":26,"rows_kept":32,"cut":false,"hidden":true,"merged":[[6,14,6,21],[9,14,9,21],[20,7,25,7],[31,12,31,21],[21,9,24,9],[20,14,20,21],[19,14,19,21],[22,19,23,19],[21,14,21,21],[22,18,23,18],[22,13,23,13],[20,8,25,8],[18,14,18,21],[17,14,17,21],[13,14,13,19],[14,17,14,19],[22,22,24,22],[4,11,4,20],[14,15,14,16],[15,18,15,19],[22,17,23,17],[22,20,23,20],[10,11,10,12],[13,21,15,21],[12,22,15,22],[7,14,7,21],[8,14,8,21],[16,18,16,19],[12,11,12,21],[11,14,11,20],[13,11,15,11],[13,12,15,12],[13,13,15,13],[13,20,15,20],[20,3,25,3],[17,0,28,0],[18,1,27,1],[19,2,26,2],[21,4,24,4]]}
[]
[]
[]
[]
[null,null,null,null,null,null,null,null,null,null,null,"Форма 1.11.2 Информация о предложении величин тарифов на горячую воду, транспортировку воды1"]
[]
[]
[null,null,null,null,null,null,null,null,null,null,null,null,{"$f":"\"Дата подачи заявления об \"&IF(datePr_ch=\"\",\"утверждении\",\"изменении\") & \" тарифов\"","v":"Дата подачи заявления об утверждении тарифов"},null,{"$f":"IF(datePr_ch=\"\",IF(datePr=\"\",\"\",datePr),datePr_ch)","v":"29.04.2021"}]
[null,null,null,null,null,null,null,null,null,null,null,null,{"$f":"\"Номер подачи заявления об \"&IF(numberPr_ch=\"\",\"утверждении\",\"изменении\") & \" тарифов\"","v":"Номер подачи заявления об утверждении тарифов"},null,{"$f":"IF(numberPr_ch=\"\",IF(numberPr=\"\",\"\",numberPr),numberPr_ch)","v":"240-04/21"}]
[]
[null,null,null,null,null,null,null,null,null,null,null,null,null,null,null,null,null,null,null,null,"dp"]
[]
[null,null,null,null,null,null,null,null,null,null,null,"Параметры формы",null,null,null,null,null,null,null,null,null,null,"Описание параметров формы"]
[null,null,null,null,null,null,null,null,null,null,null,"№ п/п","Параметры дифференциации",null,"Период действия тарифа",null,null,null,null,null,"Наличие других периодов действия тарифа","Добавить период"]
[null,null,null,null,null,null,null,null,null,null,null,null,null,null,"Одноставочный тариф","Двухставочный тариф",null,"Период действия"]
[null,null,null,null,null,null,null,null,null,null,null,null,null,null,"Одноставочный тариф, руб./куб. м","ставка платы за объем поданной воды, руб./куб. м","ставка платы за содержание мощности, руб./куб. м в час","дата начала","дата окончания"]
[null,null,null,null,null,null,null,null,null,null,1,"1","2",{"$f":"OFFSET(N17,0,-1)","v":"2"},{"$f":"OFFSET(O17,0,-1)+1","v":3},{"$f":"OFFSET(P17,0,-1)+1","v":4},{"$f":"OFFSET(Q17,0,-1)+1","v":5},{"$f":"OFFSET(R17,0,-1)+1","v":6},{"$f":"OFFSET(S17,0,-1)+1","v":7},null,{"$f":"OFFSET(U17,0,-2)+1","v":8},{"$f":"OFFSET(V17,0,-1)","v":8},{"$f":"OFFSET(W17,0,-1)+1","v":9}]
[1,null,null,null,null,null,null,null,null,null,null,{"$f":"mergeValue(A18)","v":1},"Наименование тарифа",null,null,null,null,null,null,null,null,null,"Указывается наименование тарифа в случае подачи предложения по нескольким тарифам.\nВ случае наличия нескольких тарифов информация по ним указывается в отдельных строках."]
[null,1,null,null,null,null,null,null,null,null,null,{"$f":"mergeValue(A19) &\".\"& mergeValue(B19)","v":"1.1"},"Территория действия тарифа",null,null,null,null,null,null,null,null,null,"Указывается наименование территории действия тарифа при наличии дифференциации тарифа по территориальному признаку.\nВ случае дифференциации тарифов по территориальному признаку информация по ним указывается в отдельных строках."]
[null,null,1,null,null,null,null,null,null,null,null,{"$f":"mergeValue(A20) &\".\"& mergeValue(B20)&\".\"& mergeValue(C20)","v":"1.1.1"},"Наименование централизованной системы горячего водоснабжения",null,null,null,null,null,null,null,null,null,"Указывается наименование централизованной системы горячего водоснабжения при наличии дифференциации тарифа по централизованным системам горячего водоснабжения.\nВ случае дифференциации тарифов по централизованным системам горячего водоснабжения информация по ним указывается в отдельных строках."]
[null,null,null,1,null,null,null,null,null,null,null,{"$f":"mergeValue(A21) &\".\"& mergeValue(B21)&\".\"& mergeValue(C21)&\".\"& mergeValue(D21)","v":"1.1.1.1"},"Наименование признака дифференциации",null,null,null,null,null,null,null,null,null,"Указывается наименование дополнительного признака дифференциации (при наличии).\nДифференциация тарифа осуществляется в соответствии с законодательством в сфере водоснабжения и водоотведения.\nВ случае дифференциации тарифов по дополнительным признакам информация по ним указывается в отдельных строках."]
[null,null,null,null,"1",null,null,null,null,null,null,{"$f":"mergeValue(A22) &\".\"& mergeValue(B22)&\".\"& mergeValue(C22)&\".\"& mergeValue(D22)&\".\"& mergeValue(E22)","v":"1.1.1.1.1"},"Группа потребителей",null,null,null,null,null,null,null,null,null,"Указывается группа потребителей при наличии дифференциации тарифа по группам потребителей.\nЗначение выбирается из перечня: Организации-перепродавцы; Бюджетные организации; Население; Прочие; Без дифференциации.\nВ случае дифференциации тарифов группам потребителей информация по ним указывается в отдельных строках.",null,{"$f":"strCheckUnique(Z22:Z25)","v":""}]
[null,null,null,null,null,1,null,null,null,null,null,{"$f":"mergeValue(A23) &\".\"& mergeValue(B23)&\".\"& mergeValue(C23)&\".\"& mergeValue(D23)&\".\"& mergeValue(E23)&\".\"& mergeValue(F23)","v":"1.1.1.1.1.1"},null,null,null,null,null,null,"да",null,"нет",null,"В колонке «Параметр дифференциации тарифов» указывается значение дополнительного признака дифференциации, либо наименование поставщика в случае наличия дифференциации компонента двухставочного тарифа на холодную воду по поставщикам.\nПри подаче предложения на двухставочный тариф колонка «Одноставочный тариф» не заполняется.\nПри подаче предложения на одноставочный тариф колонки в блоке «Двухставочный тариф» не заполняются.\nВ случае утверждения однокомпонентного двухставочного тарифа данные указываются только в блоке «Двухставочный тариф (однокомпонентный)». \nВ случае утверждения двухкомпонентного двухставочного тарифа данные указываются только в блоке «Двухставочный тариф (двухкомпонентный)».\nДаты начала и окончания действия тарифов указываются в виде «ДД.ММ.ГГГГ».\nВ случае отсутствия даты окончания действия тарифа в колонке «Дата окончания» указывается «Нет».\nВ случае наличия нескольких значений признака дифференциации тарифов информация по ним указывается в отдельных строках.\nВ случае дифференциации тарифов по периодам действия тарифа информация по ним указывается в отдельных колонках.\nВ случае дифференциации компонента двухставочного тарифа на холодную воду по поставщикам строка \"Значение признака дифференциации\" не заполняется.\nВ случае отстутствия дифференциации компонента двухставочного тарифа на холодную воду по поставщикам строка \"Наименование поставщика\" не заполняется.",{"$f":"strCheckDate(O24:V24)","v":""},null,{"$f":"IF(M23=\"\",\"\",M23 )","v":""}]
[null,null,null,null,null,null,null,null,null,null,null,null,null,null,null,null,{"$f":"R23 & \"-\" & T23","v":"-"}]
[null,null,null,null,null,null,null,null,null,null,null,null,"Добавить значение признака дифференциации"]
[null,null,null,null,null,null,null,null,null,null,null,null,"Добавить группу потребителей"]
[null,null,null,null,null,null,null,null,null,null,null,null,"Добавить наименование признака дифференциации"]
[null,null,null,null,null,null,null,null,null,null,null,null,"Добавить наименование системы водоснабжения"]
[null,null,null,null,null,null,null,null,null,null,null,null,"Добавить территорию действия тарифа"]
[null,null,null,null,null,null,null,null,null,null,null,null,"Добавить наименование тарифа"]
[]
[null,null,null,null,null,null,null,null,null,null,null,1,"Для каждого вида тарифа в сфере горячего водоснабжения форма заполняется отдельно. При размещении информации по данной форме дополнительно указывается дата подачи заявления об утверждении(изменении) тарифа и его номер."]

{"sheet":"Форма 1.0.1 | Т-гор.вода","index":13,"n_rows":15,"n_cols":10,"rows_kept":15,"cut":false,"hidden":true,"merged":[[14,6,14,7],[1,5,1,7],[3,5,3,7],[3,8,4,8],[7,0,12,0],[11,2,12,2],[10,1,12,1]]}
["4"]
[null,null,null,null,null,"Форма 1.0.1 Основные параметры раскрываемой информации 1"]
[]
[null,null,null,null,null,"Параметры формы",null,null,"Описание параметров формы"]
[null,null,null,null,null,"№ п/п","Наименование параметра","Информация"]
[null,null,null,null,null,"1",2,3,4,4]
[null,null,null,null,null,1,"Дата заполнения/внесения изменений",{"$f":"IF(dateCh=\"\",\"\",dateCh)","v":"02.06.2021"},"Указывается календарная дата первичного заполнения или внесения изменений в форму в виде «ДД.ММ.ГГГГ»."]
[1,null,null,null,null,{"$f":"\"2.\" &mergeValue(A8)","v":"2.1"},"Наименование централизованной системы коммунальной инфраструктуры",{"$f":"IF('Перечень тарифов'!R21=\"\",\"наименование отсутствует\",\"\" & 'Перечень тарифов'!R21 & \"\")","v":"наименование отсутствует"},"Указывается наименование централизованной системы холодного водоснабжения/горячего водоснабжения/водоотведения/теплоснабжения, к которой относится размещаемая информация.\nВ случае наличия нескольких централизованных систем коммунальной инфраструктуры, информация по каждой из них указывается в отдельной строке."]
[null,null,null,null,null,{"$f":"\"3.\" &mergeValue(A9)","v":"3.1"},"Наименование регулируемого вида деятельности",{"$f":"IF('Перечень тарифов'!F21=\"\",\"наименование отсутствует\",\"\" & 'Перечень тарифов'!F21 & \"\")","v":"Горячее водоснабжение"},"Указывается наименование вида регулируемой деятельности."]
[null,null,null,null,null,{"$f":"\"4.\"&mergeValue(A10)","v":"4.1"},"Территория оказания услуги по регулируемому виду деятельности","x"]
[null,1,null,null,null,{"$f":"\"4.\"&mergeValue(A11) &\".\"&mergeValue(B11)","v":"4.1.1"},"Субъект Российской Федерации",{"$f":"IF(region_name=\"\",\"\",region_name)","v":"Ленинградская область"},"Указывается наименование субъекта Российской Федерации"]
[null,null,1,null,null,{"$f":"\"4.\"&mergeValue(A12) &\".\"&mergeValue(B12)&\".\"&mergeValue(C12)","v":"4.1.1.1"},"муниципальный район",{"$f":"IF(Территории!H13=\"\",\"\",\"\" & Территории!H13 & \"\")","v":"Ломоносовский муниципальный район"},"Указывается наименование муниципального района, на территории которого организация оказывает услуги по регулируемому виду деятельности."]
[null,null,null,1,null,{"$f":"\"4.\"&mergeValue(A13) &\".\"&mergeValue(B13)&\".\"&mergeValue(C13)&\".\"&mergeValue(D13)","v":"4.1.1.1.1"},"муниципальное образование",{"$f":"IF(Территории!R14=\"\",\"\",\"\" & Территории!R14 & \"\")","v":"Аннинское (41630152)"},"Указывается наименование и код муниципального района, муниципального образования в соответствии с Общероссийским классификатором территорий муниципальных образований (далее - ОКТМО), входящего в муниципальный район, на территории которого организация оказывает услуги по регулируемому виду деятельности.\nВ случае оказания услуг по регулируемому виду деятельности на территории нескольких муниципальных районов (муниципальных образований) данные по каждому их них указываются в отдельной строке."]
[]
[null,null,null,null,null,null,"  1 Информация размещается при раскрытии информации по каждой из форм."]

{"sheet":"Форма 1.11.2 | Т-гор.вода","index":14,"n_rows":30,"n_cols":47,"rows_kept":30,"cut":false,"hidden":false,"merged":[[22,41,23,41],[14,38,14,40],[15,39,15,40],[16,39,16,40],[22,38,23,38],[22,39,23,39],[22,40,23,40],[29,12,29,42],[4,11,4,27],[13,11,15,11],[13,12,15,12],[10,11,10,12],[13,27,15,27],[21,14,21,42],[12,11,12,42],[13,13,15,13],[15,25,15,26],[20,14,20,42],[16,25,16,26],[14,16,14,17],[14,18,14,19],[14,20,14,22],[6,15,6,42],[22,9,24,9],[7,15,7,42],[8,15,8,42],[9,15,9,42],[12,43,15,43],[18,14,18,42],[13,42,15,42],[11,14,11,27],[13,14,13,26],[14,24,14,26],[11,28,11,41],[13,28,13,40],[13,41,15,41],[14,30,14,31],[14,32,14,33],[14,34,14,36],[17,0,27,0],[18,1,27,1],[19,2,27,2],[20,3,26,3],[22,43,25,43],[22,24,23,24],[22,25,23,25],[22,26,23,26],[22,13,23,13],[22,27,23,27],[19,14,19,42],[21,4,25,4],[17,14,17,42],[20,7,26,7],[21,8,25,8],[22,5,24,5]]}
[]
[]
[]
[]
[null,null,null,null,null,null,null,null,null,null,null,"Форма 1.11.2 Информация о предложении величин тарифов на горячую воду, транспортировку воды1"]
[]
[]
[null,null,null,null,null,null,null,null,null,null,null,null,{"$f":"\"Дата подачи заявления об \"&IF(datePr_ch=\"\",\"утверждении\",\"изменении\") & \" тарифов\"","v":"Дата подачи заявления об утверждении тарифов"},null,null,{"$f":"IF(datePr_ch=\"\",IF(datePr=\"\",\"\",datePr),datePr_ch)","v":"29.04.2021"}]
[null,null,null,null,null,null,null,null,null,null,null,null,{"$f":"\"Номер подачи заявления об \"&IF(numberPr_ch=\"\",\"утверждении\",\"изменении\") & \" тарифов\"","v":"Номер подачи заявления об утверждении тарифов"},null,null,{"$f":"IF(numberPr_ch=\"\",IF(numberPr=\"\",\"\",numberPr),numberPr_ch)","v":"240-04/21"}]
[]
[null,null,null,null,null,null,null,null,null,null,null,null,null,null,null,null,null,null,null,null,null,null,null,null,null,null,null,"dp",null,null,null,null,null,null,null,null,null,null,null,null,null,"dp"]
[null,null,null,null,null,null,null,null,null,null,null,null,null,null,null,null,null,null,null,null,null,null,null,null,null,null,null,null,"О"]
[null,null,null,null,null,null,null,null,null,null,null,"Параметры формы",null,null,null,null,null,null,null,null,null,null,null,null,null,null,null,null,null,null,null,null,null,null,null,null,null,null,null,null,null,null,null,"Описание параметров формы"]
[null,null,null,null,null,null,null,null,null,null,null,"№ п/п","Параметры дифференциации",null,"Период действия тарифа",null,null,null,null,null,null,null,null,null,null,null,null,"Наличие других периодов действия тарифа","Период действия тарифа",null,null,null,null,null,null,null,null,null,null,null,null,"Наличие других периодов действия тарифа","Добавить период"]
[null,null,null,null,null,null,null,null,null,null,null,null,null,null,null,"Одноставочный тариф","Одноставочный тариф (двухкомпонентный)",null,"Двухставочный тариф (однокомпонентный)",null,"Двухставочный тариф (двухкомпонентный)",null,null,null,"Период действия",null,null,null,null,"Одноставочный тариф","Одноставочный тариф (двухкомпонентный)",null,"Двухставочный тариф (однокомпонентный)",null,"Двухставочный тариф (двухкомпонентный)",null,null,null,"Период действия"]
[null,null,null,null,null,null,null,null,null,null,null,null,null,null,null,"Одноставочный тариф, руб./куб. м","Компонент на холодную воду, руб./куб.м","Компонент на тепловую энергию, руб./Гкал","Ставка платы за потребление горячей воды, руб./куб. м","Ставка платы за содержание системы горячего водоснабжения, руб./Гкал в час","Ставка платы за объем поданной холодной воды, руб./куб. м","Ставка платы за содержание мощности, руб./куб. м в час","Компонент на тепловую энергию, руб./Гкал",null,"дата начала","дата окончания",null,null,null,"Одноставочный тариф, руб./куб. м","Компонент на холодную воду, руб./куб.м","Компонент на тепловую энергию, руб./Гкал","Ставка платы за потребление горячей воды, руб./куб. м","Ставка платы за содержание системы горячего водоснабжения, руб./Гкал в час","Ставка платы за объем поданной холодной воды, руб./куб. м","Ставка платы за содержание мощности, руб./куб. м в час","Компонент на тепловую энергию, руб./Гкал",null,"дата начала","дата окончания"]
[null,null,null,null,null,null,null,null,null,null,1,"1","2",{"$f":"OFFSET(N17,0,-1)","v":"2"},{"$f":"OFFSET(O17,0,-1)","v":"2"},{"$f":"OFFSET(P17,0,-1)+1","v":3},4,5,6,7,8,9,10,{"$f":"OFFSET(X17,0,-1)","v":10},11,12,null,{"$f":"OFFSET(AB17,0,-2)+1","v":13},{"$f":"OFFSET(AC17,0,-1)","v":13},{"$f":"OFFSET(AD17,0,-1)+1","v":14},15,16,17,18,19,20,21,{"$f":"OFFSET(AL17,0,-1)","v":21},22,23,null,{"$f":"OFFSET(AP17,0,-2)+1","v":24},{"$f":"OFFSET(AQ17,0,-1)","v":24},{"$f":"OFFSET(AR17,0,-1)+1","v":25}]
[1,null,null,null,null,null,null,null,null,null,null,{"$f":"mergeValue(A18)","v":1},"Наименование тарифа",null,null,null,null,null,null,null,null,null,null,null,null,null,null,null,null,null,null,null,null,null,null,null,null,null,null,null,null,null,null,"Указывается наименование тарифа в случае утверждения нескольких тарифов.\nВ случае наличия нескольких тарифов информация по ним указывается в отдельных строках."]
[null,1,null,null,null,null,null,null,null,null,null,{"$f":"mergeValue(A19) &\".\"& mergeValue(B19)","v":"1.1"}]
[null,null,1,null,null,null,null,null,null,null,null,{"$f":"mergeValue(A20) &\".\"& mergeValue(B20)&\".\"& mergeValue(C20)","v":"1.1.1"}]
[null,null,null,1,null,null,null,null,null,null,null,{"$f":"mergeValue(A21) &\".\"& mergeValue(B21)&\".\"& mergeValue(C21)&\".\"& mergeValue(D21)","v":"1.1.1.1"},"Наименование признака дифференциации",null,null,null,null,null,null,null,null,null,null,null,null,null,null,null,null,null,null,null,null,null,null,null,null,null,null,null,null,null,null,"Указывается наименование дополнительного признака дифференциации (при наличии).\nДифференциация тарифа осуществляется в соответствии с законодательством в сфере водоснабжения и водоотведения.\nВ случае дифференциации тарифов по дополнительным признакам информация по ним указывается в отдельных строках."]
[null,null,null,null,"1",null,null,null,null,null,null,{"$f":"mergeValue(A22) &\".\"& mergeValue(B22)&\".\"& mergeValue(C22)&\".\"& mergeValue(D22)&\".\"& mergeValue(E22)","v":"1.1.1.1.1"},"Группа потребителей",null,"без дифференциации",null,null,null,null,null,null,null,null,null,null,null,null,null,null,null,null,null,null,null,null,null,null,null,null,null,null,null,null,"Указывается группа потребителей при наличии дифференциации тарифа по группам потребителей.\nЗначение выбирается из перечня: Организации-перепродавцы; Бюджетные организации; Население; Прочие; Без дифференциации.\nВ случае дифференциации тарифов группам потребителей информация по ним указывается в отдельных строках.",null,{"$f":"strCheckUnique(AU22:AU26)","v":""}]
[null,null,null,null,null,1,null,null,null,null,null,{"$f":"mergeValue(A23) &\".\"& mergeValue(B23)&\".\"& mergeValue(C23)&\".\"& mergeValue(D23)&\".\"& mergeValue(E23)&\".\"& mergeValue(F23)","v":"1.1.1.1.1.1"},null,null,null,214.45282332716238,39.35,2431.9836573216999,null,null,null,null,null,null,"01.01.2022","да","30.06.2022","да",null,228.68058879756927,40.884650000000015,2608.2769277440175,null,null,null,null,null,null,"01.07.2022","да","31.12.2022","нет",null,"В колонке «Параметр дифференциации тарифов» указывается значение дополнительного признака дифференциации, либо наименование поставщика в случае наличия дифференциации компонента двухставочного тарифа на холодную воду по поставщикам.\nПри подаче предложения на двухставочный тариф колонка «Одноставочный тариф» не заполняется.\nПри подаче предложения на одноставочный тариф колонки в блоке «Двухставочный тариф» не заполняются.\nВ случае утверждения однокомпонентного двухставочного тарифа данные указываются только в блоке «Двухставочный тариф (однокомпонентный)». \nВ случае утверждения двухкомпонентного двухставочного тарифа данные указываются только в блоке «Двухставочный тариф (двухкомпонентный)».\nДаты начала и окончания действия тарифов указываются в виде «ДД.ММ.ГГГГ».\nВ случае отсутствия даты окончания действия тарифа в колонке «Дата окончания» указывается «Нет».\nВ случае наличия нескольких значений признака дифференциации тарифов информация по ним указывается в отдельных строках.\nВ случае дифференциации тарифов по периодам действия тарифа информация по ним указывается в отдельных колонках.\nВ случае дифференциации компонента двухставочного тарифа на холодную воду по поставщикам строка \"Значение признака дифференциации\" не заполняется.\nВ случае отстутствия дифференциации компонента двухставочного тарифа на холодную воду по поставщикам строка \"Наименование поставщика\" не заполняется.",{"$f":"strCheckDate(O24:AQ24)","v":""},null,{"$f":"IF(M23=\"\",\"\",M23 )","v":""}]
[null,null,null,null,null,null,null,null,null,null,null,null,null,null,null,null,null,{"$f":"Y23 & \"-\" & AA23","v":"01.01.2022-30.06.2022"},null,null,null,null,null,null,null,null,null,null,null,null,null,{"$f":"AM23 & \"-\" & AO23","v":"01.07.2022-31.12.2022"}]
[]
[null,null,null,null,null,null,null,null,null,null,null,null,"Добавить значение признака дифференциации"]
[null,null,null,null,null,null,null,null,null,null,null,null,"Добавить группу потребителей"]
[null,null,null,null,null,null,null,null,null,null,null,null,"Добавить наименование признака дифференциации"]
[]
[null,null,null,null,null,null,null,null,null,null,null,1,"Для каждого вида тарифа в сфере горячего водоснабжения форма заполняется отдельно. При размещении информации по данной форме дополнительно указывается дата подачи заявления об утверждении(изменении) тарифа и его номер."]

{"sheet":"Форма 1.0.1 | Т-подкл(инд)","index":15,"n_rows":19,"n_cols":10,"rows_kept":19,"cut":false,"hidden":true,"merged":[[18,6,18,7],[1,5,1,7],[3,5,3,7],[3,8,4,8],[7,0,15,0],[11,2,13,2],[12,8,13,8],[10,1,14,1]]}
["9"]
[null,null,null,null,null,"Форма 1.0.1 Основные параметры раскрываемой информации 1"]
[]
[null,null,null,null,null,"Параметры формы",null,null,"Описание параметров формы"]
[null,null,null,null,null,"№ п/п","Наименование параметра","Информация"]
[null,null,null,null,null,"1",2,3,4,4]
[null,null,null,null,null,1,"Дата заполнения/внесения изменений",{"$f":"IF(dateCh=\"\",\"\",dateCh)","v":"02.06.2021"},"Указывается календарная дата первичного заполнения или внесения изменений в форму в виде «ДД.ММ.ГГГГ»."]
[1,null,null,null,null,{"$f":"\"2.\" &mergeValue(A8)","v":"2.1"},"Наименование централизованной системы коммунальной инфраструктуры",null,"Указывается наименование централизованной системы холодного водоснабжения/горячего водоснабжения/водоотведения/теплоснабжения, к которой относится размещаемая информация.\nВ случае наличия нескольких централизованных систем коммунальной инфраструктуры, информация по каждой из них указывается в отдельной строке."]
[null,null,null,null,null,{"$f":"\"3.\" &mergeValue(A9)","v":"3.1"},"Наименование регулируемого вида деятельности",null,"Указывается наименование вида регулируемой деятельности."]
[null,null,null,null,null,{"$f":"\"4.\"&mergeValue(A10)","v":"4.1"},"Территория оказания услуги по регулируемому виду деятельности","x"]
[null,1,null,null,null,{"$f":"\"4.\"&mergeValue(A11) &\".\"&mergeValue(B11)","v":"4.1.1"},"Субъект Российской Федерации",{"$f":"IF(region_name=\"\",\"\",region_name)","v":"Ленинградская область"},"Указывается наименование субъекта Российской Федерации"]
[null,null,1,null,null,{"$f":"\"4.\"&mergeValue(A12) &\".\"&mergeValue(B12)&\".\"&mergeValue(C12)","v":"4.1.1.1"},"муниципальный район",null,"Указывается наименование муниципального района, на территории которого организация оказывает услуги по регулируемому виду деятельности."]
[null,null,null,1,null,{"$f":"\"4.\"&mergeValue(A13) &\".\"&mergeValue(B13)&\".\"&mergeValue(C13)&\".\"&mergeValue(D13)","v":"4.1.1.1.1"},"муниципальное образование",null,"Указывается наименование и код муниципального района, муниципального образования в соответствии с Общероссийским классификатором территорий муниципальных образований (далее - ОКТМО), входящего в муниципальный район, на территории которого организация оказывает услуги по регулируемому виду деятельности.\nВ случае оказания услуг по регулируемому виду деятельности на территории нескольких муниципальных районов (муниципальных образований) данные по каждому их них указываются в отдельной строке."]
[null,null,null,null,null,null,"Добавить МО"]
[null,null,null,null,null,null,"Добавить МР"]
[null,null,null,null,null,null,"Добавить территорию"]
[null,null,null,null,null,null,"Добавить ЦС"]
[]
[null,null,null,null,null,null,"  1 Информация размещается при раскрытии информации по каждой из форм."]

{"sheet":"Форма 1.11.3 | Т-подкл(инд)","index":16,"n_rows":32,"n_cols":41,"rows_kept":32,"cut":false,"hidden":true,"merged":[[4,11,4,20],[6,13,6,20],[7,13,7,20],[8,13,8,20],[9,13,9,20],[21,38,26,38],[13,11,13,37],[17,13,17,16],[17,17,17,20],[17,21,17,24],[14,37,16,37],[13,38,16,38],[21,22,22,22],[21,23,22,23],[21,24,22,24],[21,15,24,15],[21,16,24,16],[21,17,24,17],[21,18,23,18],[21,19,23,19],[21,20,23,20],[20,2,26,2],[21,3,25,3],[18,0,28,0],[19,1,27,1],[21,14,24,14],[20,13,20,37],[19,13,19,37],[18,13,18,37],[21,8,25,8],[21,25,22,25],[21,9,25,9],[21,11,25,11],[21,12,25,12],[21,13,25,13],[21,10,25,10],[21,21,23,21],[10,11,10,12],[10,18,10,23],[11,11,11,12],[11,18,11,23],[12,18,12,23],[12,29,12,36],[14,11,16,11],[14,12,16,12],[14,13,16,16],[14,17,16,20],[14,21,16,24],[14,25,16,28],[14,36,16,36],[16,34,16,35],[15,31,15,32],[15,33,15,35],[14,29,14,35],[15,29,15,30]]}
[]
[]
[]
[]
[null,null,null,null,null,null,null,null,null,null,null,"Форма 1.11.3 Информация о предложении величин тарифов на подключение к централизованной системе горячего водоснабжения1"]
[]
[]
[null,null,null,null,null,null,null,null,null,null,null,null,{"$f":"\"Дата подачи заявления об \"&IF(datePr_ch=\"\",\"утверждении\",\"изменении\") & \" тарифов\"","v":"Дата подачи заявления об утверждении тарифов"},{"$f":"IF(datePr_ch=\"\",IF(datePr=\"\",\"\",datePr),datePr_ch)","v":"29.04.2021"}]
[null,null,null,null,null,null,null,null,null,null,null,null,{"$f":"\"Номер подачи заявления об \"&IF(numberPr_ch=\"\",\"утверждении\",\"изменении\") & \" тарифов\"","v":"Номер подачи заявления об утверждении тарифов"},{"$f":"IF(numberPr_ch=\"\",IF(numberPr=\"\",\"\",numberPr),numberPr_ch)","v":"240-04/21"}]
[]
[null,null,null,null,null,null,null,null,null,null,null,null,null,null,null,null,null,null,null,null,null,null,null,null,null,null,null,null,null,"NDS","woNDS","NDS","woNDS"]
[null,null,null,null,null,null,null,null,null,null,null,null,null,null,null,null,null,null,null,null,null,null,null,null,null,null,null,null,null,null,null,null,null,null,null,null,"dp"]
[]
[null,null,null,null,null,null,null,null,null,null,null,"Параметры формы",null,null,null,null,null,null,null,null,null,null,null,null,null,null,null,null,null,null,null,null,null,null,null,null,null,null,"Описание параметров формы"]
[null,null,null,null,null,null,null,null,null,null,null,"№ п/п","Параметр дифференциации тарифа/Заявитель","Подключаемая нагрузка водопроводной сети, куб. м/сут",null,null,null,"Диапазон диаметров водопроводной сети, мм",null,null,null,"Протяженность водопроводной сети, км",null,null,null,"Условия прокладки сетей",null,null,null,"Период действия тарифа",null,null,null,null,null,null,"Наличие других периодов действия тарифа","Добавить период"]
[null,null,null,null,null,null,null,null,null,null,null,null,null,null,null,null,null,null,null,null,null,null,null,null,null,null,null,null,null,"Ставка тарифа за подключаемую нагрузку водопроводной сети, тыс. руб./куб. м в сутки",null,"Ставка тарифа за протяженность водопроводной сети диаметром d, тыс. руб./км",null,"Период действия"]
[null,null,null,null,null,null,null,null,null,null,null,null,null,null,null,null,null,null,null,null,null,null,null,null,null,null,null,null,null,"С НДС","Без НДС","С НДС","Без НДС","Дата начала","Дата окончания"]
[null,null,null,null,null,null,null,null,null,null,1,"1","2",{"$f":"OFFSET(N18,0,-1)+1","v":3},null,null,null,{"$f":"OFFSET(R18,0,-4)+1","v":4},null,null,null,{"$f":"OFFSET(V18,0,-4)+1","v":5},null,null,null,null,null,{"$f":"OFFSET(V18,0,0)+1","v":6},{"$f":"AB18","v":6},{"$f":"OFFSET(AD18,0,-1)+1","v":7},{"$f":"OFFSET(AE18,0,-1)+1","v":8},9,10,11,12,13,{"$f":"OFFSET(AK18,0,-1)+1","v":14},null,15]
[1,null,null,null,null,null,null,null,null,null,null,{"$f":"mergeValue(A19)","v":1},"Наименование тарифа",null,null,null,null,null,null,null,null,null,null,null,null,null,null,null,null,null,null,null,null,null,null,null,null,null,"Указывается наименование тарифа в случае подачи предложения по нескольким тарифам.\nВ случае наличия нескольких тарифов информация по ним указывается в отдельных строках."]
[null,1,null,null,null,null,null,null,null,null,null,{"$f":"mergeValue(A20) &\".\"& mergeValue(B20)","v":"1.1"},"Территория действия тарифа",null,null,null,null,null,null,null,null,null,null,null,null,null,null,null,null,null,null,null,null,null,null,null,null,null,"Указывается наименование территории действия тарифа при наличии дифференциации тарифа по территориальному признаку.\nВ случае дифференциации тарифов по территориальному признаку информация по ним указывается в отдельных строках."]
[null,null,1,null,null,null,null,null,null,null,null,{"$f":"mergeValue(A21) &\".\"& mergeValue(B21)&\".\"& mergeValue(C21)","v":"1.1.1"},"Наименование централизованной системы горячего водоснабжения",null,null,null,null,null,null,null,null,null,null,null,null,null,null,null,null,null,null,null,null,null,null,null,null,null,"Указывается наименование централизованной системы горячего водоснабжения при наличии дифференциации тарифа по централизованным системам горячего водоснабжения.\nВ случае дифференциации тарифов по централизованным системам горячего водоснабжения информация по ним указывается в отдельных строках."]
[null,null,null,1,null,null,null,null,null,null,null,{"$f":"mergeValue(A22) &\".\"& mergeValue(B22)&\".\"& mergeValue(C22)&\".\"& mergeValue(D22)","v":"1.1.1.1"},null,"да",null,"1",null,"нет",null,1,null,"нет",null,1,null,"нет",null,1,null,null,null,null,null,null,"да",null,"нет",null,"В колодке «Параметр дифференциации тарифа/Заявитель» указывается наименование категории потребителей/заявителя, к которой относится тариф.\nДаты начала и окончания указываются в виде «ДД.ММ.ГГГГ».\nВ случае отсутствия даты окончания тарифа в колонке «Дата окончания» указывается «Нет».\nВ случае наличия дифференциации по категориям потребителей/заявителям, подключаемой нагрузке, диапазону диаметров, протяженности, условиям прокладки водопроводной сети информация по ним указывается в отдельных строках.\nВ случае дифференциации по периодам действия тарифа информация по ним указывается в отдельных колонках.",{"$f":"strCheckDateOnDP(V22:AL22,List06_9_DP)","v":""},{"$f":"IF(AND(COUNTIF(AP18:AP26,AP22)>1,AP22<>\"\"),\"ErrUnique:HasDoubleConn\",\"\")","v":""}]
[null,null,null,null,null,null,null,null,null,null,null,null,null,null,null,null,null,null,null,null,null,null,null,null,null,null,null,null,null,null,null,null,{"$f":"AH22 & \"-\" & AJ22","v":"-"},null,null,null,"нет"]
[]
[]
[null,null,null,null,null,null,null,null,null,null,null,null,null,null,null,null,"Добавить подключаемую нагрузку"]
[null,null,null,null,null,null,null,null,null,null,null,null,"Добавить строку"]
[null,null,null,null,null,null,null,null,null,null,null,null,"Добавить наименование системы водоснабжения"]
[null,null,null,null,null,null,null,null,null,null,null,null,"Добавить территорию действия тарифа"]
[null,null,null,null,null,null,null,null,null,null,null,null,"Добавить наименование тарифа"]
[]
[null,null,null,null,null,null,null,null,null,null,null,1,"При размещении информации дополнительно указывается дата подачи заявления об утверждении(изменении) тарифа и его номер."]

{"sheet":"Форма 1.0.1 | Т-подкл","index":17,"n_rows":19,"n_cols":10,"rows_kept":19,"cut":false,"hidden":true,"merged":[[18,6,18,7],[1,5,1,7],[3,5,3,7],[3,8,4,8],[7,0,15,0],[11,2,13,2],[12,8,13,8],[10,1,14,1]]}
["10"]
[null,null,null,null,null,"Форма 1.0.1 Основные параметры раскрываемой информации 1"]
[]
[null,null,null,null,null,"Параметры формы",null,null,"Описание параметров формы"]
[null,null,null,null,null,"№ п/п","Наименование параметра","Информация"]
[null,null,null,null,null,"1",2,3,4,4]
[null,null,null,null,null,1,"Дата заполнения/внесения изменений",{"$f":"IF(dateCh=\"\",\"\",dateCh)","v":"02.06.2021"},"Указывается календарная дата первичного заполнения или внесения изменений в форму в виде «ДД.ММ.ГГГГ»."]
[1,null,null,null,null,{"$f":"\"2.\" &mergeValue(A8)","v":"2.1"},"Наименование централизованной системы коммунальной инфраструктуры",null,"Указывается наименование централизованной системы холодного водоснабжения/горячего водоснабжения/водоотведения/теплоснабжения, к которой относится размещаемая информация.\nВ случае наличия нескольких централизованных систем коммунальной инфраструктуры, информация по каждой из них указывается в отдельной строке."]
[null,null,null,null,null,{"$f":"\"3.\" &mergeValue(A9)","v":"3.1"},"Наименование регулируемого вида деятельности",null,"Указывается наименование вида регулируемой деятельности."]
[null,null,null,null,null,{"$f":"\"4.\"&mergeValue(A10)","v":"4.1"},"Территория оказания услуги по регулируемому виду деятельности","x"]
[null,1,null,null,null,{"$f":"\"4.\"&mergeValue(A11) &\".\"&mergeValue(B11)","v":"4.1.1"},"Субъект Российской Федерации",{"$f":"IF(region_name=\"\",\"\",region_name)","v":"Ленинградская область"},"Указывается наименование субъекта Российской Федерации"]
[null,null,1,null,null,{"$f":"\"4.\"&mergeValue(A12) &\".\"&mergeValue(B12)&\".\"&mergeValue(C12)","v":"4.1.1.1"},"муниципальный район",null,"Указывается наименование муниципального района, на территории которого организация оказывает услуги по регулируемому виду деятельности."]
[null,null,null,1,null,{"$f":"\"4.\"&mergeValue(A13) &\".\"&mergeValue(B13)&\".\"&mergeValue(C13)&\".\"&mergeValue(D13)","v":"4.1.1.1.1"},"муниципальное образование",null,"Указывается наименование и код муниципального района, муниципального образования в соответствии с Общероссийским классификатором территорий муниципальных образований (далее - ОКТМО), входящего в муниципальный район, на территории которого организация оказывает услуги по регулируемому виду деятельности.\nВ случае оказания услуг по регулируемому виду деятельности на территории нескольких муниципальных районов (муниципальных образований) данные по каждому их них указываются в отдельной строке."]
[null,null,null,null,null,null,"Добавить МО"]
[null,null,null,null,null,null,"Добавить МР"]
[null,null,null,null,null,null,"Добавить территорию"]
[null,null,null,null,null,null,"Добавить ЦС"]
[]
[null,null,null,null,null,null,"  1 Информация размещается при раскрытии информации по каждой из форм."]

{"sheet":"Форма 1.11.3 | Т-подкл","index":18,"n_rows":32,"n_cols":40,"rows_kept":32,"cut":false,"hidden":true,"merged":[[12,28,12,35],[14,12,16,12],[14,11,16,11],[6,13,6,19],[7,13,7,19],[8,13,8,19],[9,13,9,19],[12,17,12,22],[11,17,11,22],[10,17,10,22],[10,11,10,12],[11,11,11,12],[14,24,16,27],[13,11,13,36],[14,13,16,15],[15,30,15,31],[18,0,28,0],[19,1,27,1],[20,2,26,2],[21,3,25,3],[21,10,25,10],[21,8,25,8],[21,9,25,9],[21,11,25,11],[21,17,23,17],[21,20,23,20],[19,13,19,36],[21,24,22,24],[17,20,17,23],[17,16,17,19],[17,13,17,15],[21,12,25,12],[21,15,24,15],[21,13,24,13],[21,19,23,19],[20,13,20,36],[21,21,22,21],[21,14,24,14],[4,11,4,20],[13,37,16,37],[21,37,26,37],[14,36,16,36],[14,16,16,19],[14,20,16,23],[21,18,23,18],[21,22,22,22],[21,16,24,16],[14,28,14,34],[14,35,16,35],[21,23,22,23],[15,28,15,29],[15,32,15,34],[18,13,18,36],[16,33,16,34]]}
[]
[]
[]
[]
[null,null,null,null,null,null,null,null,null,null,null,"Форма 1.11.3 Информация о предложении величин тарифов на подключение к централизованной системе горячего водоснабжения1"]
[]
[]
[null,null,null,null,null,null,null,null,null,null,null,null,{"$f":"\"Дата подачи заявления об \"&IF(datePr_ch=\"\",\"утверждении\",\"изменении\") & \" тарифов\"","v":"Дата подачи заявления об утверждении тарифов"},{"$f":"IF(datePr_ch=\"\",IF(datePr=\"\",\"\",datePr),datePr_ch)","v":"29.04.2021"}]
[null,null,null,null,null,null,null,null,null,null,null,null,{"$f":"\"Номер подачи заявления об \"&IF(numberPr_ch=\"\",\"утверждении\",\"изменении\") & \" тарифов\"","v":"Номер подачи заявления об утверждении тарифов"},{"$f":"IF(numberPr_ch=\"\",IF(numberPr=\"\",\"\",numberPr),numberPr_ch)","v":"240-04/21"}]
[]
[null,null,null,null,null,null,null,null,null,null,null,null,null,null,null,null,null,null,null,null,null,null,null,null,null,null,null,null,"NDS","woNDS","NDS","woNDS"]
[null,null,null,null,null,null,null,null,null,null,null,null,null,null,null,null,null,null,null,null,null,null,null,null,null,null,null,null,null,null,null,null,null,null,null,"dp"]
[]
[null,null,null,null,null,null,null,null,null,null,null,"Параметры формы",null,null,null,null,null,null,null,null,null,null,null,null,null,null,null,null,null,null,null,null,null,null,null,null,null,"Описание параметров формы"]
[null,null,null,null,null,null,null,null,null,null,null,"№ п/п","Параметр дифференциации тарифа/Заявитель","Подключаемая нагрузка водопроводной сети, куб. м/сут",null,null,"Диапазон диаметров водопроводной сети, мм",null,null,null,"Протяженность водопроводной сети, км",null,null,null,"Условия прокладки сетей",null,null,null,"Период действия тарифа",null,null,null,null,null,null,"Наличие других периодов действия тарифа","Добавить период"]
[null,null,null,null,null,null,null,null,null,null,null,null,null,null,null,null,null,null,null,null,null,null,null,null,null,null,null,null,"Ставка тарифа за подключаемую нагрузку водопроводной сети, тыс. руб./куб. м в сут",null,"Ставка тарифа за протяженность водопроводной сети диаметром d, тыс. руб./км",null,"Период действия"]
[null,null,null,null,null,null,null,null,null,null,null,null,null,null,null,null,null,null,null,null,null,null,null,null,null,null,null,null,"С НДС","Без НДС","С НДС","Без НДС","Дата начала","Дата окончания"]
[null,null,null,null,null,null,null,null,null,null,1,"1","2",{"$f":"OFFSET(N18,0,-1)+1","v":3},null,null,{"$f":"OFFSET(Q18,0,-3)+1","v":4},null,null,null,{"$f":"OFFSET(U18,0,-4)+1","v":5},null,null,null,null,null,{"$f":"OFFSET(U18,0,0)+1","v":6},{"$f":"AA18","v":6},{"$f":"OFFSET(AC18,0,-1)+1","v":7},8,9,10,11,12,13,14,null,15]
[1,null,null,null,null,null,null,null,null,null,null,{"$f":"mergeValue(A19)","v":1},"Наименование тарифа",null,null,null,null,null,null,null,null,null,null,null,null,null,null,null,null,null,null,null,null,null,null,null,null,"Указывается наименование тарифа в случае подачи предложения по нескольким тарифам.\nВ случае наличия нескольких тарифов информация по ним указывается в отдельных строках."]
[null,1,null,null,null,null,null,null,null,null,null,{"$f":"mergeValue(A20) &\".\"& mergeValue(B20)","v":"1.1"},"Территория действия тарифа",null,null,null,null,null,null,null,null,null,null,null,null,null,null,null,null,null,null,null,null,null,null,null,null,"Указывается наименование территории действия тарифа при наличии дифференциации тарифа по территориальному признаку.\nВ случае дифференциации тарифов по территориальному признаку информация по ним указывается в отдельных строках."]
[null,null,1,null,null,null,null,null,null,null,null,{"$f":"mergeValue(A21) &\".\"& mergeValue(B21)&\".\"& mergeValue(C21)","v":"1.1.1"},"Наименование централизованной системы горячего водоснабжения",null,null,null,null,null,null,null,null,null,null,null,null,null,null,null,null,null,null,null,null,null,null,null,null,"Указывается наименование централизованной системы горячего водоснабжения при наличии дифференциации тарифа по централизованным системам горячего водоснабжения.\nВ случае дифференциации тарифов по централизованным системам горячего водоснабжения информация по ним указывается в отдельных строках."]
[null,null,null,1,null,null,null,null,null,null,null,{"$f":"mergeValue(A22) &\".\"& mergeValue(B22)&\".\"& mergeValue(C22)&\".\"& mergeValue(D22)","v":"1.1.1.1"},null,null,"1",null,"нет",null,1,null,"нет",null,"1",null,"нет",null,1,null,null,null,null,null,null,"да",null,"нет",null,"В колодке «Параметр дифференциации тарифа/Заявитель» указывается наименование категории потребителей/заявителя, к которой относится тариф.\nДаты начала и окончания указываются в виде «ДД.ММ.ГГГГ».\nВ случае отсутствия даты окончания тарифа в колонке «Дата окончания» указывается «Нет».\nВ случае наличия дифференциации по категориям потребителей/заявителям, подключаемой нагрузке, диапазону диаметров, протяженности, условиям прокладки водопроводной сети информация по ним указывается в отдельных строках.\nВ случае дифференциации по периодам действия тарифа информация по ним указывается в отдельных колонках.",{"$f":"strCheckDateOnDP(AC22:AK22,List06_10_DP)","v":""},{"$f":"IF(AND(COUNTIF(AO18:AO26,AO22)>1,AO22<>\"\"),\"ErrUnique:HasDoubleConn\",\"\")","v":""}]
[null,null,null,null,null,null,null,null,null,null,null,null,null,null,null,null,null,null,null,null,null,null,null,null,null,null,null,null,null,null,null,{"$f":"AG22 & \"-\" & AI22","v":"-"},null,null,null,"нет"]
[]
[]
[null,null,null,null,null,null,null,null,null,null,null,null,null,null,null,"Добавить подключаемую нагрузку"]
[null,null,null,null,null,null,null,null,null,null,null,null,"Добавить строку"]
[null,null,null,null,null,null,null,null,null,null,null,null,"Добавить наименование системы водоснабжения"]
[null,null,null,null,null,null,null,null,null,null,null,null,"Добавить территорию действия тарифа"]
[null,null,null,null,null,null,null,null,null,null,null,null,"Добавить наименование тарифа"]
[]
[null,null,null,null,null,null,null,null,null,null,null,1,"При размещении информации дополнительно указывается дата подачи заявления об утверждении(изменении) тарифа и его номер."]

{"sheet":"Форма 1.0.2","index":19,"n_rows":15,"n_cols":13,"rows_kept":15,"cut":false,"hidden":true,"merged":[[4,3,4,9],[14,4,14,9],[11,10,12,10],[7,3,7,9],[8,4,8,5],[7,10,9,10],[8,6,8,9],[8,3,9,3]]}
[]
[]
[]
[]
[null,null,null,"Форма 1.0.2 Информация о публикации в печатных изданиях 2"]
[]
[]
[null,null,null,"Параметры формы",null,null,null,null,null,null,"Описание параметров формы"]
[null,null,null,"№ п/п","Форма публикации",null,"Официальное печатное издание"]
[null,null,null,null,"Номер","Наименование","Наименование","Номер","Дата выпуска","Ссылка на документ"]
[null,null,null,"1","2","3","4","5","6","7","8"]
["3","",null,"1",null,null,null,null,null,null,"В колонке «Дата выпуска» дата выпуска печатного издания указывается в виде «ДД.ММ.ГГГГ».\nВ колонке «Ссылка на документ» указывается ссылка на отсканированную копию печатного издания, предварительно загруженную в хранилище федеральной государственной информационной системы «Единая информационно-аналитическая система «Федеральный орган регулирования - региональные органы регулирования - субъекты регулирования» (далее – ФГИС ЕИАС), с опубликованной информацией.\nВ случае публикации информации в нескольких печатных изданиях информация по каждому из них указывается в отдельной строке.",null,{"$f":"IF(ISERROR(INDEX(kind_of_nameforms,MATCH(E12,kind_of_forms,0),1)),\"\",INDEX(kind_of_nameforms,MATCH(E12,kind_of_forms,0),1))","v":""}]
[null,null,null,null,"Добавить строку"]
[]
[null,null,null,null,"2 Размещается информация по каждой из форм раскрытия, данные в которой относятся к муниципальному образованию, в котором отсутствует доступ в сеть «Интернет»."]

{"sheet":"Сведения об изменении","index":20,"n_rows":15,"n_cols":5,"rows_kept":15,"cut":false,"hidden":true,"merged":[[6,3,6,4],[14,3,14,4]]}
[]
[]
[]
[]
[]
[]
[null,null,null,"Сведения об изменениях в первоначально опубликованной информации*"]
[]
[null,null,null,"№ п/п","Сведения"]
[null,null,null,"1","2"]
[null,null,null,0]
[null,null,null,1]
[null,null,null,null,"Добавить"]
[]
[null,null,null,"* Лист заполняется в случае, если на Титульном листе в поле \"Тип отчета\" выбрано значение «Изменения в раскрытой ранее информации»."]

{"sheet":"Комментарии","index":21,"n_rows":12,"n_cols":5,"rows_kept":12,"cut":false,"hidden":true,"merged":[[6,3,6,4]]}
[]
[]
[]
[]
[]
[]
[null,null,null,"Комментарии"]
[]
[null,null,null,"№ п/п","Комментарий"]
[null,null,null,"1","2"]
[null,null,null,0]
[null,null,null,null,"Добавить"]

{"sheet":"Проверка","index":22,"n_rows":4,"n_cols":4,"rows_kept":4,"cut":false,"hidden":true,"merged":[[1,1,1,3]]}
[]
[null,"Результат проверки"]
[]
[null,"Ссылка","Причина","Статус"]

{"sheet":"et_union_hor","index":23,"n_rows":326,"n_cols":47,"rows_kept":326,"cut":false,"hidden":true,"merged":[[96,38,97,38],[96,39,97,39],[96,40,97,40],[96,41,97,41],[91,14,91,42],[92,14,92,42],[93,14,93,42],[94,14,94,42],[95,14,95,42],[96,27,97,27],[314,5,315,5],[314,11,315,11],[308,3,309,3],[314,3,315,3],[314,4,315,4],[308,4,309,4],[308,5,309,5],[308,11,309,11],[96,43,99,43],[96,13,97,13],[96,24,97,24],[96,25,97,25],[147,14,147,21],[116,17,117,17],[128,14,128,21],[130,14,130,21],[180,10,184,10],[165,10,169,10],[165,8,169,8],[165,9,169,9],[250,5,251,5],[250,6,251,6],[164,13,164,37],[149,14,149,21],[91,0,103,0],[92,1,102,1],[93,2,101,2],[94,3,100,3],[94,7,100,7],[95,4,99,4],[95,8,99,8],[96,5,98,5],[96,26,97,26],[96,9,98,9],[116,18,117,18],[144,14,144,21],[111,14,111,21],[110,14,110,21],[146,14,146,21],[133,18,134,18],[285,0,293,0],[289,2,291,2],[290,8,291,8],[165,13,169,13],[178,1,186,1],[250,7,251,7],[163,1,171,1],[180,8,184,8],[180,9,184,9],[180,13,183,13],[165,3,169,3],[177,0,187,0],[162,0,172,0],[288,1,292,1],[245,2,246,2],[250,2,251,2],[179,2,185,2],[164,2,170,2],[165,38,170,38],[165,25,166,25],[165,24,166,24],[165,20,167,20],[133,20,134,20],[165,18,167,18],[179,13,179,36],[165,16,168,16],[165,22,166,22],[178,13,178,36],[165,15,168,15],[165,17,168,17],[165,23,166,23],[145,14,145,21],[165,14,168,14],[165,19,167,19],[148,14,148,21],[150,19,151,19],[165,21,167,21],[177,13,177,36],[162,13,162,37],[163,13,163,37],[28,0,39,0],[29,1,38,1],[30,2,37,2],[31,3,36,3],[32,4,35,4],[44,0,55,0],[48,4,51,4],[45,1,54,1],[46,2,53,2],[60,0,71,0],[79,3,84,3],[63,8,68,8],[79,8,84,8],[81,18,82,18],[245,3,246,3],[245,4,246,4],[180,3,184,3],[61,1,70,1],[62,2,69,2],[76,0,87,0],[77,1,86,1],[78,2,85,2],[133,17,134,17],[150,17,151,17],[165,11,169,11],[150,18,151,18],[180,17,182,17],[165,12,169,12],[180,15,183,15],[180,16,183,16],[180,11,184,11],[180,12,184,12],[180,14,183,14],[65,19,66,19],[60,14,60,21],[61,14,61,21],[62,14,62,21],[47,3,52,3],[81,20,82,20],[77,14,77,21],[78,14,78,21],[80,4,83,4],[63,3,68,3],[64,4,67,4],[49,20,50,20],[63,14,63,21],[64,14,64,21],[80,9,83,9],[65,20,66,20],[65,17,66,17],[47,8,52,8],[79,14,79,21],[80,14,80,21],[24,22,26,22],[49,18,50,18],[33,17,34,17],[33,19,34,19],[48,9,51,9],[49,17,50,17],[32,9,35,9],[25,15,25,16],[33,22,35,22],[28,14,28,21],[29,14,29,21],[30,14,30,21],[31,14,31,21],[32,14,32,21],[49,13,50,13],[49,22,51,22],[8,11,9,11],[64,9,67,9],[25,14,26,14],[27,14,27,20],[33,13,34,13],[13,13,14,13],[8,4,11,4],[8,13,9,13],[8,10,10,10],[8,9,10,9],[8,5,11,5],[13,4,16,4],[13,8,15,8],[8,12,9,12],[13,5,16,5],[8,6,11,6],[31,8,36,8],[8,7,10,7],[33,20,34,20],[24,20,26,20],[65,18,66,18],[65,13,66,13],[13,6,16,6],[47,7,52,7],[8,3,11,3],[13,3,16,3],[33,18,34,18],[8,14,9,14],[24,17,25,19],[8,8,10,8],[13,7,15,7],[13,9,15,9],[148,8,153,8],[131,8,136,8],[114,8,119,8],[13,10,15,10],[49,19,50,19],[115,9,118,9],[149,9,152,9],[13,12,14,12],[13,14,14,14],[81,17,82,17],[13,11,14,11],[24,14,24,16],[132,14,132,21],[26,18,26,19],[132,9,135,9],[133,19,134,19],[196,24,197,24],[196,23,197,23],[196,22,197,22],[180,24,181,24],[196,21,197,21],[196,16,199,16],[196,20,198,20],[196,19,198,19],[196,17,198,17],[196,18,198,18],[180,37,185,37],[150,20,151,20],[180,23,181,23],[180,19,182,19],[180,22,181,22],[180,21,181,21],[180,20,182,20],[180,18,182,18],[44,14,44,21],[45,14,45,21],[46,14,46,21],[47,14,47,21],[48,14,48,21],[76,14,76,21],[81,22,83,22],[81,19,82,19],[65,22,67,22],[112,14,112,21],[113,14,113,21],[116,19,117,19],[115,14,115,21],[129,14,129,21],[116,20,117,20],[127,14,127,21]]}
[]
["et_Comm"]
[]
[]
[]
[]
["et_List02(_1,_2,_3)"]
[]
[null,null,null,1,null,null,"нет",null,1,null,"нет",null,"1",null,"нет",null,"1"]
[null,null,null,null,null,null,null,null,null,null,null,null,null,null,null,null,null,"Добавить ЦС ГВС для дифференциации"]
[null,null,null,null,null,null,null,null,null,null,null,null,null,"Добавить территорию для дифференциации"]
[]
[]
[null,null,null,null,null,null,null,null,1,null,"нет",null,"1",null,"нет",null,"1"]
[null,null,null,null,null,null,null,null,null,null,null,null,null,null,null,null,null,"Добавить ЦС ГВС для дифференциации"]
[null,null,null,null,null,null,null,null,null,null,null,null,null,"Добавить территорию для дифференциации"]
[]
[]
["et_List06(_1,_2,_3)",null,"1"]
[]
[]
[]
[]
[]
[null,null,null,null,null,null,null,null,null,null,null,null,null,null,"Величина установленного тарифа",null,null,"Срок действия цены (тарифа) на тепловую энергию (мощность)",null,null,"Наличие других периодов действия тарифа"]
[null,null,null,null,null,null,null,null,null,null,null,null,null,null,"Одноставочный тариф, руб./Гкал","Двухставочный тариф"]
[null,null,null,null,null,null,null,null,null,null,null,null,null,null,null,"ставка за тепловую  энергию, руб./Гкал","ставка за содержание тепловой мощности, тыс.руб./Гкал/ч/мес","дата начала","дата окончания"]
[null,null,null,null,null,null,null,null,null,null,null,null,"7"]
[1,null,null,null,null,null,null,null,null,null,null,{"$f":"mergeValue(A29)","v":1},"Наименование тарифа",null,null,null,null,null,null,null,null,null,"Указывается наименование тарифа в случае утверждения нескольких тарифов.\nВ случае наличия нескольких тарифов информация по ним указывается в отдельных строках."]
[null,1,null,null,null,null,null,null,null,null,null,{"$f":"mergeValue(A30) &\".\"& mergeValue(B30)","v":"1.1"},"Территория действия тарифа",null,null,null,null,null,null,null,null,null,"Указывается наименование территории действия тарифа при наличии дифференциации тарифа по территориальному признаку.\nВ случае дифференциации тарифов по территориальному признаку информация по ним указывается в отдельных строках."]
[null,null,1,null,null,null,null,null,null,null,null,{"$f":"mergeValue(A31) &\".\"& mergeValue(B31)&\".\"& mergeValue(C31)","v":"1.1.1"},"Наименование централизованной системы горячего водоснабжения",null,null,null,null,null,null,null,null,null,"Указывается наименование централизованной системы горячего водоснабжения при наличии дифференциации тарифа по централизованным системам горячего водоснабжения.\nВ случае дифференциации тарифов по централизованным системам горячего водоснабжения информация по ним указывается в отдельных строках."]
[null,null,null,1,null,null,null,null,null,null,null,{"$f":"mergeValue(A32) &\".\"& mergeValue(B32)&\".\"& mergeValue(C32)&\".\"& mergeValue(D32)","v":"1.1.1.1"},"Наименование признака дифференциации",null,null,null,null,null,null,null,null,null,"Указывается наименование дополнительного признака дифференциации (при наличии).\nДифференциация тарифа осуществляется в соответствии с законодательством в сфере водоснабжении и водоотведении.\nВ случае дифференциации тарифов по дополнительным признакам информация по ним указывается в отдельных строках."]
[null,null,null,null,1,null,null,null,null,null,null,{"$f":"mergeValue(A33) &\".\"& mergeValue(B33)&\".\"& mergeValue(C33)&\".\"& mergeValue(D33)&\".\"& mergeValue(E33)","v":"1.1.1.1.1"},"Группа потребителей",null,null,null,null,null,null,null,null,null,"Указывается группа потребителей при наличии дифференциации тарифа по группам потребителей.\nЗначение выбирается из перечня: Организации-перепродавцы; Бюджетные организации; Население; Прочие; Без дифференциации.\nВ случае дифференциации тарифов группам потребителей информация по ним указывается в отдельных строках.",null,{"$f":"strCheckUnique(Z33:Z36)","v":""}]
[null,null,null,null,null,1,null,null,null,null,null,{"$f":"mergeValue(A34) &\".\"& mergeValue(B34)&\".\"& mergeValue(C34)&\".\"& mergeValue(D34)&\".\"& mergeValue(E34)&\".\"& mergeValue(F34)","v":"1.1.1.1.1.1"},null,null,null,null,null,null,"да",null,"нет",null,"В колонке «Параметр дифференциации тарифов» указывается значение дополнительного признака дифференциации.\nПри утверждении двухставочного тарифа колонка «Одноставочный тариф» не заполняется.\nПри утверждении одноставочного тарифа колонки в блоке «Двухставочный тариф» не заполняются.\nДаты начала и окончания действия тарифов указываются в виде «ДД.ММ.ГГГГ».\nВ случае отсутствия даты окончания действия тарифа в колонке «Дата окончания» указывается «Нет».\nВ случае наличия нескольких значений признака дифференциации тарифов информация по ним указывается в отдельных строках.\nВ случае дифференциации тарифов по периодам действия тарифа информация по ним указывается в отдельных колонках.",{"$f":"strCheckDate(O35:V35)","v":""},null,{"$f":"IF(M34=\"\",\"\",M34 )","v":""}]
[null,null,null,null,null,null,null,null,null,null,null,null,null,null,null,null,{"$f":"R34 & \"-\" & T34","v":"-"}]
[null,null,null,null,null,null,null,null,null,null,null,null,"Добавить значение признака дифференциации"]
[null,null,null,null,null,null,null,null,null,null,null,null,"Добавить группу потребителей"]
[null,null,null,null,null,null,null,null,null,null,null,null,"Добавить наименование признака дифференциации"]
[null,null,null,null,null,null,null,null,null,null,null,null,"Добавить наименование системы водоснабжения"]
[null,null,null,null,null,null,null,null,null,null,null,null,"Добавить территорию действия тарифа"]
[null,null,null,null,null,null,null,null,null,null,null,null,"Добавить наименование тарифа"]
[]
["et_List06(_1,_2,_3)",null,"2"]
[]
[1,null,null,null,null,null,null,null,null,null,null,{"$f":"mergeValue(A45)","v":1},"Наименование тарифа",null,null,null,null,null,null,null,null,null,"Указывается наименование тарифа в случае подачи предложения по нескольким тарифам.\nВ случае наличия нескольких тарифов информация по ним указывается в отдельных строках."]
[null,1,null,null,null,null,null,null,null,null,null,{"$f":"mergeValue(A46) &\".\"& mergeValue(B46)","v":"1.1"},"Территория действия тарифа",null,null,null,null,null,null,null,null,null,"Указывается наименование территории действия тарифа при наличии дифференциации тарифа по территориальному признаку.\nВ случае дифференциации тарифов по территориальному признаку информация по ним указывается в отдельных строках."]
[null,null,1,null,null,null,null,null,null,null,null,{"$f":"mergeValue(A47) &\".\"& mergeValue(B47)&\".\"& mergeValue(C47)","v":"1.1.1"},"Наименование централизованной системы горячего водоснабжения",null,null,null,null,null,null,null,null,null,"Указывается наименование централизованной системы горячего водоснабжения при наличии дифференциации тарифа по централизованным системам горячего водоснабжения.\nВ случае дифференциации тарифов по централизованным системам горячего водоснабжения информация по ним указывается в отдельных строках."]
[null,null,null,1,null,null,null,null,null,null,null,{"$f":"mergeValue(A48) &\".\"& mergeValue(B48)&\".\"& mergeValue(C48)&\".\"& mergeValue(D48)","v":"1.1.1.1"},"Наименование признака дифференциации",null,null,null,null,null,null,null,null,null,"Указывается наименование дополнительного признака дифференциации (при наличии).\nДифференциация тарифа осуществляется в соответствии с законодательством в сфере водоснабжения и водоотведения.\nВ случае дифференциации тарифов по дополнительным признакам информация по ним указывается в отдельных строках."]
[null,null,null,null,"1",null,null,null,null,null,null,{"$f":"mergeValue(A49) &\".\"& mergeValue(B49)&\".\"& mergeValue(C49)&\".\"& mergeValue(D49)&\".\"& mergeValue(E49)","v":"1.1.1.1.1"},"Группа потребителей",null,null,null,null,null,null,null,null,null,"Указывается группа потребителей при наличии дифференциации тарифа по группам потребителей.\nЗначение выбирается из перечня: Организации-перепродавцы; Бюджетные организации; Население; Прочие; Без дифференциации.\nВ случае дифференциации тарифов группам потребителей информация по ним указывается в отдельных строках.",null,{"$f":"strCheckUnique(Z49:Z52)","v":""}]
[null,null,null,null,null,1,null,null,null,null,null,{"$f":"mergeValue(A50) &\".\"& mergeValue(B50)&\".\"& mergeValue(C50)&\".\"& mergeValue(D50)&\".\"& mergeValue(E50)&\".\"& mergeValue(F50)","v":"1.1.1.1.1.1"},null,null,null,null,null,null,"да",null,"нет",null,"В колонке «Параметр дифференциации тарифов» указывается наименование поставщика в случае наличия дифференциации компонента двухставочного тарифа на холодную воду по поставщикам.\nПри подаче предложения на двухставочный тариф колонка «Одноставочный тариф» не заполняется.\nПри подаче предложения на одноставочный тариф колонки в блоке «Двухставочный тариф» не заполняются.\nВ случае однокомпонентного двухставочного тарифа данные указываются только в блоке «Двухставочный тариф (однокомпонентный)». В случае двухкомпонентного двухставочного тарифа данные указываются только в блоке «Двухставочный тариф (двухкомпонентный)»\nДаты начала и окончания действия тарифов указываются в виде «ДД.ММ.ГГГГ».\nВ случае отсутствия даты окончания действия тарифа в колонке «Дата окончания» указывается «Нет».\nВ случае дифференциации тарифа по периодам действия тарифа информация по ним указывается в отдельных колонках.\nВ случае отсутствия дифференциации компонента двухставочного тарифа на холодную воду по поставщикам данная строка не заполняется.\nВ случае дифференциации компонента двухставочного тарифа на холодную воду по поставщикам информация по ним указывается в отдельных строках.",{"$f":"strCheckDate(O51:V51)","v":""},null,{"$f":"IF(M50=\"\",\"\",M50 )","v":""}]
[null,null,null,null,null,null,null,null,null,null,null,null,null,null,null,null,{"$f":"R50 & \"-\" & T50","v":"-"}]
[null,null,null,null,null,null,null,null,null,null,null,null,"Добавить значение признака дифференциации"]
[null,null,null,null,null,null,null,null,null,null,null,null,"Добавить группу потребителей"]
[null,null,null,null,null,null,null,null,null,null,null,null,"Добавить наименование признака дифференциации"]
[null,null,null,null,null,null,null,null,null,null,null,null,"Добавить наименование системы водоснабжения"]
[null,null,null,null,null,null,null,null,null,null,null,null,"Добавить территорию действия тарифа"]
[null,null,null,null,null,null,null,null,null,null,null,null,"Добавить наименование тарифа"]
[]
["et_List06(_1,_2,_3)",null,"3"]
[]
[1,null,null,null,null,null,null,null,null,null,null,{"$f":"mergeValue(A61)","v":1},"Наименование тарифа",null,null,null,null,null,null,null,null,null,"Указывается наименование тарифа в случае утверждения нескольких тарифов.\nВ случае наличия нескольких тарифов информация по ним указывается в отдельных строках."]
[null,1,null,null,null,null,null,null,null,null,null,{"$f":"mergeValue(A62) &\".\"& mergeValue(B62)","v":"1.1"},"Территория действия тарифа",null,null,null,null,null,null,null,null,null,"Указывается наименование территории действия тарифа при наличии дифференциации тарифа по территориальному признаку.\nВ случае дифференциации тарифов по территориальному признаку информация по ним указывается в отдельных строках."]
[null,null,1,null,null,null,null,null,null,null,null,{"$f":"mergeValue(A63) &\".\"& mergeValue(B63)&\".\"& mergeValue(C63)","v":"1.1.1"},"Наименование централизованной системы горячего водоснабжения",null,null,null,null,null,null,null,null,null,"Указывается наименование централизованной системы горячего водоснабжения при наличии дифференциации тарифа по централизованным системам горячего водоснабжения.\nВ случае дифференциации тарифов по централизованным системам горячего водоснабжения информация по ним указывается в отдельных строках."]
[null,null,null,1,null,null,null,null,null,null,null,{"$f":"mergeValue(A64) &\".\"& mergeValue(B64)&\".\"& mergeValue(C64)&\".\"& mergeValue(D64)","v":"1.1.1.1"},"Наименование признака дифференциации",null,null,null,null,null,null,null,null,null,"Указывается наименование дополнительного признака дифференциации (при наличии).\nДифференциация тарифа осуществляется в соответствии с законодательством в сфере водоснабжении и водоотведении.\nВ случае дифференциации тарифов по дополнительным признакам информация по ним указывается в отдельных строках."]
[null,null,null,null,1,null,null,null,null,null,null,{"$f":"mergeValue(A65) &\".\"& mergeValue(B65)&\".\"& mergeValue(C65)&\".\"& mergeValue(D65)&\".\"& mergeValue(E65)","v":"1.1.1.1.1"},"Группа потребителей",null,null,null,null,null,null,null,null,null,"Указывается группа потребителей при наличии дифференциации тарифа по группам потребителей.\nЗначение выбирается из перечня: Организации-перепродавцы; Бюджетные организации; Население; Прочие; Без дифференциации.\nВ случае дифференциации тарифов группам потребителей информация по ним указывается в отдельных строках.",null,{"$f":"strCheckUnique(Z65:Z68)","v":""}]
[null,null,null,null,null,1,null,null,null,null,null,{"$f":"mergeValue(A66) &\".\"& mergeValue(B66)&\".\"& mergeValue(C66)&\".\"& mergeValue(D66)&\".\"& mergeValue(E66)&\".\"& mergeValue(F66)","v":"1.1.1.1.1.1"},null,null,null,null,null,null,"да",null,"нет",null,"В колонке «Параметр дифференциации тарифов» указывается значение дополнительного признака дифференциации.\nПри утверждении двухставочного тарифа колонка «Одноставочный тариф» не заполняется.\nПри утверждении одноставочного тарифа колонки в блоке «Двухставочный тариф» не заполняются.\nДаты начала и окончания действия тарифов указываются в виде «ДД.ММ.ГГГГ».\nВ случае отсутствия даты окончания действия тарифа в колонке «Дата окончания» указывается «Нет».\nВ случае наличия нескольких значений признака дифференциации тарифов информация по ним указывается в отдельных строках.\nВ случае дифференциации тарифов по периодам действия тарифа информация по ним указывается в отдельных колонках.",{"$f":"strCheckDate(O67:V67)","v":""},null,{"$f":"IF(M66=\"\",\"\",M66 )","v":""}]
[null,null,null,null,null,null,null,null,null,null,null,null,null,null,null,null,{"$f":"R66 & \"-\" & T66","v":"-"}]
[null,null,null,null,null,null,null,null,null,null,null,null,"Добавить значение признака дифференциации"]
[null,null,null,null,null,null,null,null,null,null,null,null,"Добавить группу потребителей"]
[null,null,null,null,null,null,null,null,null,null,null,null,"Добавить наименование признака дифференциации"]
[null,null,null,null,null,null,null,null,null,null,null,null,"Добавить наименование системы водоснабжения"]
[null,null,null,null,null,null,null,null,null,null,null,null,"Добавить территорию действия тарифа"]
[null,null,null,null,null,null,null,null,null,null,null,null,"Добавить наименование тарифа"]
[]
["et_List06(_1,_2,_3)",null,"4"]
[]
[1,null,null,null,null,null,null,null,null,null,null,{"$f":"mergeValue(A77)","v":1},"Наименование тарифа",null,null,null,null,null,null,null,null,null,"Указывается наименование тарифа в случае утверждения нескольких тарифов.\nВ случае наличия нескольких тарифов информация по ним указывается в отдельных строках."]
[null,1,null,null,null,null,null,null,null,null,null,{"$f":"mergeValue(A78) &\".\"& mergeValue(B78)","v":"1.1"},"Территория действия тарифа",null,null,null,null,null,null,null,null,null,"Указывается наименование территории действия тарифа при наличии дифференциации тарифа по территориальному признаку.\nВ случае дифференциации тарифов по территориальному признаку информация по ним указывается в отдельных строках."]
[null,null,1,null,null,null,null,null,null,null,null,{"$f":"mergeValue(A79) &\".\"& mergeValue(B79)&\".\"& mergeValue(C79)","v":"1.1.1"},"Наименование централизованной системы горячего водоснабжения",null,null,null,null,null,null,null,null,null,"Указывается наименование централизованной системы горячего водоснабжения при наличии дифференциации тарифа по централизованным системам горячего водоснабжения.\nВ случае дифференциации тарифов по централизованным системам горячего водоснабжения информация по ним указывается в отдельных строках."]
[null,null,null,1,null,null,null,null,null,null,null,{"$f":"mergeValue(A80) &\".\"& mergeValue(B80)&\".\"& mergeValue(C80)&\".\"& mergeValue(D80)","v":"1.1.1.1"},"Наименование признака дифференциации",null,null,null,null,null,null,null,null,null,"Указывается наименование дополнительного признака дифференциации (при наличии).\nДифференциация тарифа осуществляется в соответствии с законодательством в сфере водоснабжении и водоотведении.\nВ случае дифференциации тарифов по дополнительным признакам информация по ним указывается в отдельных строках."]
[null,null,null,null,1,null,null,null,null,null,null,{"$f":"mergeValue(A81) &\".\"& mergeValue(B81)&\".\"& mergeValue(C81)&\".\"& mergeValue(D81)&\".\"& mergeValue(E81)","v":"1.1.1.1.1"},"Группа потребителей",null,null,null,null,null,null,null,null,null,"Указывается группа потребителей при наличии дифференциации тарифа по группам потребителей.\nЗначение выбирается из перечня: Организации-перепродавцы; Бюджетные организации; Население; Прочие; Без дифференциации.\nВ случае дифференциации тарифов группам потребителей информация по ним указывается в отдельных строках.",null,{"$f":"strCheckUnique(Z81:Z84)","v":""}]
[null,null,null,null,null,1,null,null,null,null,null,{"$f":"mergeValue(A82) &\".\"& mergeValue(B82)&\".\"& mergeValue(C82)&\".\"& mergeValue(D82)&\".\"& mergeValue(E82)&\".\"& mergeValue(F82)","v":"1.1.1.1.1.1"},null,null,null,null,null,null,"да",null,"нет",null,"В колонке «Параметр дифференциации тарифов» указывается значение дополнительного признака дифференциации.\nПри утверждении двухставочного тарифа колонка «Одноставочный тариф» не заполняется.\nПри утверждении одноставочного тарифа колонки в блоке «Двухставочный тариф» не заполняются.\nДаты начала и окончания действия тарифов указываются в виде «ДД.ММ.ГГГГ».\nВ случае отсутствия даты окончания действия тарифа в колонке «Дата окончания» указывается «Нет».\nВ случае наличия нескольких значений признака дифференциации тарифов информация по ним указывается в отдельных строках.\nВ случае дифференциации тарифов по периодам действия тарифа информация по ним указывается в отдельных колонках.",{"$f":"strCheckDate(O83:V83)","v":""},null,{"$f":"IF(M82=\"\",\"\",M82 )","v":""}]
[null,null,null,null,null,null,null,null,null,null,null,null,null,null,null,null,{"$f":"R82 & \"-\" & T82","v":"-"}]
[null,null,null,null,null,null,null,null,null,null,null,null,"Добавить значение признака дифференциации"]
[null,null,null,null,null,null,null,null,null,null,null,null,"Добавить группу потребителей"]
[null,null,null,null,null,null,null,null,null,null,null,null,"Добавить наименование признака дифференциации"]
[null,null,null,null,null,null,null,null,null,null,null,null,"Добавить наименование системы водоснабжения"]
[null,null,null,null,null,null,null,null,null,null,null,null,"Добавить территорию действия тарифа"]
[null,null,null,null,null,null,null,null,null,null,null,null,"Добавить наименование тарифа"]
[null,null,null,null,null,null,"et_List06(_1,_2,_3)",null,"5"]
[]
[1,null,null,null,null,null,null,null,null,null,null,{"$f":"mergeValue(A92)","v":1},"Наименование тарифа",null,null,null,null,null,null,null,null,null,null,null,null,null,null,null,null,null,null,null,null,null,null,null,null,null,null,null,null,null,null,"Указывается наименование тарифа в случае утверждения нескольких тарифов.\nВ случае наличия нескольких тарифов информация по ним указывается в отдельных строках."]
[null,1,null,null,null,null,null,null,null,null,null,{"$f":"mergeValue(A93) &\".\"& mergeValue(B93)","v":"1.1"},"Территория действия тарифа",null,null,null,null,null,null,null,null,null,null,null,null,null,null,null,null,null,null,null,null,null,null,null,null,null,null,null,null,null,null,"Указывается наименование территории действия тарифа при наличии дифференциации тарифа по территориальному признаку.\nВ случае дифференциации тарифов по территориальному признаку информация по ним указывается в отдельных строках."]
[null,null,1,null,null,null,null,null,null,null,null,{"$f":"mergeValue(A94) &\".\"& mergeValue(B94)&\".\"& mergeValue(C94)","v":"1.1.1"},"Наименование централизованной системы горячего водоснабжения",null,null,null,null,null,null,null,null,null,null,null,null,null,null,null,null,null,null,null,null,null,null,null,null,null,null,null,null,null,null,"Указывается наименование централизованной системы горячего водоснабжения при наличии дифференциации тарифа по централизованным системам горячего водоснабжения.\nВ случае дифференциации тарифов по централизованным системам горячего водоснабжения информация по ним указывается в отдельных строках."]
[null,null,null,1,null,null,null,null,null,null,null,{"$f":"mergeValue(A95) &\".\"& mergeValue(B95)&\".\"& mergeValue(C95)&\".\"& mergeValue(D95)","v":"1.1.1.1"},"Наименование признака дифференциации",null,null,null,null,null,null,null,null,null,null,null,null,null,null,null,null,null,null,null,null,null,null,null,null,null,null,null,null,null,null,"Указывается наименование дополнительного признака дифференциации (при наличии).\nДифференциация тарифа осуществляется в соответствии с законодательством в сфере водоснабжения и водоотведения.\nВ случае дифференциации тарифов по дополнительным признакам информация по ним указывается в отдельных строках."]
[null,null,null,null,"1",null,null,null,null,null,null,{"$f":"mergeValue(A96) &\".\"& mergeValue(B96)&\".\"& mergeValue(C96)&\".\"& mergeValue(D96)&\".\"& mergeValue(E96)","v":"1.1.1.1.1"},"Группа потребителей",null,null,null,null,null,null,null,null,null,null,null,null,null,null,null,null,null,null,null,null,null,null,null,null,null,null,null,null,null,null,"Указывается группа потребителей при наличии дифференциации тарифа по группам потребителей.\nЗначение выбирается из перечня: Организации-перепродавцы; Бюджетные организации; Население; Прочие; Без дифференциации.\nВ случае дифференциации тарифов группам потребителей информация по ним указывается в отдельных строках.",null,{"$f":"strCheckUnique(AU96:AU100)","v":""}]
[null,null,null,null,null,1,null,null,null,null,null,{"$f":"mergeValue(A97) &\".\"& mergeValue(B97)&\".\"& mergeValue(C97)&\".\"& mergeValue(D97)&\".\"& mergeValue(E97)&\".\"& mergeValue(F97)","v":"1.1.1.1.1.1"},null,null,null,null,null,null,null,null,null,null,null,null,null,"да",null,"да",null,null,null,null,null,null,null,null,null,null,null,"да",null,"нет",null,"В колонке «Параметр дифференциации тарифов» указывается значение дополнительного признака дифференциации, либо наименование поставщика в случае наличия дифференциации компонента двухставочного тарифа на холодную воду по поставщикам.\nПри подаче предложения на двухставочный тариф колонка «Одноставочный тариф» не заполняется.\nПри подаче предложения на одноставочный тариф колонки в блоке «Двухставочный тариф» не заполняются.\nВ случае утверждения однокомпонентного двухставочного тарифа данные указываются только в блоке «Двухставочный тариф (однокомпонентный)». \nВ случае утверждения двухкомпонентного двухставочного тарифа данные указываются только в блоке «Двухставочный тариф (двухкомпонентный)».\nДаты начала и окончания действия тарифов указываются в виде «ДД.ММ.ГГГГ».\nВ случае отсутствия даты окончания действия тарифа в колонке «Дата окончания» указывается «Нет».\nВ случае наличия нескольких значений признака дифференциации тарифов информация по ним указывается в отдельных строках.\nВ случае дифференциации тарифов по периодам действия тарифа информация по ним указывается в отдельных колонках.\nВ случае дифференциации компонента двухставочного тарифа на холодную воду по поставщикам строка \"Значение признака дифференциации\" не заполняется.\nВ случае отстутствия дифференциации компонента двухставочного тарифа на холодную воду по поставщикам строка \"Наименование поставщика\" не заполняется.",{"$f":"strCheckDate(O98:AQ98)","v":""},null,{"$f":"IF(M97=\"\",\"\",M97 )","v":""}]
[null,null,null,null,null,null,null,null,null,null,null,null,null,null,null,null,null,{"$f":"Y97 & \"-\" & AA97","v":"-"},null,null,null,null,null,null,null,null,null,null,null,null,null,{"$f":"AM97 & \"-\" & AO97","v":"-"}]
[]
[null,null,null,null,null,null,null,null,null,null,null,null,"Добавить значение признака дифференциации"]
[null,null,null,null,null,null,null,null,null,null,null,null,"Добавить группу потребителей"]
[null,null,null,null,null,null,null,null,null,null,null,null,"Добавить наименование признака дифференциации"]
[null,null,null,null,null,null,null,null,null,null,null,null,"Добавить наименование системы водоснабжения"]
[null,null,null,null,null,null,null,null,null,null,null,null,"Добавить территорию действия тарифа"]
[null,null,null,null,null,null,null,null,null,null,null,null,"Добавить наименование тарифа"]
[null,null,null,null,null,null,1,null,null,null,null,2,null,null,null,null,null,null,null,null,null,null,null,null,null,"нет",null,null,null,null,null,null,null,null,null,null,null,null,null,"нет"]
[]
[]
[null,null,null,null,null,null,"et_List06(_1,_2,_3)",null,"6"]
[]
[null,null,null,null,null,null,null,null,null,null,null,"1","Наименование тарифа"]
[null,null,null,null,null,null,null,null,null,null,null,"1.1","Территория действия тарифа"]
[null,null,null,null,null,null,null,null,null,null,null,"1.1.1","Наименование системы теплоснабжения "]
[null,null,null,null,null,null,null,null,null,null,null,"1.1.1.1","Источник тепловой энергии  "]
[]
[null,null,null,null,null,null,null,null,null,null,null,"1.1.1.1.1.1","Группа потребителей",null,null,null,null,null,null,null,null,null,null,null,{"$f":"strCheckUnique(Z116:Z119)","v":""}]
[null,null,null,null,null,null,null,1,null,null,null,null,null,null,null,null,null,null,"да",null,"нет",null,null,{"$f":"strCheckDate(O118:V118)","v":""},null,{"$f":"IF(M117=\"\",\"\",M117 )","v":""}]
[null,null,null,null,null,null,null,null,null,null,null,null,null,null,null,null,{"$f":"R117 & \"-\" & T117","v":"-"}]
[null,null,null,null,null,null,null,null,null,null,null,null,"Добавить вид теплоносителя (параметры теплоносителя)"]
[null,null,null,null,null,null,null,null,null,null,null,null,"Добавить группу потребителей"]
[]
[null,null,null,null,null,null,null,null,null,null,null,null,"Добавить источник тепловой энергии"]
[null,null,null,null,null,null,null,null,null,null,null,null,"Добавить наименование системы теплоснабжения"]
[null,null,null,null,null,null,null,null,null,null,null,null,"Добавить территорию действия тарифа"]
[]
[null,null,null,null,null,null,"et_List06(_1,_2,_3)",null,"7"]
[]
[null,null,null,null,null,null,null,null,null,null,null,"1","Наименование тарифа"]
[null,null,null,null,null,null,null,null,null,null,null,"1.1","Территория действия тарифа"]
[null,null,null,null,null,null,null,null,null,null,null,"1.1.1","Наименование системы теплоснабжения "]
[null,null,null,null,null,null,null,null,null,null,null,"1.1.1.1","Источник тепловой энергии  "]
[]
[null,null,null,null,null,null,null,null,null,null,null,"1.1.1.1.1.1","Группа потребителей",null,null,null,null,null,null,null,null,null,null,null,{"$f":"strCheckUnique(Z133:Z136)","v":""}]
[null,null,null,null,null,null,null,1,null,null,null,null,null,null,null,null,null,null,"да",null,"нет",null,null,{"$f":"strCheckDate(O135:V135)","v":""},null,{"$f":"IF(M134=\"\",\"\",M134 )","v":""}]
[null,null,null,null,null,null,null,null,null,null,null,null,null,null,null,null,{"$f":"R134 & \"-\" & T134","v":"-"}]
[null,null,null,null,null,null,null,null,null,null,null,null,"Добавить вид теплоносителя (параметры теплоносителя)"]
[null,null,null,null,null,null,null,null,null,null,null,null,"Добавить группу потребителей"]
[]
[null,null,null,null,null,null,null,null,null,null,null,null,"Добавить источник тепловой энергии"]
[null,null,null,null,null,null,null,null,null,null,null,null,"Добавить наименование системы теплоснабжения"]
[null,null,null,null,null,null,null,null,null,null,null,null,"Добавить территорию действия тарифа"]
[]
[null,null,null,null,null,null,"et_List06(_1,_2,_3)",null,"8"]
[]
[null,null,null,null,null,null,null,null,null,null,null,"1","Наименование тарифа"]
[null,null,null,null,null,null,null,null,null,null,null,"1.1","Территория действия тарифа"]
[null,null,null,null,null,null,null,null,null,null,null,"1.1.1","Наименование системы теплоснабжения "]
[null,null,null,null,null,null,null,null,null,null,null,"1.1.1.1","Источник тепловой энергии  "]
[null,null,null,null,null,null,null,null,null,null,null,"1.1.1.1.1","Схема подключения теплопотребляющей установки к коллектору источника тепловой энергии"]
[null,null,null,null,null,null,null,null,null,null,null,"1.1.1.1.1.1","Группа потребителей",null,null,null,null,null,null,null,null,null,null,null,{"$f":"strCheckUnique(Z150:Z153)","v":""}]
[null,null,null,null,null,null,null,1,null,null,null,null,null,null,null,null,null,null,"да",null,"нет",null,null,{"$f":"strCheckDate(O152:V152)","v":""},null,{"$f":"IF(M151=\"\",\"\",M151 )","v":""}]
[null,null,null,null,null,null,null,null,null,null,null,null,null,null,null,null,{"$f":"R151 & \"-\" & T151","v":"-"}]
[null,null,null,null,null,null,null,null,null,null,null,null,"Добавить вид теплоносителя (параметры теплоносителя)"]
[null,null,null,null,null,null,null,null,null,null,null,null,"Добавить группу потребителей"]
[null,null,null,null,null,null,null,null,null,null,null,null,"Добавить схему подключения"]
[null,null,null,null,null,null,null,null,null,null,null,null,"Добавить источник тепловой энергии"]
[null,null,null,null,null,null,null,null,null,null,null,null,"Добавить наименование системы теплоснабжения"]
[null,null,null,null,null,null,null,null,null,null,null,null,"Добавить территорию действия тарифа"]
[]
["et_List06(_1,_2,_3)",null,"9"]
[]
[]
[1,null,null,null,null,null,null,null,null,null,null,{"$f":"mergeValue(A163)","v":1},"Наименование тарифа",null,null,null,null,null,null,null,null,null,null,null,null,null,null,null,null,null,null,null,null,null,null,null,null,null,"Указывается наименование тарифа в случае подачи предложения по нескольким тарифам.\nВ случае наличия нескольких тарифов информация по ним указывается в отдельных строках."]
[null,1,null,null,null,null,null,null,null,null,null,{"$f":"mergeValue(A164) &\".\"& mergeValue(B164)","v":"1.1"},"Территория действия тарифа",null,null,null,null,null,null,null,null,null,null,null,null,null,null,null,null,null,null,null,null,null,null,null,null,null,"Указывается наименование территории действия тарифа при наличии дифференциации тарифа по территориальному признаку.\nВ случае дифференциации тарифов по территориальному признаку информация по ним указывается в отдельных строках."]
[null,null,1,null,null,null,null,null,null,null,null,{"$f":"mergeValue(A165) &\".\"& mergeValue(B165)&\".\"& mergeValue(C165)","v":"1.1.1"},"Наименование централизованной системы горячего водоснабжения",null,null,null,null,null,null,null,null,null,null,null,null,null,null,null,null,null,null,null,null,null,null,null,null,null,"Указывается наименование централизованной системы горячего водоснабжения при наличии дифференциации тарифа по централизованным системам горячего водоснабжения.\nВ случае дифференциации тарифов по централизованным системам горячего водоснабжения информация по ним указывается в отдельных строках."]
[null,null,null,1,null,null,null,null,null,null,null,{"$f":"mergeValue(A166) &\".\"& mergeValue(B166)&\".\"& mergeValue(C166)&\".\"& mergeValue(D166)","v":"1.1.1.1"},null,"да",null,"1",null,"нет",null,1,null,"нет",null,1,null,"нет",null,1,null,null,null,null,null,null,"да",null,"нет",null,"В колодке «Параметр дифференциации тарифа/Заявитель» указывается наименование категории потребителей/заявителя, к которой относится тариф.\nДаты начала и окончания указываются в виде «ДД.ММ.ГГГГ».\nВ случае отсутствия даты окончания тарифа в колонке «Дата окончания» указывается «Нет».\nВ случае наличия дифференциации по категориям потребителей/заявителям, подключаемой нагрузке, диапазону диаметров, протяженности, условиям прокладки водопроводной сети информация по ним указывается в отдельных строках.\nВ случае дифференциации по периодам действия тарифа информация по ним указывается в отдельных колонках.",{"$f":"strCheckDateOnDP(AD166:AL166,List06_9_DP)","v":""},{"$f":"IF(AND(COUNTIF(AP162:AP162,AP166)>1,AP166<>\"\"),\"ErrUnique:HasDoubleConn\",\"\")","v":""}]
[null,null,null,null,null,null,null,null,null,null,null,null,null,null,null,null,null,null,null,null,null,null,null,null,null,null,null,null,null,null,null,null,{"$f":"AH166 & \"-\" & AJ166","v":"-"},null,null,null,"нет"]
[]
[]
[null,null,null,null,null,null,null,null,null,null,null,null,null,null,null,null,"Добавить подключаемую нагрузку"]
[null,null,null,null,null,null,null,null,null,null,null,null,"Добавить строку"]
[null,null,null,null,null,null,null,null,null,null,null,null,"Добавить наименование системы водоснабжения"]
[null,null,null,null,null,null,null,null,null,null,null,null,"Добавить территорию действия тарифа"]
[null,null,null,null,null,null,null,null,null,null,null,null,"Добавить наименование тарифа"]
[]
["et_List06(_1,_2,_3)",null,"10"]
[]
[1,null,null,null,null,null,null,null,null,null,null,{"$f":"mergeValue(A178)","v":1},"Наименование тарифа",null,null,null,null,null,null,null,null,null,null,null,null,null,null,null,null,null,null,null,null,null,null,null,null,"Указывается наименование тарифа в случае подачи предложения по нескольким тарифам.\nВ случае наличия нескольких тарифов информация по ним указывается в отдельных строках."]
[null,1,null,null,null,null,null,null,null,null,null,{"$f":"mergeValue(A179) &\".\"& mergeValue(B179)","v":"1.1"},"Территория действия тарифа",null,null,null,null,null,null,null,null,null,null,null,null,null,null,null,null,null,null,null,null,null,null,null,null,"Указывается наименование территории действия тарифа при наличии дифференциации тарифа по территориальному признаку.\nВ случае дифференциации тарифов по территориальному признаку информация по ним указывается в отдельных строках."]
[null,null,1,null,null,null,null,null,null,null,null,{"$f":"mergeValue(A180) &\".\"& mergeValue(B180)&\".\"& mergeValue(C180)","v":"1.1.1"},"Наименование централизованной системы горячего водоснабжения",null,null,null,null,null,null,null,null,null,null,null,null,null,null,null,null,null,null,null,null,null,null,null,null,"Указывается наименование централизованной системы горячего водоснабжения при наличии дифференциации тарифа по централизованным системам горячего водоснабжения.\nВ случае дифференциации тарифов по централизованным системам горячего водоснабжения информация по ним указывается в отдельных строках."]
[null,null,null,1,null,null,null,null,null,null,null,{"$f":"mergeValue(A181) &\".\"& mergeValue(B181)&\".\"& mergeValue(C181)&\".\"& mergeValue(D181)","v":"1.1.1.1"},null,null,"1",null,"нет",null,1,null,"нет",null,"1",null,"нет",null,1,null,null,null,null,null,null,"да",null,"нет",null,"В колодке «Параметр дифференциации тарифа/Заявитель» указывается наименование категории потребителей/заявителя, к которой относится тариф.\nДаты начала и окончания указываются в виде «ДД.ММ.ГГГГ».\nВ случае отсутствия даты окончания тарифа в колонке «Дата окончания» указывается «Нет».\nВ случае наличия дифференциации по категориям потребителей/заявителям, подключаемой нагрузке, диапазону диаметров, протяженности, условиям прокладки водопроводной сети информация по ним указывается в отдельных строках.\nВ случае дифференциации по периодам действия тарифа информация по ним указывается в отдельных колонках.",{"$f":"strCheckDateOnDP(AC181:AK181,List06_10_DP)","v":""},{"$f":"IF(AND(COUNTIF(AO177:AO177,AO181)>1,AO181<>\"\"),\"ErrUnique:HasDoubleConn\",\"\")","v":""}]
[null,null,null,null,null,null,null,null,null,null,null,null,null,null,null,null,null,null,null,null,null,null,null,null,null,null,null,null,null,null,null,{"$f":"AG181 & \"-\" & AI181","v":"-"},null,null,null,"нет"]
[]
[]
[null,null,null,null,null,null,null,null,null,null,null,null,null,null,null,"Добавить подключаемую нагрузку"]
[null,null,null,null,null,null,null,null,null,null,null,null,"Добавить строку"]
[null,null,null,null,null,null,null,null,null,null,null,null,"Добавить наименование системы водоснабжения"]
[null,null,null,null,null,null,null,null,null,null,null,null,"Добавить территорию действия тарифа"]
[null,null,null,null,null,null,null,null,null,null,null,null,"Добавить наименование тарифа"]
[]
[]
[]
[]
[]
[]
[]
[null,null,null,null,null,null,null,null,null,null,null,null,null,null,null,null,"нет",null,1,null,"да",null,1,null,"да",null,1]
[null,null,null,null,null,null,null,null,null,null,null,null,null,null,null,null,null,null,null,null,null,null,null,null,null,null,null,"Добавить условия прокладки сетей"]
[null,null,null,null,null,null,null,null,null,null,null,null,null,null,null,null,null,null,null,null,null,null,null,"Добавить протяженность водопроводной сети"]
[]
[]
[]
["et_List07"]
[]
[]
[]
["et_List06"]
[]
[null,null,null,null,1]
[]
["et_List07"]
[]
[null,null,null,null,"1"]
[]
["et_List08"]
[]
[null,null,null,null,"1"]
[]
["et_List00_01","et_List00_02","et_List00_03"]
[]
[null,null,null,null,null,"Адрес регулируемой организации"]
[null,null,null,null,"Юридический адрес"]
[null,null,null,null,"Почтовый адрес"]
[]
[null,null,null,null,null,"Руководитель"]
[null,null,null,null,"Фамилия, имя, отчество"]
[null,null,null,null,"(код) номер телефона"]
[]
[null,null,null,null,null,"Главный бухгалтер"]
[null,null,null,null,"Фамилия, имя, отчество"]
[null,null,null,null,"(код) номер телефона"]
[]
[null,null,null,null,null,"Должностное лицо, ответственное за составление формы"]
[null,null,null,null,"Фамилия, имя, отчество"]
[null,null,null,null,"Должность"]
[null,null,null,null,"(код) номер телефона"]
[null,null,null,null,"e-mail"]
[]
["et_List03"]
[]
["3","",null,null,null,"","","",null,null,null,null,{"$f":"IF(ISERROR(INDEX(kind_of_nameforms,MATCH(E241,kind_of_forms,0),1)),\"\",INDEX(kind_of_nameforms,MATCH(E241,kind_of_forms,0),1))","v":""}]
[]
[]
["et_List01_0"]
[]
[null,"auto",null,1,null,null,0,null,null,"0",null,null,{"$f":"mergeValue(H246)","v":0},null,null,{"$f":"IF(ISERROR(MATCH(Q246,MODesc,0)),\"n\",\"y\")","v":"n"},null,{"$f":"K246&\"(\"&L246&\")\"","v":"()"}]
[null,null,null,null,null,null,null,"Добавить МР"]
[]
["et_List01_1"]
[]
[null,"auto",null,null,null,null,0,null,null,"0",null,null,{"$f":"mergeValue(H251)","v":0},null,null,null,null,{"$f":"K251&\"(\"&L251&\")\"","v":"()"}]
[null,null,null,null,null,null,null,null,null,null,"Добавить МО"]
[]
["et_List01_2"]
[]
[null,"auto",null,null,null,null,null,null,null,0,null,null,{"$f":"mergeValue(H256)","v":0},null,null,null,null,{"$f":"K256&\" (\"&L256&\")\"","v":" ()"}]
[]
[]
["et_List11_1"]
[]
[]
[]
[]
["et_List12_1"]
[]
[null,null,null,null,null,"x","x"]
[]
[]
["et_List12_2"]
[]
[null,null,null,null,null,"x",null,"x"]
[]
[]
["et_List12_3"]
[]
[null,null,null,null,{"$f":"E275","v":0},"x",null,"x"]
[]
[]
["et_List12_4"]
[]
[null,null,null,null,{"$f":"E280","v":0},"x",null,"x"]
[]
[]
["et_List05(_1,_2,_3,_4)"]
[]
[1,null,null,null,null,{"$f":"\"2.\" &mergeValue(A286)","v":"2.1"},"Наименование централизованной системы коммунальной инфраструктуры",null,"Указывается наименование централизованной системы холодного водоснабжения/горячего водоснабжения/водоотведения/теплоснабжения, к которой относится размещаемая информация.\nВ случае наличия нескольких централизованных систем коммунальной инфраструктуры, информация по каждой из них указывается в отдельной строке."]
[null,null,null,null,null,{"$f":"\"3.\" &mergeValue(A287)","v":"3.1"},"Наименование регулируемого вида деятельности",null,"Указывается наименование вида регулируемой деятельности."]
[null,null,null,null,null,{"$f":"\"4.\"&mergeValue(A288)","v":"4.1"},"Территория оказания услуги по регулируемому виду деятельности","x"]
[null,1,null,null,null,{"$f":"\"4.\"&mergeValue(A289) &\".\"&mergeValue(B289)","v":"4.1.1"},"Субъект Российской Федерации",{"$f":"IF(region_name=\"\",\"\",region_name)","v":"Ленинградская область"},"Указывается наименование субъекта Российской Федерации"]
[null,null,1,null,null,{"$f":"\"4.\"&mergeValue(A290) &\".\"&mergeValue(B290)&\".\"&mergeValue(C290)","v":"4.1.1.1"},"муниципальный район",null,"Указывается наименование муниципального района, на территории которого организация оказывает услуги по регулируемому виду деятельности."]
[null,null,null,1,null,{"$f":"\"4.\"&mergeValue(A291) &\".\"&mergeValue(B291)&\".\"&mergeValue(C291)&\".\"&mergeValue(D291)","v":"4.1.1.1.1"},"муниципальное образование",null,"Указывается наименование и код муниципального района, муниципального образования в соответствии с Общероссийским классификатором территорий муниципальных образований (далее - ОКТМО), входящего в муниципальный район, на территории которого организация оказывает услуги по регулируемому виду деятельности.\nВ случае оказания услуг по регулируемому виду деятельности на территории нескольких муниципальных районов (муниципальных образований) данные по каждому их них указываются в отдельной строке."]
[null,null,null,null,null,null,"Добавить МО"]
[null,null,null,null,null,null,"Добавить МР"]
[null,null,null,null,null,null,"Добавить территорию"]
[null,null,null,null,null,null,"Добавить ЦС"]
[]
[]
[]
[]
[]
[]
["et_List13_1"]
[]
[]
[]
[]
["et_List14_1_1"]
[]
[null,null,null,null,null,null,null,null,null,null,"x","Значение в колонке «Вид тарифа» выбирается из перечня видов тарифов в сфере холодного водоснабжения, предусмотренных законодательством в сфере водоснабжения и водоотведения.\nЗначение в колонке «Информация» выбирается из перечня: Метод экономически обоснованных расходов (затрат); Метод индексации установленных тарифов; Метод обеспечения доходности инвестированного капитала; Метод сравнения аналогов.\nДаты начала и окончания периода действия тарифов указывается в виде «ДД.ММ.ГГГГ».\nВ случае дифференциации предлагаемых методов регулирования видам тарифов и (или) по периодам действия тарифов информация по каждому из них указывается в отдельной строке."]
[null,null,null,null,null,null,null,"Добавить период"]
[]
[]
["et_List14_1_4"]
[]
[null,null,null,null,null,null,null,null,null,null,"x","Значение в колонке «Вид тарифа» выбирается из перечня видов тарифов в сфере холодного водоснабжения, предусмотренных законодательством в сфере водоснабжения и водоотведения.\nЗначение в колонке «Информация» выбирается из перечня: Метод экономически обоснованных расходов (затрат); Метод индексации установленных тарифов; Метод обеспечения доходности инвестированного капитала; Метод сравнения аналогов.\nДаты начала и окончания периода действия тарифов указывается в виде «ДД.ММ.ГГГГ».\nВ случае дифференциации предлагаемых методов регулирования видам тарифов и (или) по периодам действия тарифов информация по каждому из них указывается в отдельной строке."]
[null,null,null,null,null,null,null,"Добавить период"]
[]
[]
["et_List14_1_2"]
[]
[null,null,null,null,null,null,null,null,null,null,"x"]
[]
[]
["et_List14_1_3"]
[]
[null,null,null,null,null,null,null,null,null,null,"x"]

{"sheet":"TEHSHEET","index":24,"n_rows":87,"n_cols":53,"rows_kept":87,"cut":false,"hidden":true,"merged":[[0,51,0,52]]}
["REGION","year_list1","year_list","logical","Месяц\n(MONTH)","Квартал\n(QUARTER)","Месяц\n(kind_of_publication)","НДС\n/kind_of_NDS/","Номер СЦХВ(СЦВО)\n/SKI_number/","Единица измерения объема оказываемых услуг ГВС\n/kind_of_unit_GVS/","Метод регулирования\n/kind_of_control_method/",null,null,"Вид деятельности, на которую установлен тариф /kind_of_activity_WARM/","Вид теплоносителя\n(kind_of_heat_transfer)","Тип данных\n(kind_of_data_type)","Схема подключения\n(kind_of_scheme_in)\n(kind_of_scheme_in2)","Группы потребителей\n(kind_of_cons)","Тип прокладки тепловых сетей\n(kind_of_nets)","Диапазаны диаметров тепловых сетей\n(kind_of_diameters)","Подключаемая тепловая нагрузка\n(kind_of_load)",null,"Форма 2, таблица Х","виды тарифа\n/kind_group_rates/","Заголовок таблицы",null,"name_rates_4",null,"name_rates_8",null,null,"Подключаемая тепловая нагрузка\n(kind_of_load3)",null,"Вид теплоносителя\n(kind_of_heat_transfer2)","Вид теплоносителя\n(kind_of_heat_transfer3)",null,"Вид топлива\n(kind_of_fuel)",null,"Способ закупки товаров\n(kind_of_zak)",null,null,"виды тарифа\n/kind_group_rates_load/","виды тарифа\n/kind_group_rates_load_filter/",null,"виды признаков дифференциации\n/kind_of_diff/",null,"Диапазаны диаметров водопроводных сетей\n(kind_of_diameters2)",null,"List_H","List_M",null,"Перечень форм\n(kind_of_forms)"]
["Алтайский край",2000,2013,"да","январь","I квартал","На официальном сайте организации","общий","1","тыс.куб.м/сутки","метод экономически обоснованных расходов (затрат)","метод экономически обоснованных расходов (затрат)",1,"Передача+Сбыт","Без дифференциации","первичное раскрытие информации","без дифференциации","организации-перепродавцы","надземная (наземная)","50 - 250 мм","не превышает 0,1 Гкал/ч",1,null,111,null,null,"Тариф на холодную воду питьевую","Тариф на холодную воду питьевую","Плата за услуги по поддержанию резервной тепловой мощности при отсутствии потребления тепловой энергии для отдельных категорий (групп) социально значимых потребителей","Плата за услуги по поддержанию резервной тепловой мощности при отсутствии потребления тепловой энергии для отдельных категорий (групп) социально значимых потребителей",null,"не превышает 0,1 Гкал/ч",null,"Вода","Вода",null,"Газ природный по регулируемой цене",null,"Конкурс",null,null,"Тариф на горячую воду в закрытой системе горячего водоснабжения (горячее водоснабжение)","Тариф на транспортировку горячей воды",null,"объемы потребления воды абонентами",null,"40 мм и менее",null,"00","00",null,"Форма 1.0.1","Основные параметры раскрываемой информации"]
["Амурская область",2001,2014,"нет","февраль","II квартал","На сайте регулирующего органа","общий с учетом освобождения от уплаты НДС","2","Гкал/ч","метод индексации установленных тарифов","метод индексации установленных тарифов",2,"Передача","Горячая вода","изменения в раскрытой ранее информации","к коллектору источника тепловой энергии","бюджетные организации","подземная (канальная)","251 - 400 мм","более 0,1 Гкал/ч и не превышает 1,5 Гкал/ч",2,null,"Тариф на транспортировку горячей воды","Форма 2.2 Информация о величинах тарифов на питьевую воду (питьевое водоснабжение), техническую воду, транспортировку воды, подвоз воды1",null,"Тариф на холодную воду артезианскую","Тариф на холодную воду артезианскую","Плата за услуги по поддержанию резервной тепловой мощности, оказываемые регулируемой организацией, мощность источников тепловой энергии которой используется для поддержания резервной мощности в соответствии со схемой теплоснабжения","Плата за услуги по поддержанию резервной тепловой мощности, оказываемые регулируемой организацией, мощность источников тепловой энергии которой используется для поддержания резервной мощности в соответствии со схемой теплоснабжения",null,"более 0,1 Гкал/ч и не превышает 1,5 Гкал/ч",null,"Отборный пар, 1,2-2,5 кг/см2","Пар",null,"Газ природный по нерегулируемой цене",null,"Аукцион",null,null,"Тариф на транспортировку горячей воды","Тариф на подключение к централизованной системе горячего водоснабжения",null,"соответствие качества питьевой воды и горячей воды требованиям, установленным санитарными нормами и правилами",null,"от 41 мм до 70 мм включительно",null,"01","01",null,"Форма 1.10","Информация о способах приобретения, стоимости и объемах товаров, необходимых для производства регулируемых товаров и (или) оказания регулируемых услуг регулируемой организацией"]
["Архангельская область",2002,2015,null,"март","III квартал",null,"специальный (упрощенная система налогообложения, система налогообложения для сельскохозяйственных производителей)","3","куб.м/ч","метод обеспечения доходности инвестированного капитала","метод обеспечения доходности инвестированного капитала",3,"производство комбинированная выработка","Холодная вода",null,"к тепловой сети без дополнительного преобразования на тепловых пунктах, эксплуатируемых теплоснабжающей организацией","население и приравненные категории","подземная (бесканальная)","401 - 550 мм","превышает 1,5 Гкал/ч при наличии технической возможности подключения",3,null,222,null,null,"Тариф на холодную воду поверхностную","Тариф на холодную воду поверхностную","Плата за услуги по поддержанию резервной тепловой мощности, оказываемые регулируемой организацией, мощность тепловых сетей которой используется для поддержания резервной мощности в соответствии со схемой теплоснабжения","Плата за услуги по поддержанию резервной тепловой мощности, оказываемые регулируемой организацией, мощность тепловых сетей которой используется для поддержания резервной мощности в соответствии со схемой теплоснабжения",null,"превышает 1,5 Гкал/ч при наличии технической возможности подключения",null,"Отборный пар, 2,5-7 кг/см2",null,null,"Уголь",null,"Аукцион в электронной форме",null,null,"Тариф на подключение к централизованной системе горячего водоснабжения","Тариф на подключение к централизованной системе горячего водоснабжения (инд)",null,"иное",null,"от 71 мм до 100 мм включительно",null,"02","02",null,"Форма 1.11.1","Информация о предложении об установлении тарифов в сфере горячего водоснабжения на очередной период регулирования"]
["Астраханская область",2003,2016,null,"апрель","IV квартал",null,null,"4",null,"метод сравнения аналогов","метод сравнения аналогов",4,"производство (некомбинированная выработка)+передача+сбыт","Вода",null,"к тепловой сети после тепловых пунктов (на тепловых пунктах), эксплуатируемых теплоснабжающей организацией","прочие",null,"551 - 700 мм","превышает 1,5 Гкал/ч при отсутствии технической возможности подключения",4,null,333,null,1,"Добавить вариант …","Добавить вариант …",null,null,null,"не известна",null,"Отборный пар, 7-13 кг/см2",null,null,"Мазут",null,"Запрос котировок",null,null,"Тариф на подключение к централизованной системе горячего водоснабжения (инд)",null,null,null,null,"от 101 мм до 150 мм включительно",null,"03","03",null,"Форма 1.11.2","Информация о предложении величин тарифов на горячую воду, транспортировку воды"]
["Белгородская область",2004,2017,null,"май",null,"НДС общий\n/kind_of_NDS_tariff/","НДС\n/kind_of_NDS_tariff/","5","Вид тарифа на передачу тепловой энергии /kind_of_tariff_unit/",null,null,null,"производство (некомбинированная выработка)+передача","Пар",null,null,"без дифференциации",null,"701 мм и выше","не известна",5,null,"Тариф на горячую воду в закрытой системе горячего водоснабжения (горячее водоснабжение)","Форма 2.2 Информация о величинах тарифов на питьевую воду (питьевое водоснабжение), техническую воду, транспортировку воды, подвоз воды1",null,null,null,null,null,null,null,null,"Отборный пар, > 13 кг/см2",null,null,"Дизельное топливо",null,"Единственный поставщик",null,null,null,null,null,null,null,"от 151 мм до 200 мм включительно",null,"04","04",null,"Форма 1.11.3","Информация о предложении величин тарифов на подключение к централизованной системе горячего водоснабжения"]
["Брянская область",2005,null,null,"июнь",null,"тариф указан с НДС для плательщиков НДС","тариф для организаций не являющихся плательщиками НДС","6","руб./Гкал/ч/мес",null,null,null,"производство (некомбинированная выработка)+сбыт","Отборный пар, 1,2-2,5 кг/см2",null,null,null,null,null,"нет","6",null,66666,null,null,null,null,null,null,null,null,null,"Острый и редуцированный пар",null,null,"Дрова",null,"Иное",null,null,null,null,null,null,null,"от 201 мм до 250 мм включительно",null,"05","05"]
["Владимирская область",2006,null,null,"июль",null,"тариф указан без НДС для плательщиков НДС","тариф не утверждался","7","руб./Гкал",null,null,null,"производство (некомбинированная выработка)","Отборный пар, 2,5-7 кг/см2",null,null,null,null,null,null,"7",null,77777,null,null,null,null,null,null,null,null,null,null,null,null,"Электроэнергия",null,null,null,null,null,null,null,null,null,"от 250  мм и более",null,"06","06"]
["Волгоградская область",2007,null,null,"август",null,"тариф не утверждался",null,"8",null,null,null,null,null,"Отборный пар, 7-13 кг/см2",null,null,null,null,null,null,"8",null,8888,null,1,null,null,null,null,null,null,null,null,null,null,"Прочее",null,null,null,null,null,null,null,null,null,null,null,"07","07"]
["Вологодская область",2008,null,null,"сентябрь",null,null,null,"9",null,null,null,null,null,"Отборный пар, > 13 кг/см2",null,null,null,null,null,null,"9",null,"Тариф на подключение к централизованной системе горячего водоснабжения (инд)","Форма 2.3 Информация о величинах тарифов на подключение к централизованной системе горячего водоснабжения1",null,null,null,null,null,null,null,null,null,null,null,null,null,null,null,null,null,null,null,null,null,null,null,"08","08"]
["Воронежская область",2009,null,null,"октябрь",null,null,null,"10",null,null,null,null,null,"Острый и редуцированный пар",null,null,null,null,null,null,"10",null,"Тариф на подключение к централизованной системе горячего водоснабжения","Форма 2.3 Информация о величинах тарифов на подключение к централизованной системе горячего водоснабжения1",null,null,null,null,null,null,null,null,null,null,null,null,null,null,null,null,null,null,null,null,null,null,null,"09","09"]
["г.Байконур",2010,null,null,"ноябрь",null,"НДС общий люди\n/kind_of_NDS_tariff_people/","НДС\n/kind_of_NDS_tariff_people/","11",null,null,null,null,null,"Горячая вода в системе централизованного теплоснабжения на отопление",null,null,null,null,null,null,null,null,null,null,null,null,null,null,null,null,null,null,null,null,null,null,null,null,null,null,null,null,null,null,null,null,null,"10","10"]
["г. Москва",2011,null,null,"декабрь",null,"тариф с НДС организаций-плательщиков НДС","тариф организаций не являющихся плательщиками НДС","12",null,null,null,null,null,"Прочее",null,null,null,null,null,null,null,null,null,null,null,null,null,null,null,null,null,null,null,null,null,null,null,null,null,null,null,null,null,null,null,null,null,"11","11"]
["г.Санкт-Петербург",2012,null,null,null,null,"тариф не утверждался","тариф не утверждался","13",null,null,null,null,"Вид деятельности /kind_of_activity/",null,null,null,null,null,null,null,null,null,null,null,null,null,null,null,null,null,null,null,null,null,null,null,null,null,null,null,null,null,null,null,null,null,null,"12","12"]
["г.Севастополь",2013,null,null,null,null,null,null,"14",null,null,null,null,"производство тепловой энергии (мощности) в режиме комбинированной выработки электрической и тепловой энергии источниками тепловой энергии с установленной генерирующей мощностью производства электрической энергии 25 МВт и более",null,null,null,null,null,null,null,null,null,null,null,null,null,null,null,null,null,null,null,null,null,null,null,null,null,null,null,null,null,null,null,null,null,null,"13","13"]
["Еврейская автономная область",2014,null,null,null,null,null,null,"15",null,null,null,null,"производство тепловой энергии (мощности) в режиме комбинированной выработки электрической и тепловой энергии источниками тепловой энергии с установленной генерирующей мощностью производства электрической энергии менее 25 МВт",null,null,null,null,null,null,null,null,null,null,null,null,null,null,null,null,null,null,null,null,null,null,null,null,null,null,null,null,null,null,null,null,null,null,"14","14"]
["Забайкальский край",2015,null,null,null,null,null,null,"16",null,null,null,null,"производство тепловой энергии (мощности) не в режиме комбинированной выработки электрической и тепловой энергии источниками тепловой энергии",null,null,null,null,null,null,null,null,null,null,null,null,null,null,null,null,null,null,null,null,null,null,null,null,null,null,null,null,null,null,null,null,null,null,"15","15"]
["Ивановская область",2016,null,null,null,null,null,null,"17",null,null,null,null,"производство теплоносителя",null,null,null,null,null,null,null,null,null,null,null,null,null,null,null,null,null,null,null,null,null,null,null,null,null,null,null,null,null,null,null,null,null,null,"16","16"]
["Иркутская область",2017,null,null,null,null,null,null,"18",null,null,null,null,"передача тепловой энергии и теплоносителя",null,null,null,null,null,null,null,null,null,null,null,null,null,null,null,null,null,null,null,null,null,null,null,null,null,null,null,null,null,null,null,null,null,null,"17","17"]
["Кабардино-Балкарская республика",2018,null,null,null,null,null,null,"19",null,null,null,null,"сбыт тепловой энергии и теплоносителя",null,null,null,null,null,null,null,null,null,null,null,null,null,null,null,null,null,null,null,null,null,null,null,null,null,null,null,null,null,null,null,null,null,null,"18","18"]
["Калининградская область",2019,null,null,null,null,null,null,"20",null,null,null,null,"подключение к системе теплоснабжения",null,null,null,null,null,null,null,null,null,null,null,null,null,null,null,null,null,null,null,null,null,null,null,null,null,null,null,null,null,null,null,null,null,null,"19","19"]
["Калужская область",2020,null,null,null,null,null,null,null,null,null,null,null,"поддержание резервной тепловой мощности при отсутствии потребления тепловой энергии",null,null,null,null,null,null,null,null,null,null,null,null,null,null,null,null,null,null,null,null,null,null,null,null,null,null,null,null,null,null,null,null,null,null,"20","20"]
["Камчатский край",2021,null,null,null,null,null,null,null,null,null,null,null,null,null,null,null,null,null,null,null,null,null,null,null,null,null,null,null,null,null,null,null,null,null,null,null,null,null,null,null,null,null,null,null,null,null,null,"21","21"]
["Карачаево-Черкесская республика",2022,null,null,null,null,null,null,null,null,null,null,null,null,null,null,null,null,null,null,null,null,null,null,null,null,null,null,null,null,null,null,null,null,null,null,null,null,null,null,null,null,null,null,null,null,null,null,"22","22"]
["Кемеровская область",2023,null,null,null,null,null,null,null,null,null,null,null,null,null,null,null,null,null,null,null,null,null,null,null,null,null,null,null,null,null,null,null,null,null,null,null,null,null,null,null,null,null,null,null,null,null,null,"23","23"]
["Кировская область",2024,null,null,null,null,null,null,null,null,null,null,null,null,null,null,null,null,null,null,null,null,null,null,null,null,null,null,null,null,null,null,null,null,null,null,null,null,null,null,null,null,null,null,null,null,null,null,null,"24"]
["Костромская область",2025,null,null,null,null,null,null,null,null,null,null,null,null,null,null,null,null,null,null,null,null,null,null,null,null,null,null,null,null,null,null,null,null,null,null,null,null,null,null,null,null,null,null,null,null,null,null,null,"25"]
["Краснодарский край",null,null,null,null,null,null,"Текущая дата",null,null,null,null,null,null,null,null,null,null,null,null,null,null,null,null,null,null,null,null,null,null,null,null,null,null,null,null,null,null,null,null,null,null,null,null,null,null,null,null,null,"26"]
["Красноярский край",null,null,"Организация",{"$f":"IF(periodStart = \"\",\"\", periodStart)","v":"01.01.2022"},{"$f":"IF(periodEnd = \"\",\"\", periodEnd)","v":"31.12.2022"},null,"02.11.2021 1:59:26",null,null,null,null,null,null,null,null,null,null,null,null,null,null,null,null,null,null,null,null,null,null,null,null,null,null,null,null,null,null,null,null,null,null,null,null,null,null,null,null,null,"27"]
["Курганская область",null,null,null,null,null,null,null,null,null,null,null,null,null,null,null,null,null,null,null,null,null,null,null,null,null,null,null,null,null,null,null,null,null,null,null,null,null,null,null,null,null,null,null,null,null,null,null,null,"28"]
["Курская область",null,null,null,null,null,null,null,null,null,null,null,null,null,null,null,null,null,null,null,null,null,null,null,null,null,null,null,null,null,null,null,null,null,null,null,null,null,null,null,null,null,null,null,null,null,null,null,null,"29"]
["Ленинградская область",null,null,"Виды деятельности",null,null,null,"https://appsrv.regportal-tariff.ru/procwsxls/",null,null,null,null,null,null,null,null,null,null,null,null,null,null,null,null,null,null,null,null,null,null,null,null,null,null,null,null,null,null,null,null,null,null,null,null,null,null,null,null,null,"30"]
["Липецкая область",null,null,null,null,null,null,null,null,null,null,null,null,null,null,null,null,null,null,null,null,null,null,null,null,null,null,null,null,null,null,null,null,null,null,null,null,null,null,null,null,null,null,null,null,null,null,null,null,"31"]
["Магаданская область",null,null,null,null,null,null,null,null,null,null,null,null,null,null,null,null,null,null,null,null,null,null,null,null,null,null,null,null,null,null,null,null,null,null,null,null,null,null,null,null,null,null,null,null,null,null,null,null,"32"]
["Московская область",null,null,null,null,null,null,null,null,null,null,null,null,null,null,null,null,null,null,null,null,null,null,null,null,null,null,null,null,null,null,null,null,null,null,null,null,null,null,null,null,null,null,null,null,null,null,null,null,"33"]
["Мурманская область",null,null,null,null,null,null,null,null,null,null,null,null,null,null,null,null,null,null,null,null,null,null,null,null,null,null,null,null,null,null,null,null,null,null,null,null,null,null,null,null,null,null,null,null,null,null,null,null,"34"]
["Ненецкий автономный округ",null,null,null,null,null,null,null,null,null,null,null,null,null,null,null,null,null,null,null,null,null,null,null,null,null,null,null,null,null,null,null,null,null,null,null,null,null,null,null,null,null,null,null,null,null,null,null,null,"35"]
["Нижегородская область",null,null,null,null,null,null,null,null,null,null,null,null,null,null,null,null,null,null,null,null,null,null,null,null,null,null,null,null,null,null,null,null,null,null,null,null,null,null,null,null,null,null,null,null,null,null,null,null,"36"]
["Новгородская область",null,null,null,null,null,null,null,null,null,null,null,null,null,null,null,null,null,null,null,null,null,null,null,null,null,null,null,null,null,null,null,null,null,null,null,null,null,null,null,null,null,null,null,null,null,null,null,null,"37"]
["Новосибирская область",null,null,null,null,null,null,null,null,null,null,null,null,null,null,null,null,null,null,null,null,null,null,null,null,null,null,null,null,null,null,null,null,null,null,null,null,null,null,null,null,null,null,null,null,null,null,null,null,"38"]
["Омская область",null,null,null,null,null,null,null,null,null,null,null,null,null,null,null,null,null,null,null,null,null,null,null,null,null,null,null,null,null,null,null,null,null,null,null,null,null,null,null,null,null,null,null,null,null,null,null,null,"39"]
["Оренбургская область",null,null,null,null,null,null,null,null,null,null,null,null,null,null,null,null,null,null,null,null,null,null,null,null,null,null,null,null,null,null,null,null,null,null,null,null,null,null,null,null,null,null,null,null,null,null,null,null,"40"]
["Орловская область",null,null,null,null,null,null,null,null,null,null,null,null,null,null,null,null,null,null,null,null,null,null,null,null,null,null,null,null,null,null,null,null,null,null,null,null,null,null,null,null,null,null,null,null,null,null,null,null,"41"]
["Пензенская область",null,null,null,null,null,null,null,null,null,null,null,null,null,null,null,null,null,null,null,null,null,null,null,null,null,null,null,null,null,null,null,null,null,null,null,null,null,null,null,null,null,null,null,null,null,null,null,null,"42"]
["Пермский край",null,null,null,null,null,null,null,null,null,null,null,null,null,null,null,null,null,null,null,null,null,null,null,null,null,null,null,null,null,null,null,null,null,null,null,null,null,null,null,null,null,null,null,null,null,null,null,null,"43"]
["Приморский край",null,null,null,null,null,null,null,null,null,null,null,null,null,null,null,null,null,null,null,null,null,null,null,null,null,null,null,null,null,null,null,null,null,null,null,null,null,null,null,null,null,null,null,null,null,null,null,null,"44"]
["Псковская область",null,null,null,null,null,null,null,null,null,null,null,null,null,null,null,null,null,null,null,null,null,null,null,null,null,null,null,null,null,null,null,null,null,null,null,null,null,null,null,null,null,null,null,null,null,null,null,null,"45"]
["Республика Адыгея",null,null,null,null,null,null,null,null,null,null,null,null,null,null,null,null,null,null,null,null,null,null,null,null,null,null,null,null,null,null,null,null,null,null,null,null,null,null,null,null,null,null,null,null,null,null,null,null,"46"]
["Республика Алтай",null,null,null,null,null,null,null,null,null,null,null,null,null,null,null,null,null,null,null,null,null,null,null,null,null,null,null,null,null,null,null,null,null,null,null,null,null,null,null,null,null,null,null,null,null,null,null,null,"47"]
["Республика Башкортостан",null,null,null,null,null,null,null,null,null,null,null,null,null,null,null,null,null,null,null,null,null,null,null,null,null,null,null,null,null,null,null,null,null,null,null,null,null,null,null,null,null,null,null,null,null,null,null,null,"48"]
["Республика Бурятия",null,null,null,null,null,null,null,null,null,null,null,null,null,null,null,null,null,null,null,null,null,null,null,null,null,null,null,null,null,null,null,null,null,null,null,null,null,null,null,null,null,null,null,null,null,null,null,null,"49"]
["Республика Дагестан",null,null,null,null,null,null,null,null,null,null,null,null,null,null,null,null,null,null,null,null,null,null,null,null,null,null,null,null,null,null,null,null,null,null,null,null,null,null,null,null,null,null,null,null,null,null,null,null,"50"]
["Республика Ингушетия",null,null,null,null,null,null,null,null,null,null,null,null,null,null,null,null,null,null,null,null,null,null,null,null,null,null,null,null,null,null,null,null,null,null,null,null,null,null,null,null,null,null,null,null,null,null,null,null,"51"]
["Республика Калмыкия",null,null,null,null,null,null,null,null,null,null,null,null,null,null,null,null,null,null,null,null,null,null,null,null,null,null,null,null,null,null,null,null,null,null,null,null,null,null,null,null,null,null,null,null,null,null,null,null,"52"]
["Республика Карелия",null,null,null,null,null,null,null,null,null,null,null,null,null,null,null,null,null,null,null,null,null,null,null,null,null,null,null,null,null,null,null,null,null,null,null,null,null,null,null,null,null,null,null,null,null,null,null,null,"53"]
["Республика Коми",null,null,null,null,null,null,null,null,null,null,null,null,null,null,null,null,null,null,null,null,null,null,null,null,null,null,null,null,null,null,null,null,null,null,null,null,null,null,null,null,null,null,null,null,null,null,null,null,"54"]
["Республика Крым",null,null,null,null,null,null,null,null,null,null,null,null,null,null,null,null,null,null,null,null,null,null,null,null,null,null,null,null,null,null,null,null,null,null,null,null,null,null,null,null,null,null,null,null,null,null,null,null,"55"]
["Республика Марий Эл",null,null,null,null,null,null,null,null,null,null,null,null,null,null,null,null,null,null,null,null,null,null,null,null,null,null,null,null,null,null,null,null,null,null,null,null,null,null,null,null,null,null,null,null,null,null,null,null,"56"]
["Республика Мордовия",null,null,null,null,null,null,null,null,null,null,null,null,null,null,null,null,null,null,null,null,null,null,null,null,null,null,null,null,null,null,null,null,null,null,null,null,null,null,null,null,null,null,null,null,null,null,null,null,"57"]
["Республика Саха (Якутия)",null,null,null,null,null,null,null,null,null,null,null,null,null,null,null,null,null,null,null,null,null,null,null,null,null,null,null,null,null,null,null,null,null,null,null,null,null,null,null,null,null,null,null,null,null,null,null,null,"58"]
["Республика Северная Осетия-Алания",null,null,null,null,null,null,null,null,null,null,null,null,null,null,null,null,null,null,null,null,null,null,null,null,null,null,null,null,null,null,null,null,null,null,null,null,null,null,null,null,null,null,null,null,null,null,null,null,"59"]
["Республика Татарстан"]
["Республика Тыва"]
["Республика Хакасия"]
["Ростовская область"]
["Рязанская область"]
["Самарская область"]
["Саратовская область"]
["Сахалинская область"]
["Свердловская область"]
["Смоленская область"]
["Ставропольский край"]
["Тамбовская область"]
["Тверская область"]
["Томская область"]
["Тульская область"]
["Тюменская область"]
["Удмуртская республика"]
["Ульяновская область"]
["Хабаровский край"]
["Ханты-Мансийский автономный округ"]
["Челябинская область"]
["Чеченская республика"]
["Чувашская республика"]
["Чукотский автономный округ"]
["Ямало-Ненецкий автономный округ"]
["Ярославская область"]

{"sheet":"modListTempFilter","index":25,"n_rows":0,"n_cols":0,"rows_kept":0,"cut":false,"hidden":true,"merged":[]}

{"sheet":"modCheckCyan","index":26,"n_rows":86,"n_cols":1,"rows_kept":86,"cut":false,"hidden":true,"merged":[]}
[{"$f":"IF('Форма 1.10'!$F$10=\"\",1,0)","v":0}]
[{"$f":"IF('Форма 1.10'!$G$10=\"\",1,0)","v":0}]
[{"$f":"IF('Форма 1.10'!$F$11=\"\",1,0)","v":0}]
[{"$f":"IF('Форма 1.10'!$G$11=\"\",1,0)","v":0}]
[{"$f":"IF('Форма 1.10'!$F$12=\"\",1,0)","v":0}]
[{"$f":"IF('Форма 1.10'!$G$12=\"\",1,0)","v":0}]
[{"$f":"IF('Форма 1.10'!$F$13=\"\",1,0)","v":0}]
[{"$f":"IF('Форма 1.10'!$G$13=\"\",1,0)","v":0}]
[{"$f":"IF('Форма 1.11.1'!$J$15=\"\",1,0)","v":0}]
[{"$f":"IF('Форма 1.11.1'!$H$17=\"\",1,0)","v":0}]
[{"$f":"IF('Форма 1.11.1'!$I$17=\"\",1,0)","v":0}]
[{"$f":"IF('Форма 1.11.1'!$J$17=\"\",1,0)","v":0}]
[{"$f":"IF('Форма 1.11.1'!$H$22=\"\",1,0)","v":0}]
[{"$f":"IF('Форма 1.11.1'!$I$22=\"\",1,0)","v":0}]
[{"$f":"IF('Форма 1.11.1'!$J$22=\"\",1,0)","v":0}]
[{"$f":"IF('Форма 1.11.1'!$H$25=\"\",1,0)","v":0}]
[{"$f":"IF('Форма 1.11.1'!$I$25=\"\",1,0)","v":0}]
[{"$f":"IF('Форма 1.11.1'!$J$25=\"\",1,0)","v":0}]
[{"$f":"IF('Форма 1.11.1'!$H$28=\"\",1,0)","v":0}]
[{"$f":"IF('Форма 1.11.1'!$I$28=\"\",1,0)","v":0}]
[{"$f":"IF('Форма 1.11.1'!$J$28=\"\",1,0)","v":0}]
[{"$f":"IF('Форма 1.11.1'!$H$31=\"\",1,0)","v":0}]
[{"$f":"IF('Форма 1.11.1'!$I$31=\"\",1,0)","v":0}]
[{"$f":"IF('Форма 1.11.1'!$J$31=\"\",1,0)","v":0}]
[{"$f":"IF('Форма 1.11.2 | Т-транс'!$O$22=\"\",1,0)","v":1}]
[{"$f":"IF('Форма 1.11.2 | Т-транс'!$R$23=\"\",1,0)","v":1}]
[{"$f":"IF('Форма 1.11.2 | Т-транс'!$T$23=\"\",1,0)","v":1}]
[{"$f":"IF('Форма 1.11.2 | Т-транс'!$S$23=\"\",1,0)","v":0}]
[{"$f":"IF('Форма 1.11.2 | Т-транс'!$U$23=\"\",1,0)","v":0}]
[{"$f":"IF('Форма 1.11.2 | Т-гор.вода'!$O$22=\"\",1,0)","v":0}]
[{"$f":"IF('Форма 1.11.2 | Т-гор.вода'!$Y$23=\"\",1,0)","v":0}]
[{"$f":"IF('Форма 1.11.2 | Т-гор.вода'!$AA$23=\"\",1,0)","v":0}]
[{"$f":"IF('Форма 1.11.2 | Т-гор.вода'!$Z$23=\"\",1,0)","v":0}]
[{"$f":"IF('Форма 1.11.2 | Т-гор.вода'!$AB$23=\"\",1,0)","v":0}]
[{"$f":"IF('Форма 1.11.3 | Т-подкл(инд)'!$M$22=\"\",1,0)","v":1}]
[{"$f":"IF('Форма 1.11.3 | Т-подкл(инд)'!$Q$22=\"\",1,0)","v":1}]
[{"$f":"IF('Форма 1.11.3 | Т-подкл(инд)'!$AD$22=\"\",1,0)","v":1}]
[{"$f":"IF('Форма 1.11.3 | Т-подкл(инд)'!$AE$22=\"\",1,0)","v":1}]
[{"$f":"IF('Форма 1.11.3 | Т-подкл(инд)'!$AF$22=\"\",1,0)","v":1}]
[{"$f":"IF('Форма 1.11.3 | Т-подкл(инд)'!$AG$22=\"\",1,0)","v":1}]
[{"$f":"IF('Форма 1.11.3 | Т-подкл(инд)'!$AH$22=\"\",1,0)","v":1}]
[{"$f":"IF('Форма 1.11.3 | Т-подкл(инд)'!$AJ$22=\"\",1,0)","v":1}]
[{"$f":"IF('Форма 1.11.3 | Т-подкл(инд)'!$N$22=\"\",1,0)","v":0}]
[{"$f":"IF('Форма 1.11.3 | Т-подкл(инд)'!$R$22=\"\",1,0)","v":0}]
[{"$f":"IF('Форма 1.11.3 | Т-подкл(инд)'!$V$22=\"\",1,0)","v":0}]
[{"$f":"IF('Форма 1.11.3 | Т-подкл(инд)'!$Z$22=\"\",1,0)","v":0}]
[{"$f":"IF('Форма 1.11.3 | Т-подкл(инд)'!$AI$22=\"\",1,0)","v":0}]
[{"$f":"IF('Форма 1.11.3 | Т-подкл(инд)'!$AK$22=\"\",1,0)","v":0}]
[{"$f":"IF('Форма 1.11.3 | Т-подкл'!$P$22=\"\",1,0)","v":1}]
[{"$f":"IF('Форма 1.11.3 | Т-подкл'!$AC$22=\"\",1,0)","v":1}]
[{"$f":"IF('Форма 1.11.3 | Т-подкл'!$AD$22=\"\",1,0)","v":1}]
[{"$f":"IF('Форма 1.11.3 | Т-подкл'!$AE$22=\"\",1,0)","v":1}]
[{"$f":"IF('Форма 1.11.3 | Т-подкл'!$AF$22=\"\",1,0)","v":1}]
[{"$f":"IF('Форма 1.11.3 | Т-подкл'!$AG$22=\"\",1,0)","v":1}]
[{"$f":"IF('Форма 1.11.3 | Т-подкл'!$AI$22=\"\",1,0)","v":1}]
[{"$f":"IF('Форма 1.11.3 | Т-подкл'!$Q$22=\"\",1,0)","v":0}]
[{"$f":"IF('Форма 1.11.3 | Т-подкл'!$U$22=\"\",1,0)","v":0}]
[{"$f":"IF('Форма 1.11.3 | Т-подкл'!$Y$22=\"\",1,0)","v":0}]
[{"$f":"IF('Форма 1.11.3 | Т-подкл'!$AH$22=\"\",1,0)","v":0}]
[{"$f":"IF('Форма 1.11.3 | Т-подкл'!$AJ$22=\"\",1,0)","v":0}]
[{"$f":"IF('Форма 1.0.2'!$E$12=\"\",1,0)","v":1}]
[{"$f":"IF('Форма 1.0.2'!$F$12=\"\",1,0)","v":1}]
[{"$f":"IF('Форма 1.0.2'!$G$12=\"\",1,0)","v":1}]
[{"$f":"IF('Форма 1.0.2'!$H$12=\"\",1,0)","v":1}]
[{"$f":"IF('Форма 1.0.2'!$I$12=\"\",1,0)","v":1}]
[{"$f":"IF('Форма 1.0.2'!$J$12=\"\",1,0)","v":1}]
[{"$f":"IF('Сведения об изменении'!$E$12=\"\",1,0)","v":1}]
[{"$f":"IF(Территории!$E$12=\"\",1,0)","v":0}]
[{"$f":"IF('Перечень тарифов'!$E$21=\"\",1,0)","v":0}]
[{"$f":"IF('Перечень тарифов'!$F$21=\"\",1,0)","v":0}]
[{"$f":"IF('Перечень тарифов'!$G$21=\"\",1,0)","v":0}]
[{"$f":"IF('Перечень тарифов'!$K$21=\"\",1,0)","v":0}]
[{"$f":"IF('Перечень тарифов'!$O$21=\"\",1,0)","v":0}]
[{"$f":"IF('Перечень тарифов'!$G$11=\"\",1,0)","v":0}]
[{"$f":"IF('Форма 1.11.1'!$K$15=\"\",1,0)","v":0}]
[{"$f":"IF('Форма 1.11.1'!$K$20=\"\",1,0)","v":0}]
[{"$f":"IF('Форма 1.11.2 | Т-гор.вода'!$AD$23=\"\",1,0)","v":0}]
[{"$f":"IF('Форма 1.11.2 | Т-гор.вода'!$AE$23=\"\",1,0)","v":0}]
[{"$f":"IF('Форма 1.11.2 | Т-гор.вода'!$AF$23=\"\",1,0)","v":0}]
[{"$f":"IF('Форма 1.11.2 | Т-гор.вода'!$AM$23=\"\",1,0)","v":0}]
[{"$f":"IF('Форма 1.11.2 | Т-гор.вода'!$AO$23=\"\",1,0)","v":0}]
[{"$f":"IF('Форма 1.11.2 | Т-гор.вода'!$AN$23=\"\",1,0)","v":0}]
[{"$f":"IF('Форма 1.11.2 | Т-гор.вода'!$AP$23=\"\",1,0)","v":0}]
[{"$f":"IF('Форма 1.11.2 | Т-гор.вода'!$Q$23=\"\",1,0)","v":0}]
[{"$f":"IF('Форма 1.11.2 | Т-гор.вода'!$R$23=\"\",1,0)","v":0}]
[{"$f":"IF('Форма 1.11.2 | Т-гор.вода'!$P$23=\"\",1,0)","v":0}]

{"sheet":"REESTR_LINK","index":27,"n_rows":3,"n_cols":3,"rows_kept":3,"cut":false,"hidden":true,"merged":[]}
["ID","LINK_NAME","REGION"]
[4189678,"https://portal.eias.ru/Portal/DownloadPage.aspx?type=12&guid=????????-????-????-????-????????????","ALL"]
[4190415,"https://eias.fstrf.ru/disclo/get_file?p_guid=????????-????-????-????-????????????","ALL"]

{"sheet":"REESTR_DS","index":28,"n_rows":6,"n_cols":2,"rows_kept":6,"cut":false,"hidden":true,"merged":[]}
[]
[]
[null,"Ломоносовский муниципальный район, Аннинское (41630152);"]
[null,"территория 2"]
[null,"территория 3"]
[null,"территория 4"]

{"sheet":"modHTTP","index":29,"n_rows":0,"n_cols":0,"rows_kept":0,"cut":false,"hidden":true,"merged":[]}

{"sheet":"modfrmRezimChoose","index":30,"n_rows":0,"n_cols":0,"rows_kept":0,"cut":false,"hidden":true,"merged":[]}

{"sheet":"modSheetMain","index":31,"n_rows":1,"n_cols":2,"rows_kept":1,"cut":false,"hidden":true,"merged":[]}
["Форма","Листы"]

{"sheet":"REESTR_VT","index":32,"n_rows":5,"n_cols":2,"rows_kept":5,"cut":false,"hidden":true,"merged":[]}
["ID_TARIFF_NAME","TARIFF_NAME"]
[4213767,"Тариф на горячую воду в закрытой системе горячего водоснабжения (горячее водоснабжение)"]
[4213768,"Тариф на транспортировку горячей воды"]
[4213769,"Тариф на подключение к централизованной системе горячего водоснабжения"]
[4213770,"Тариф на подключение к централизованной системе горячего водоснабжения (инд)"]

{"sheet":"REESTR_VED","index":33,"n_rows":4,"n_cols":2,"rows_kept":4,"cut":false,"hidden":true,"merged":[]}
["ID_TARIFF_NAME","VED_NAME"]
[4189706,"Горячее водоснабжение"]
[4189705,"Транспортировка"]
[4189707,"Подключение (технологическое присоединение) к централизованной системе горячего водоснабжения"]

{"sheet":"modfrmReestrObj","index":34,"n_rows":0,"n_cols":0,"rows_kept":0,"cut":false,"hidden":true,"merged":[]}

{"sheet":"AllSheetsInThisWorkbook","index":35,"n_rows":42,"n_cols":2,"rows_kept":42,"cut":false,"hidden":true,"merged":[]}
["Расчетные листы","Скрытые листы"]
["Instruction","modList14_1"]
["modUpdTemplLogger","modProv"]
["List00","TSH_et_union_hor"]
["List01","TEHSHEET"]
["List02","modListTempFilter"]
["List05_11","modCheckCyan"]
["List13","REESTR_LINK"]
["List14_1","REESTR_DS"]
["List05_2","modHTTP"]
["List06_2","modfrmRezimChoose"]
["List05_5","modSheetMain"]
["List06_5","REESTR_VT"]
["List05_9","REESTR_VED"]
["List06_9","modfrmReestrObj"]
["List05_10","AllSheetsInThisWorkbook"]
["List06_10","TSH_et_union_vert"]
["List03","modInstruction"]
["List07","modRegion"]
["ListComm","modReestr"]
["ListCheck","modfrmReestr"]
[null,"modUpdTemplMain"]
[null,"TSH_REESTR_ORG"]
[null,"modClassifierValidate"]
[null,"modHyp"]
[null,"modServiceModule"]
[null,"modList00"]
[null,"modList01"]
[null,"modList02"]
[null,"modList03"]
[null,"modList13"]
[null,"TSH_REESTR_MO_FILTER"]
[null,"TSH_REESTR_MO"]
[null,"modInfo"]
[null,"modList05"]
[null,"modList06"]
[null,"modList07"]
[null,"modfrmDateChoose"]
[null,"modComm"]
[null,"modThisWorkbook"]
[null,"modfrmReestrMR"]
[null,"modfrmCheckUpdates"]

{"sheet":"et_union_vert","index":36,"n_rows":0,"n_cols":0,"rows_kept":0,"cut":false,"hidden":true,"merged":[]}

{"sheet":"modInstruction","index":37,"n_rows":0,"n_cols":0,"rows_kept":0,"cut":false,"hidden":true,"merged":[]}

{"sheet":"modRegion","index":38,"n_rows":0,"n_cols":0,"rows_kept":0,"cut":false,"hidden":true,"merged":[]}

{"sheet":"modReestr","index":39,"n_rows":0,"n_cols":0,"rows_kept":0,"cut":false,"hidden":true,"merged":[]}

{"sheet":"modfrmReestr","index":40,"n_rows":0,"n_cols":0,"rows_kept":0,"cut":false,"hidden":true,"merged":[]}

{"sheet":"modUpdTemplMain","index":41,"n_rows":0,"n_cols":0,"rows_kept":0,"cut":false,"hidden":true,"merged":[]}

{"sheet":"REESTR_ORG","index":42,"n_rows":129,"n_cols":10,"rows_kept":129,"cut":false,"hidden":true,"merged":[]}
["№","REGION_ID","REGION_NAME","RST_ORG_ID","ORG_NAME","INN_NAME","KPP_NAME","ORG_START_DATE","ORG_END_DATE"]
[1,"2610","Ленинградская область","26523762","АО \"Выборгтеплоэнерго\"","4704062064","470401001","09-06-2010 00:00:00",null,"HOT_VS"]
[2,"2610","Ленинградская область","26373306","АО \"ГАТЧИНСКИЙ ККЗ\"","4719000303","470501001",null,null,"HOT_VS"]
[3,"2610","Ленинградская область","30335229","АО \"ГУ ЖКХ\"","5116000922","770401001",null,null,"HOT_VS"]
[4,"2610","Ленинградская область","31208153","АО \"ИЭК\"","4725005187","472501001",null,null,"HOT_VS"]
[5,"2610","Ленинградская область","26373248","АО \"Коммунальные системы Гатчинского района\"","4705039967","470501001",null,null,"HOT_VS"]
[6,"2610","Ленинградская область","26506539","АО \"Концерн Росэнергоатом\" филиал \"Ленинградская атомная станция\"","7721632827","472643001",null,null,"HOT_VS"]
[7,"2610","Ленинградская область","26523683","АО \"ЛОТЭК\"","4716028445","470701001","09-06-2010 00:00:00",null,"HOT_VS"]
[8,"2610","Ленинградская область","26524292","АО \"Нева Энергия\"","7802312374","471302001","09-06-2010 00:00:00",null,"HOT_VS"]
[9,"2610","Ленинградская область","30384822","АО \"ПТС\"","4715030160","471501001","01-09-2015 00:00:00",null,"HOT_VS"]
[10,"2610","Ленинградская область","27250262","АО \"РЭУ\"","7714783092","602743002","31-08-2010 00:00:00",null,"HOT_VS"]
[11,"2610","Ленинградская область","26828034","АО \"РЭУ\" филиал \"Санкт-Петербургский\"","7714783092","783943001",null,null,"HOT_VS"]
[12,"2610","Ленинградская область","26524308","АО \"Тепловые сети\"","4716024190","471601001","09-06-2010 00:00:00",null,"HOT_VS"]
[13,"2610","Ленинградская область","28261957","АО \"Усть-Лужский Контейнерный Терминал\"","4707013562","470707001","26-08-2013 00:00:00",null,"HOT_VS"]
[14,"2610","Ленинградская область","30427522","АО ГУ ЖКХ ОП \"Санкт-Петербургское\"","5116000922","784245001","12-10-2015 00:00:00",null,"HOT_VS"]
[15,"2610","Ленинградская область","28967688","Банк России (Оздоровительное объединение \"Зеленый бор\" Центрального банка Российской Федерации)","7702235133","471045002","29-04-2015 00:00:00",null,"HOT_VS"]
[16,"2610","Ленинградская область","30794671","ГКУЗ ЛО \"ДПБ\"","4719005020","470501001","23-05-2016 00:00:00",null,"HOT_VS"]
[17,"2610","Ленинградская область","31233373","ГП \"Волосовское ДРСУ\"","4717000650","470501001",null,null,"HOT_VS"]
[18,"2610","Ленинградская область","26422494","ГУП \"Водоканал Санкт-Петербурга\"","7830000426","784201001",null,null,"HOT_VS"]
[19,"2610","Ленинградская область","26361126","ГУП \"ТЭК СПб\"","7830001028","783450001",null,null,"HOT_VS"]
[20,"2610","Ленинградская область","26373268","ЗАО \"Сосновоагропромтехника\"","4712002559","471201001",null,null,"HOT_VS"]
[21,"2610","Ленинградская область","27851016","ЛОГП \"Гатчинское дорожное ремонтно-строительное управление\"","4719002004","471090100",null,null,"HOT_VS"]
[22,"2610","Ленинградская область","31343563","МБУ \"ЦБС\"","4703145254","470301001",null,null,"HOT_VS"]
[23,"2610","Ленинградская область","26561751","МП \"Агалатово-Сервис\"","4703087267","470301001",null,null,"HOT_VS"]
[24,"2610","Ленинградская область","26561667","МП \"Жилищное хозяйство\"","4708001129","472701001",null,null,"HOT_VS"]
[25,"2610","Ленинградская область","26640400","МП \"Северное ремонтно-эксплуатационное предприятие\"","4703064012","470301001",null,null,"HOT_VS"]
[26,"2610","Ленинградская область","28813153","МП \"ТеплоРесурс\" МО Кузнечнинское ГП","4712025919","471201001","16-09-2014 00:00:00",null,"HOT_VS"]
[27,"2610","Ленинградская область","28504079","МП МО город Коммунар \"ЖКС\"","4705062476","470501001","30-04-2013 00:00:00",null,"HOT_VS"]
[28,"2610","Ленинградская область","27883622","МУКП \"Свердловские коммунальные системы\"","4703128682","470301001",null,null,"HOT_VS"]
[29,"2610","Ленинградская область","31210480","МУП \"АУРП\"","4712128960","471201001",null,null,"HOT_VS"]
[30,"2610","Ленинградская область","26638809","МУП \"Бугровские тепловые сети\"","4703103575","470301001",null,null,"HOT_VS"]
[31,"2610","Ленинградская область","31514734","МУП \"ВТ сети\"","4703145938","470301001",null,null,"HOT_VS"]
[32,"2610","Ленинградская область","31209792","МУП \"Ефимовские тепловые сети\"","4715031357","471501001",null,null,"HOT_VS"]
[33,"2610","Ленинградская область","31211905","МУП \"Зеленый город\"","4716041358","471601001",null,null,"HOT_VS"]
[34,"2610","Ленинградская область","26373257","МУП \"НазияКомСервис\"","4706027280","470601001",null,null,"HOT_VS"]
[35,"2610","Ленинградская область","26373253","МУП \"ПриладожскЖКХ»","4706005311","470601001",null,null,"HOT_VS"]
[36,"2610","Ленинградская область","26640632","МУП \"Романовские коммунальные системы\"","4703117955","470301001",null,null,"HOT_VS"]
[37,"2610","Ленинградская область","31430605","МУП \"Романовский водоканал\"","4703172650","470301001",null,null,"HOT_VS"]
[38,"2610","Ленинградская область","31513329","МУП \"СгК\"","4706026664","470601001",null,null,"HOT_VS"]
[39,"2610","Ленинградская область","26524169","МУП \"Тепловые сети\" г. Гатчина","4705014698","470501001",null,null,"HOT_VS"]
[40,"2610","Ленинградская область","31347301","МУП \"Теплосеть Мельниково\"","4712029279","471201001",null,null,"HOT_VS"]
[41,"2610","Ленинградская область","31210597","МУП \"Теплосеть Плодовое\"","4712028540","471201001",null,null,"HOT_VS"]
[42,"2610","Ленинградская область","27222108","МУП \"Центр ЖКХ\"","4706031872","470601001","01-09-2011 00:00:00",null,"HOT_VS"]
[43,"2610","Ленинградская область","31435482","МУП «Мгинские тепловые сети»","4706041648","470601001",null,null,"HOT_VS"]
[44,"2610","Ленинградская область","28001460","МУП «Низино»","4720031916","472501001","25-12-2009 00:00:00",null,"HOT_VS"]
[45,"2610","Ленинградская область","31211235","МУП «Теплосеть Сосново»","4712028451","471201001",null,null,"HOT_VS"]
[46,"2610","Ленинградская область","26773425","МУП УЖКХ МО ВИЛЛОЗСКОЕ СП","4720024228","472501001",null,null,"HOT_VS"]
[47,"2610","Ленинградская область","26524175","НИЦ «Курчатовский институт» - ПИЯФ","4705001850","470501001",null,null,"HOT_VS"]
[48,"2610","Ленинградская область","28136066","НЛРВПиС","7812024833","470602001","25-03-2013 00:00:00",null,"HOT_VS"]
[49,"2610","Ленинградская область","26639730","ОАО \"Всеволожские тепловые сети\"","4703096470","470301001",null,null,"HOT_VS"]
[50,"2610","Ленинградская область","26373240","ОАО \"Птицефабрика Ударник\"","4704083071","470401001",null,null,"HOT_VS"]
[51,"2610","Ленинградская область","26640411","ОАО \"Тепловые сети\" филиал  \"Волосовские коммунальные системы\"","4716024190","470543002",null,null,"HOT_VS"]
[52,"2610","Ленинградская область","26373290","ОАО \"УЖКХ\" (Тихвинского района)","4715014471","471501001",null,null,"HOT_VS"]
[53,"2610","Ленинградская область","26524171","ОАО \"Узор\"","4719002999","470501001",null,null,"HOT_VS"]
[54,"2610","Ленинградская область","28148752","ООО \"АКВАТЕРМ\"","4707032565","470701001",null,null,"HOT_VS"]
[55,"2610","Ленинградская область","31259501","ООО \"АСТРА\"","4707008146","470701001",null,null,"HOT_VS"]
[56,"2610","Ленинградская область","26640553","ООО \"Аква Норд-Вест\"","7801432887","780101001",null,null,"HOT_VS"]
[57,"2610","Ленинградская область","31206288","ООО \"Алгоритм Девелопмент\"","7842055902","780201001",null,null,"HOT_VS"]
[58,"2610","Ленинградская область","28274744","ООО \"БИОТЕПЛОСНАБ\"","7811553714","471101001","07-10-2013 00:00:00",null,"HOT_VS"]
[59,"2610","Ленинградская область","30847189","ООО \"Балтийский Дом\"","7802160435","781401001","25-10-2016 00:00:00",null,"HOT_VS"]
[60,"2610","Ленинградская область","26524282","ООО \"Биотеплоснаб\"","4712123698","471201001","09-06-2010 00:00:00",null,"HOT_VS"]
[61,"2610","Ленинградская область","30850125","ООО \"Бис Мелиор Трейд\"","4703144194","470301001","07-11-2016 00:00:00",null,"HOT_VS"]
[62,"2610","Ленинградская область","31504352","ООО \"ВКС-Инвест\"","7804600032","470301001",null,null,"HOT_VS"]
[63,"2610","Ленинградская область","28545782","ООО \"ВОДОКАНАЛ\"","4703137398","470301001","19-06-2014 00:00:00",null,"HOT_VS"]
[64,"2610","Ленинградская область","31210610","ООО \"ГЕФЕСТ\"","4705065149","470501001",null,null,"HOT_VS"]
[65,"2610","Ленинградская область","27883546","ООО \"ГТМ - теплосервис\"","7810496527","780501001",null,null,"HOT_VS"]
[66,"2610","Ленинградская область","31313543","ООО \"Газпром теплоэнерго Северо-Запад\"","7839108015","783901001",null,null,"HOT_VS"]
[67,"2610","Ленинградская область","29649769","ООО \"Дубровская ТЭЦ\"","4706036863","470601001",null,null,"HOT_VS"]
[68,"2610","Ленинградская область","30906125","ООО \"ЖилКомТеплоЭнерго\"","4712023541","471201001",null,null,"HOT_VS"]
[69,"2610","Ленинградская область","28932418","ООО \"Жилсервис\"","7843305143","470301001","23-12-2014 00:00:00",null,"HOT_VS"]
[70,"2610","Ленинградская область","30989185","ООО \"Колтушские тепловые сети\"","4703150102","470301001",null,null,"HOT_VS"]
[71,"2610","Ленинградская область","26524185","ООО \"Коммун Энерго\"","4707021122","470701001","09-06-2010 00:00:00",null,"HOT_VS"]
[72,"2610","Ленинградская область","30795556","ООО \"ЛЕНТЕПЛО\"","7802566770","780201001","10-12-2018 00:00:00",null,"HOT_VS"]
[73,"2610","Ленинградская область","28016967","ООО \"Лемэк\"","7801213324","472501001","07-03-2012 00:00:00",null,"HOT_VS"]
[74,"2610","Ленинградская область","28048616","ООО \"Леноблтеплоснаб\"","7811527520","781101001",null,null,"HOT_VS"]
[75,"2610","Ленинградская область","27850826","ООО \"Лужское тепло\"","4710032029","471001001","30-07-2012 00:00:00",null,"HOT_VS"]
[76,"2610","Ленинградская область","28155588","ООО \"Мир Техники\"","7810034240","782001001","18-06-2013 00:00:00",null,"HOT_VS"]
[77,"2610","Ленинградская область","31343593","ООО \"НИЛА\"","4711004602","471101001",null,null,"HOT_VS"]
[78,"2610","Ленинградская область","28545761","ООО \"НТЦ \"Энергия\"","4705052118","470501001","24-06-2015 00:00:00",null,"HOT_VS"]
[79,"2610","Ленинградская область","28968332","ООО \"Новая Водная Ассоциация\"","7801426040","780101001","18-05-2015 00:00:00",null,"HOT_VS"]
[80,"2610","Ленинградская область","28829716","ООО \"ОблСервис\"","4712024087","471201001",null,null,"HOT_VS"]
[81,"2610","Ленинградская область","28829326","ООО \"ПАРИТЕТЪ\"","4712026119","471201001",null,null,"HOT_VS"]
[82,"2610","Ленинградская область","31383686","ООО \"ПО ЖКХ\"","4706040316","470601001",null,null,"HOT_VS"]
[83,"2610","Ленинградская область","28447219","ООО \"ПРОДЭКС-ЭС\"","7810836981","781001001","17-08-2011 00:00:00",null,"HOT_VS"]
[84,"2610","Ленинградская область","28940429","ООО \"ПРОМ ИМПУЛЬС\"","7806520632","781001001",null,null,"HOT_VS"]
[85,"2610","Ленинградская область","27920896","ООО \"ПТЭСК\"","4706033100","470601001",null,null,"HOT_VS"]
[86,"2610","Ленинградская область","30344093","ООО \"Паритет\"","4712026060","471201001","29-09-2015 00:00:00",null,"HOT_VS"]
[87,"2610","Ленинградская область","27266270","ООО \"Петербургтеплоэнерго\"","7838024362","783901001",null,null,"HOT_VS"]
[88,"2610","Ленинградская область","28454795","ООО \"Приладожский Теплоснаб\"","4706035267","470601001","24-12-2013 00:00:00",null,"HOT_VS"]
[89,"2610","Ленинградская область","26640635","ООО \"СМЭУ Заневка\"","4703116542","470301001",null,null,"HOT_VS"]
[90,"2610","Ленинградская область","30940618","ООО \"СТЭК\"","4703142768","470301001","08-12-2014 00:00:00",null,"HOT_VS"]
[91,"2610","Ленинградская область","26799802","ООО \"Светогорское жилищно-коммунальное хозяйство\"","4704026517","470401001",null,null,"HOT_VS"]
[92,"2610","Ленинградская область","27774476","ООО \"Сосновский деревообрабатывающий завод\"","4712128738","471201001",null,null,"HOT_VS"]
[93,"2610","Ленинградская область","28511826","ООО \"ТЕПЛОЭНЕРГО\"","7802853013","780101001",null,null,"HOT_VS"]
[94,"2610","Ленинградская область","30363291","ООО \"ТК \"Мурино\"","7813559373","784201001",null,null,"HOT_VS"]
[95,"2610","Ленинградская область","30370326","ООО \"Тепло Сервис\"","4703137736","470301001","27-11-2015 00:00:00",null,"HOT_VS"]
[96,"2610","Ленинградская область","28272648","ООО \"Тепловые Системы\"","7810450755","781001001","30-09-2013 00:00:00",null,"HOT_VS"]
[97,"2610","Ленинградская область","26467459","ООО \"Теплострой плюс\"","7842322869","784201001",null,null,"HOT_VS"]
[98,"2610","Ленинградская область","27061101","ООО \"Тихвин Дом\"","4715024568","471501001","22-12-2010 00:00:00",null,"HOT_VS"]
[99,"2610","Ленинградская область","31354893","ООО \"УК \"Алгоритм\"","7802655830","780201001",null,null,"HOT_VS"]
[100,"2610","Ленинградская область","28175609","ООО \"Управляющая компания\"Коммунальные сети\"","4707026836","470701001","05-07-2013 00:00:00",null,"HOT_VS"]
[101,"2610","Ленинградская область","26523754","ООО \"Флагман\"","7805222344","470301001","09-06-2010 00:00:00",null,"HOT_VS"]
[102,"2610","Ленинградская область","30989338","ООО \"ЭКОТЕХНОЛОГИЯ\"","4712027955","471201001",null,null,"HOT_VS"]
[103,"2610","Ленинградская область","28490320","ООО \"ЭЛСО-ЭГМ\"","7813561990","780101001","06-03-2014 00:00:00",null,"HOT_VS"]
[104,"2610","Ленинградская область","26648562","ООО \"Энерго-Ресурс\"","4703108005","470301001",null,null,"HOT_VS"]
[105,"2610","Ленинградская область","28979613","ООО \"ЭнергоИнвест\"","7841378040","780201001",null,null,"HOT_VS"]
[106,"2610","Ленинградская область","27517472","ООО \"Энергогазмонтаж\"","7806119950","781301001",null,null,"HOT_VS"]
[107,"2610","Ленинградская область","31444444","ООО «Интера»","7805769183","471201001",null,null,"HOT_VS"]
[108,"2610","Ленинградская область","30870466","ООО «Ленжилэксплуатация»","7810764455","781001001","21-10-2013 00:00:00",null,"HOT_VS"]
[109,"2610","Ленинградская область","31451157","ООО «Новая Дубровка»","4703101112","470301001",null,null,"HOT_VS"]
[110,"2610","Ленинградская область","27630757","ООО «Промэнерго»","7839320364","783901001",null,null,"HOT_VS"]
[111,"2610","Ленинградская область","31511376","ООО «СЭС»","7813655158","781301001",null,null,"HOT_VS"]
[112,"2610","Ленинградская область","27883558","ООО «ТК Северная»","4703123451","470301001",null,null,"HOT_VS"]
[113,"2610","Ленинградская область","26561655","ООО «ТСК»","4703125360","470301001",null,null,"HOT_VS"]
[114,"2610","Ленинградская область","31007537","ООО УК \"Новоантропшино\"","4705063960","470501001",null,null,"HOT_VS"]
[115,"2610","Ленинградская область","26322152","ПАО \"Россети Ленэнерго\"","7803002209","997650001",null,null,"HOT_VS"]
[116,"2610","Ленинградская область","26539356","ПАО \"ТГК-1\" филиал \"Невский\"","7841312071","781301001",null,null,"HOT_VS"]
[117,"2610","Ленинградская область","26524280","ПАО \"ТС\"","4712040346","471201001","09-06-2010 00:00:00",null,"HOT_VS"]
[118,"2610","Ленинградская область","30955687","ПУ ФСБ России по г.Санкт-Петербургу и Ленинградской области","7842317080","784201001",null,null,"HOT_VS"]
[119,"2610","Ленинградская область","26583421","СМУП \"ТСП\"","4714014006","472601001",null,null,"HOT_VS"]
[120,"2610","Ленинградская область","31358350","СПБ ГБУЗ Туберкулезный санаторий \"Сосновый бор\"","4704022897","470401001",null,null,"HOT_VS"]
[121,"2610","Ленинградская область","26319697","ФГУП \"НИТИ им. А.П. Александрова\"","4714000067","472650001","22-03-1994 00:00:00",null,"HOT_VS"]
[122,"2610","Ленинградская область","28977645","ФГУП \"Росморпорт\"","7702352454","770701001","15-05-2003 00:00:00",null,"HOT_VS"]
[123,"2610","Ленинградская область","31105221","ФГУП \"Росморпорт\"","7702352454","780502001","15-05-2003 00:00:00",null,"HOT_VS"]
[124,"2610","Ленинградская область","26524173","ФГУП ПЭКП НИЦ \"Курчатовский институт\"","4705014183","470501001",null,null,"HOT_VS"]
[125,"2610","Ленинградская область","26373296","ФКУ ИК-2 УФСИН России по С-Пб и ЛО","4716000986","471601001",null,null,"HOT_VS"]
[126,"2610","Ленинградская область","31342373","Филиал АО \"Нева Энергия\"","7802312374","471543001",null,null,"HOT_VS"]
[127,"2610","Ленинградская область","28812394","Филиал АО «Газпром теплоэнерго» в Ленинградской области","5003046281","471043001","10-09-2014 00:00:00",null,"HOT_VS"]
[128,"2610","Ленинградская область","30941480","Филиал ФГБУ \"ЦЖКУ\" Минобороны России по ЗВО","7729314745","784243001",null,null,"HOT_VS"]

{"sheet":"modClassifierValidate","index":43,"n_rows":0,"n_cols":0,"rows_kept":0,"cut":false,"hidden":true,"merged":[]}

{"sheet":"modHyp","index":44,"n_rows":0,"n_cols":0,"rows_kept":0,"cut":false,"hidden":true,"merged":[]}

{"sheet":"modServiceModule","index":45,"n_rows":0,"n_cols":0,"rows_kept":0,"cut":false,"hidden":true,"merged":[]}

{"sheet":"modList00","index":46,"n_rows":0,"n_cols":0,"rows_kept":0,"cut":false,"hidden":true,"merged":[]}

{"sheet":"modList01","index":47,"n_rows":0,"n_cols":0,"rows_kept":0,"cut":false,"hidden":true,"merged":[]}

{"sheet":"modList02","index":48,"n_rows":0,"n_cols":0,"rows_kept":0,"cut":false,"hidden":true,"merged":[]}

{"sheet":"modList03","index":49,"n_rows":0,"n_cols":0,"rows_kept":0,"cut":false,"hidden":true,"merged":[]}

{"sheet":"modList13","index":50,"n_rows":0,"n_cols":0,"rows_kept":0,"cut":false,"hidden":true,"merged":[]}

{"sheet":"REESTR_MO_FILTER","index":51,"n_rows":0,"n_cols":0,"rows_kept":0,"cut":false,"hidden":true,"merged":[]}

{"sheet":"REESTR_MO","index":52,"n_rows":206,"n_cols":4,"rows_kept":206,"cut":false,"hidden":true,"merged":[]}
["№","МР","МО","МО_ОКТМО"]
[1,"Бокситогорский муниципальный район","Бокситогорский муниципальный район","41603000"]
[2,"Бокситогорский муниципальный район","Бокситогорское","41603101"]
[3,"Бокситогорский муниципальный район","Большедворское","41603412"]
[4,"Бокситогорский муниципальный район","Борское","41603416"]
[5,"Бокситогорский муниципальный район","Ефимовское","41603155"]
[6,"Бокситогорский муниципальный район","Лидское","41603460"]
[7,"Бокситогорский муниципальный район","Пикалевское","41603102"]
[8,"Бокситогорский муниципальный район","Самойловское","41603476"]
[9,"Волосовский муниципальный район","Бегуницкое","41606404"]
[10,"Волосовский муниципальный район","Большеврудское","41606412"]
[11,"Волосовский муниципальный район","Волосовский муниципальный район","41606000"]
[12,"Волосовский муниципальный район","Волосовское","41606101"]
[13,"Волосовский муниципальный район","Калитинское","41606420"]
[14,"Волосовский муниципальный район","Клопицкое","41606430"]
[15,"Волосовский муниципальный район","Рабитицское","41606408"]
[16,"Волосовский муниципальный район","Сабское","41606436"]
[17,"Волховский муниципальный район","Бережковское","41609453"]
[18,"Волховский муниципальный район","Волховский муниципальный район","41609000"]
[19,"Волховский муниципальный район","Волховское","41609101"]
[20,"Волховский муниципальный район","Вындиноостровское","41609403"]
[21,"Волховский муниципальный район","Иссадское","41609418"]
[22,"Волховский муниципальный район","Кисельнинское","41609471"]
[23,"Волховский муниципальный район","Колчановское","41609427"]
[24,"Волховский муниципальный район","Новоладожское","41609104"]
[25,"Волховский муниципальный район","Пашское","41609444"]
[26,"Волховский муниципальный район","Потанинское","41609450"]
[27,"Волховский муниципальный район","Свирицкое","41609480"]
[28,"Волховский муниципальный район","Селивановское","41609461"]
[29,"Волховский муниципальный район","Староладожское","41609462"]
[30,"Волховский муниципальный район","Сясьстройское","41609108"]
[31,"Волховский муниципальный район","Усадищенское","41609465"]
[32,"Волховский муниципальный район","Хваловское","41609468"]
[33,"Всеволожский муниципальный район","Агалатовское","41612408"]
[34,"Всеволожский муниципальный район","Бугровское","41612402"]
[35,"Всеволожский муниципальный район","Всеволожский муниципальный район","41612000"]
[36,"Всеволожский муниципальный район","Всеволожское","41612101"]
[37,"Всеволожский муниципальный район","Дубровское","41612154"]
[38,"Всеволожский муниципальный район","Заневское","41612155"]
[39,"Всеволожский муниципальный район","Колтушское","41612416"]
[40,"Всеволожский муниципальный район","Кузьмоловское","41612158"]
[41,"Всеволожский муниципальный район","Куйвозовское","41612420"]
[42,"Всеволожский муниципальный район","Лесколовское","41612424"]
[43,"Всеволожский муниципальный район","Морозовское","41612163"]
[44,"Всеволожский муниципальный район","Муринское","41612103"]
[45,"Всеволожский муниципальный район","Новодевяткинское","41612458"]
[46,"Всеволожский муниципальный район","Рахьинское","41612167"]
[47,"Всеволожский муниципальный район","Романовское","41612442"]
[48,"Всеволожский муниципальный район","Свердловское","41612168"]
[49,"Всеволожский муниципальный район","Сертоловское","41612102"]
[50,"Всеволожский муниципальный район","Токсовское","41612175"]
[51,"Всеволожский муниципальный район","Щегловское","41612448"]
[52,"Всеволожский муниципальный район","Юкковское","41612456"]
[53,"Выборгский муниципальный район","Выборгский муниципальный район","41615000"]
[54,"Выборгский муниципальный район","Выборгское","41615101"]
[55,"Выборгский муниципальный район","Высоцкое","41615104"]
[56,"Выборгский муниципальный район","Гончаровское","41615492"]
[57,"Выборгский муниципальный район","Каменногорское","41615106"]
[58,"Выборгский муниципальный район","Красносельское","41615436"]
[59,"Выборгский муниципальный район","Первомайское","41615460"]
[60,"Выборгский муниципальный район","Полянское","41615464"]
[61,"Выборгский муниципальный район","Приморское","41615108"]
[62,"Выборгский муниципальный район","Рощинское","41615158"]
[63,"Выборгский муниципальный район","Светогорское","41615114"]
[64,"Выборгский муниципальный район","Селезневское","41615476"]
[65,"Выборгский муниципальный район","Советское","41615163"]
[66,"Гатчинский муниципальный район","Большеколпанское","41618408"]
[67,"Гатчинский муниципальный район","Веревское","41618416"]
[68,"Гатчинский муниципальный район","Войсковицкое","41618418"]
[69,"Гатчинский муниципальный район","Вырицкое","41618154"]
[70,"Гатчинский муниципальный район","Гатчинский муниципальный район","41618000"]
[71,"Гатчинский муниципальный район","Гатчинское","41618101"]
[72,"Гатчинский муниципальный район","Дружногорское","41618156"]
[73,"Гатчинский муниципальный район","Елизаветинское","41618424"]
[74,"Гатчинский муниципальный район","Кобринское","41618426"]
[75,"Гатчинский муниципальный район","Коммунарское","41618105"]
[76,"Гатчинский муниципальный район","Новосветское","41618444"]
[77,"Гатчинский муниципальный район","Пудомягское","41618404"]
[78,"Гатчинский муниципальный район","Пудостьское","41618448"]
[79,"Гатчинский муниципальный район","Рождественское","41618452"]
[80,"Гатчинский муниципальный район","Сиверское","41618169"]
[81,"Гатчинский муниципальный район","Сусанинское","41618460"]
[82,"Гатчинский муниципальный район","Сяськелевское","41618461"]
[83,"Гатчинский муниципальный район","Тайцкое","41618176"]
[84,"Кингисеппский муниципальный район","Большелуцкое","41621404"]
[85,"Кингисеппский муниципальный район","Вистинское","41621452"]
[86,"Кингисеппский муниципальный район","Ивангородское","41621102"]
[87,"Кингисеппский муниципальный район","Кингисеппский муниципальный район","41621000"]
[88,"Кингисеппский муниципальный район","Кингисеппское","41621101"]
[89,"Кингисеппский муниципальный район","Котельское","41621420"]
[90,"Кингисеппский муниципальный район","Куземкинское","41621432"]
[91,"Кингисеппский муниципальный район","Нежновское","41621440"]
[92,"Кингисеппский муниципальный район","Опольевское","41621444"]
[93,"Кингисеппский муниципальный район","Пустомержское","41621448"]
[94,"Кингисеппский муниципальный район","Усть-Лужское","41621428"]
[95,"Кингисеппский муниципальный район","Фалилеевское","41621412"]
[96,"Киришский муниципальный район","Будогощское","41624152"]
[97,"Киришский муниципальный район","Глажевское","41624412"]
[98,"Киришский муниципальный район","Киришский муниципальный район","41624000"]
[99,"Киришский муниципальный район","Киришское","41624101"]
[100,"Киришский муниципальный район","Кусинское","41624423"]
[101,"Киришский муниципальный район","Пчевжинское","41624427"]
[102,"Киришский муниципальный район","Пчевское","41624428"]
[103,"Кировский муниципальный район","Кировский муниципальный район","41625000"]
[104,"Кировский муниципальный район","Кировское","41625101"]
[105,"Кировский муниципальный район","Мгинское","41625154"]
[106,"Кировский муниципальный район","Назиевское","41625156"]
[107,"Кировский муниципальный район","Отрадненское","41625104"]
[108,"Кировский муниципальный район","Павловское","41625158"]
[109,"Кировский муниципальный район","Приладожское","41625160"]
[110,"Кировский муниципальный район","Путиловское","41625440"]
[111,"Кировский муниципальный район","Синявинское","41625163"]
[112,"Кировский муниципальный район","Суховское","41625445"]
[113,"Кировский муниципальный район","Шлиссельбургское","41625102"]
[114,"Кировский муниципальный район","Шумское","41625450"]
[115,"Лодейнопольский муниципальный район","Алеховщинское","41627404"]
[116,"Лодейнопольский муниципальный район","Доможировское","41627410"]
[117,"Лодейнопольский муниципальный район","Лодейнопольский муниципальный район","41627000"]
[118,"Лодейнопольский муниципальный район","Лодейнопольское","41627101"]
[119,"Лодейнопольский муниципальный район","Свирьстройское","41627154"]
[120,"Лодейнопольский муниципальный район","Янегское","41627420"]
[121,"Ломоносовский муниципальный район","Аннинское","41630152"]
[122,"Ломоносовский муниципальный район","Большеижорское","41630154"]
[123,"Ломоносовский муниципальный район","Виллозское","41630157"]
[124,"Ломоносовский муниципальный район","Горбунковское","41630424"]
[125,"Ломоносовский муниципальный район","Гостилицкое","41630420"]
[126,"Ломоносовский муниципальный район","Кипенское","41630428"]
[127,"Ломоносовский муниципальный район","Копорское","41630432"]
[128,"Ломоносовский муниципальный район","Лаголовское","41630434"]
[129,"Ломоносовский муниципальный район","Лебяженское","41630162"]
[130,"Ломоносовский муниципальный район","Ломоносовский муниципальный район","41630000"]
[131,"Ломоносовский муниципальный район","Лопухинское","41630436"]
[132,"Ломоносовский муниципальный район","Низинское","41630408"]
[133,"Ломоносовский муниципальный район","Оржицкое","41630438"]
[134,"Ломоносовский муниципальный район","Пениковское","41630412"]
[135,"Ломоносовский муниципальный район","Ропшинское","41630440"]
[136,"Ломоносовский муниципальный район","Русско-Высоцкое","41630444"]
[137,"Лужский муниципальный район","Володарское","41633408"]
[138,"Лужский муниципальный район","Волошовское","41633416"]
[139,"Лужский муниципальный район","Дзержинское","41633420"]
[140,"Лужский муниципальный район","Заклинское","41633436"]
[141,"Лужский муниципальный район","Лужский муниципальный район","41633000"]
[142,"Лужский муниципальный район","Лужское","41633101"]
[143,"Лужский муниципальный район","Мшинское","41633440"]
[144,"Лужский муниципальный район","Оредежское","41633444"]
[145,"Лужский муниципальный район","Осьминское","41633448"]
[146,"Лужский муниципальный район","Ретюнское","41633488"]
[147,"Лужский муниципальный район","Серебрянское","41633464"]
[148,"Лужский муниципальный район","Скребловское","41633468"]
[149,"Лужский муниципальный район","Толмачевское","41633154"]
[150,"Лужский муниципальный район","Торковичское","41633478"]
[151,"Лужский муниципальный район","Ям-Тесовское","41633456"]
[152,"Подпорожский муниципальный район","Важинское","41636154"]
[153,"Подпорожский муниципальный район","Винницкое","41636404"]
[154,"Подпорожский муниципальный район","Вознесенское","41636158"]
[155,"Подпорожский муниципальный район","Никольское","41636163"]
[156,"Подпорожский муниципальный район","Подпорожский муниципальный район","41636000"]
[157,"Подпорожский муниципальный район","Подпорожское","41636101"]
[158,"Приозерский муниципальный район","Громовское","41639412"]
[159,"Приозерский муниципальный район","Запорожское","41639416"]
[160,"Приозерский муниципальный район","Красноозерное","41639420"]
[161,"Приозерский муниципальный район","Кузнечнинское","41639154"]
[162,"Приозерский муниципальный район","Ларионовское","41639424"]
[163,"Приозерский муниципальный район","Мельниковское","41639428"]
[164,"Приозерский муниципальный район","Мичуринское","41639432"]
[165,"Приозерский муниципальный район","Петровское","41639440"]
[166,"Приозерский муниципальный район","Плодовское","41639436"]
[167,"Приозерский муниципальный район","Приозерский муниципальный район","41639000"]
[168,"Приозерский муниципальный район","Приозерское","41639101"]
[169,"Приозерский муниципальный район","Раздольевское","41639408"]
[170,"Приозерский муниципальный район","Ромашкинское","41639434"]
[171,"Приозерский муниципальный район","Севастьяновское","41639404"]
[172,"Приозерский муниципальный район","Сосновское","41639444"]
[173,"Сланцевский муниципальный район","Выскатское","41642404"]
[174,"Сланцевский муниципальный район","Гостицкое","41642424"]
[175,"Сланцевский муниципальный район","Загривское","41642408"]
[176,"Сланцевский муниципальный район","Новосельское","41642420"]
[177,"Сланцевский муниципальный район","Сланцевский муниципальный район","41642000"]
[178,"Сланцевский муниципальный район","Сланцевское","41642101"]
[179,"Сланцевский муниципальный район","Старопольское","41642436"]
[180,"Сланцевский муниципальный район","Черновское","41642440"]
[181,"Сосновоборский городской округ","Сосновоборский городской округ","41754000"]
[182,"Тихвинский муниципальный район","Борское","41645410"]
[183,"Тихвинский муниципальный район","Ганьковское","41645412"]
[184,"Тихвинский муниципальный район","Горское","41645416"]
[185,"Тихвинский муниципальный район","Коськовское","41645472"]
[186,"Тихвинский муниципальный район","Мелегежское","41645408"]
[187,"Тихвинский муниципальный район","Пашозерское","41645456"]
[188,"Тихвинский муниципальный район","Тихвинский муниципальный район","41645000"]
[189,"Тихвинский муниципальный район","Тихвинское","41645101"]
[190,"Тихвинский муниципальный район","Цвылевское","41645432"]
[191,"Тихвинский муниципальный район","Шугозерское","41645477"]
[192,"Тосненский муниципальный район","Красноборское","41648154"]
[193,"Тосненский муниципальный район","Лисинское","41648430"]
[194,"Тосненский муниципальный район","Любанское","41648105"]
[195,"Тосненский муниципальный район","Никольское","41648108"]
[196,"Тосненский муниципальный район","Нурминское","41648418"]
[197,"Тосненский муниципальный район","Рябовское","41648160"]
[198,"Тосненский муниципальный район","Тельмановское","41648443"]
[199,"Тосненский муниципальный район","Тосненский муниципальный район","41648000"]
[200,"Тосненский муниципальный район","Тосненское","41648101"]
[201,"Тосненский муниципальный район","Трубникоборское","41648444"]
[202,"Тосненский муниципальный район","Ульяновское","41648164"]
[203,"Тосненский муниципальный район","Фёдоровское","41648165"]
[204,"Тосненский муниципальный район","Форносовское","41648170"]
[205,"Тосненский муниципальный район","Шапкинское","41648464"]

{"sheet":"modInfo","index":53,"n_rows":36,"n_cols":2,"rows_kept":36,"cut":false,"hidden":true,"merged":[]}
[null,"Титульный"]
[null,"Для выбора того или иного источника публикации выполните двойной щелчок по синей ячейке напротив соответствующего источника.\nВНИМАНИЕ! Если Вы снимаете галочку с пункта, то будут скрыты и очищены соответствующие строки на листе \"Форма 1.0.2\"!\n\nОпубликование перечисленных в шаблоне показателей на сайте организации в сети Интернет и в печатных изданиях не обязательно, если данный шаблон предоставлен по системе ЕИАС (региональный сегмент)."]
[null,"Обязательное опубликование на официальном сайте органа исполнительной власти субъекта Российской Федерации в области государственного регулирования цен (тарифов), и (или) на официальном сайте органа местного самоуправления поселения или городского округа в случае их наделения в соответствии с законом субъекта Российской Федерации полномочиями по государственному регулированию цен (тарифов)предусмотрено пунктом 3 (а) постановления Правительства №6 от 17.01.2013г."]
[null,"Задайте период регулирования, выбрав даты начала и окончания периода регулирования из календаря (иконка справа от указанной ячейки), либо введите дату непосредственно в ячейку в формате - 'ДД.ММ.ГГГГ'"]
[null,"Шаблон заполняется раздельно по каждому виду тарифа"]
[null,"В зависимости от указанного вида деятельности будут доступны для заполнения поля 'Производство', 'Передача' и 'Сбыт'"]
[null,"Если выбрано 'да', на листах с разбивкой по потребителям доступны для заполнения графы для двухставочного ставочного тарифа по группам потребителей"]
[null,"Если выбрано 'да', значения тарифов для групп потребителей на листах с разбивкой по потребителям заполнятся автоматически значениями первой группы"]
[null,"Если выбрано значение «да» - в шаблоне будет сформирован лист «Форма 1.0.2» для уведомления органа регулирования о публикации информации в печатных изданиях"]
[null,"По умолчанию установлено значение «первичное раскрытие информации» Это означает, что информация раскрывается в соответствии с установленными сроком и периодичностью. В случае, если в уже отправленном шаблоне обнаружена ошибка или произошло изменение информации, исправленный шаблон необходимо отправить с типом отчета «изменения в раскрытой ранее информации». "]
[null,"Укажите является ли данное юридическое лицо подразделением(филиалом) другой организации"]
[null,"Ссылки на публикации"]
[null,"Вводите адрес сайта, не нарушая цвет ячейки /если копируете гиперссылку из браузера, то выполните двойной щелчок по ячейке и только после этого можете вставить скопированный элемент/"]
[null,"Обосновывающие материалы необходимо загружать с помощью \"ЕИАС Мониторинг\". Ссылка на инструкцию по загрузке обосновывающих материалов расположена на листе 'Инструкция' в п.'Методология заполнения'.\n\nВвводите ссылку, не нарушая цвет ячейки /если копируете гиперссылку из браузера, то выполните двойной щелчок по ячейке и только после этого можете вставить скопированный элемент/."]
[null,"Если для какого-либо пункта графы 'Наименование источника (сайта или печатного издания)' информация не раскрывалась, то в соответствующем поле укажите - 'не раскрывалась'"]
[null,"Список МО"]
[null,"В случае, если тариф не дифференцируется по системам теплоснабжения, перечислите все муниципальные районы, в которых организация осуществляет услуги теплоснабжения и сфере оказания услуг по передаче тепловой энергии"]
[null,"В случае, если тариф не дифференцируется по системам теплоснабжения, перечислите все муниципальные образования, в которых организация осуществляет услуги теплоснабжения и сфере оказания услуг по передаче тепловой энергии"]
[null,"Признак дифференциации тарифа"]
[null,"В случае, если тариф не дифференцируется по системам теплоснабжения, укажите \"1\".\nВведите значение от 1 до 100, чтобы указать очередной условный порядковый номер системы теплоснабжения"]
[null,"Стандарты"]
[null,"В качестве примечания Вы можете указать единицу измерения"]
[]
[null,"Для корректного формирования Таблицы 25 Формы 1.10 необходимо задать разбивку по диаметрам и способу прокладки тепловых сетей"]
[]
[null,"Перечень тарифов"]
[null,"Указывается наименование тарифа в случае утверждения нескольких тарифов.\nВ случае наличия нескольких тарифов информация по ним указывается в отдельных строках."]
[null,"Укажите «Да» в поле «Да/Нет», если дифференциация используется.\nВ поле «Описание» указывается наименование территории действия тарифа при наличии дифференциации тарифа по территориальному признаку.\nВ случае дифференциации тарифов по территориальному признаку информация по ним указывается в отдельных строках."]
[null,"Признаки дифференциации указываются в соответствии с п.6 ст.32 ФЗ РФ от 07.12.2011 №416-ФЗ"]
[null,"Укажите «Да» в поле «Да/Нет», если дифференциация используется. В поле «Описание» укажите название ЦС ГВС или любое другое описание"]
[]
[null,"Территории"]
[1,"Наименование территории действия тарифа для целей идентификации"]
[2,"Муниципальные районы и муниципальные образования, на территории которых действует тариф"]
[null,"Инструкция"]
[null,"Нет доступных обновлений, версия отчёта актуальна"]

{"sheet":"modList05","index":54,"n_rows":0,"n_cols":0,"rows_kept":0,"cut":false,"hidden":true,"merged":[]}

{"sheet":"modList06","index":55,"n_rows":0,"n_cols":0,"rows_kept":0,"cut":false,"hidden":true,"merged":[]}

{"sheet":"modList07","index":56,"n_rows":0,"n_cols":0,"rows_kept":0,"cut":false,"hidden":true,"merged":[]}

{"sheet":"modfrmDateChoose","index":57,"n_rows":0,"n_cols":0,"rows_kept":0,"cut":false,"hidden":true,"merged":[]}

{"sheet":"modComm","index":58,"n_rows":0,"n_cols":0,"rows_kept":0,"cut":false,"hidden":true,"merged":[]}

{"sheet":"modThisWorkbook","index":59,"n_rows":0,"n_cols":0,"rows_kept":0,"cut":false,"hidden":true,"merged":[]}

{"sheet":"modfrmReestrMR","index":60,"n_rows":0,"n_cols":0,"rows_kept":0,"cut":false,"hidden":true,"merged":[]}

{"sheet":"modfrmCheckUpdates","index":61,"n_rows":0,"n_cols":0,"rows_kept":0,"cut":false,"hidden":true,"merged":[]}